﻿Body Name,Body,Service Area Categorisation,Service Division Categorisation,Responsible Unit,Expenses Type,Detailed Expenses Type,Payment Date,Transaction Number,Payment Amount,Supplier Type,Supplier Name,Supplier Id
Portsmouth City Council,PCC,Housing Revenue Account,Supervision and Management,"Housing, Neighbourhood and Building Services",Premises-Related Expenditure,Rates,25-Aug-22,6660294,"1,198.00",OTHER LOCAL AUTHORITY,HAVANT BOROUGH COUNCIL,300000020457057
Portsmouth City Council,PCC,Housing Revenue Account,Special Services,"Housing, Neighbourhood and Building Services",Premises-Related Expenditure,Rates,25-Aug-22,6660294,182,OTHER LOCAL AUTHORITY,HAVANT BOROUGH COUNCIL,300000020457057
Portsmouth City Council,PCC,Housing Revenue Account,Supervision and Management,"Housing, Neighbourhood and Building Services",Premises-Related Expenditure,Rates,25-Aug-22,6660294,"3,174.00",OTHER LOCAL AUTHORITY,HAVANT BOROUGH COUNCIL,300000020457057
Portsmouth City Council,PCC,Housing Revenue Account,Special Services,"Housing, Neighbourhood and Building Services",Premises-Related Expenditure,Rates,25-Aug-22,6660294,394,OTHER LOCAL AUTHORITY,HAVANT BOROUGH COUNCIL,300000020457057
Portsmouth City Council,PCC,Housing Revenue Account,Special Services,"Housing, Neighbourhood and Building Services",Premises-Related Expenditure,Rates,25-Aug-22,6660294,254,OTHER LOCAL AUTHORITY,HAVANT BOROUGH COUNCIL,300000020457057
Portsmouth City Council,PCC,Housing Services,Homelessness,"Housing, Neighbourhood and Building Services",Premises-Related Expenditure,Rents,01-Aug-22,6654952,"6,000.00",SUPPLIER,K H PROPERTY INVESTMENT LIMITED,300000020467836
Portsmouth City Council,PCC,Housing Revenue Account,"Rents, Rates, Taxes and Other Charges","Housing, Neighbourhood and Building Services",Premises-Related Expenditure,Rates,25-Aug-22,6660294,244,OTHER LOCAL AUTHORITY,HAVANT BOROUGH COUNCIL,300000020457057
Portsmouth City Council,PCC,Housing Revenue Account,"Rents, Rates, Taxes and Other Charges","Housing, Neighbourhood and Building Services",Premises-Related Expenditure,Rates,25-Aug-22,6660294,128,OTHER LOCAL AUTHORITY,HAVANT BOROUGH COUNCIL,300000020457057
Portsmouth City Council,PCC,Housing Revenue Account,"Rents, Rates, Taxes and Other Charges","Housing, Neighbourhood and Building Services",Premises-Related Expenditure,Rates,25-Aug-22,6660294,256,OTHER LOCAL AUTHORITY,HAVANT BOROUGH COUNCIL,300000020457057
Portsmouth City Council,PCC,Housing Revenue Account,"Rents, Rates, Taxes and Other Charges","Housing, Neighbourhood and Building Services",Premises-Related Expenditure,Rates,25-Aug-22,6660294,128,OTHER LOCAL AUTHORITY,HAVANT BOROUGH COUNCIL,300000020457057
Portsmouth City Council,PCC,Housing Revenue Account,"Rents, Rates, Taxes and Other Charges","Housing, Neighbourhood and Building Services",Premises-Related Expenditure,Rates,26-Aug-22,6660803,128,OTHER LOCAL AUTHORITY,HAVANT BOROUGH COUNCIL,300000020457057
Portsmouth City Council,PCC,Housing Revenue Account,"Rents, Rates, Taxes and Other Charges","Housing, Neighbourhood and Building Services",Premises-Related Expenditure,Rates,26-Aug-22,6660803,128,OTHER LOCAL AUTHORITY,HAVANT BOROUGH COUNCIL,300000020457057
Portsmouth City Council,PCC,Housing Revenue Account,"Rents, Rates, Taxes and Other Charges","Housing, Neighbourhood and Building Services",Premises-Related Expenditure,Rates,26-Aug-22,6660803,128,OTHER LOCAL AUTHORITY,HAVANT BOROUGH COUNCIL,300000020457057
Portsmouth City Council,PCC,Housing Revenue Account,"Rents, Rates, Taxes and Other Charges","Housing, Neighbourhood and Building Services",Premises-Related Expenditure,Rates,26-Aug-22,6660803,128,OTHER LOCAL AUTHORITY,HAVANT BOROUGH COUNCIL,300000020457057
Portsmouth City Council,PCC,Housing Revenue Account,"Rents, Rates, Taxes and Other Charges","Housing, Neighbourhood and Building Services",Premises-Related Expenditure,Rates,25-Aug-22,6660294,256,OTHER LOCAL AUTHORITY,HAVANT BOROUGH COUNCIL,300000020457057
Portsmouth City Council,PCC,Housing Revenue Account,"Rents, Rates, Taxes and Other Charges","Housing, Neighbourhood and Building Services",Premises-Related Expenditure,Rates,25-Aug-22,6660294,128,OTHER LOCAL AUTHORITY,HAVANT BOROUGH COUNCIL,300000020457057
Portsmouth City Council,PCC,Housing Revenue Account,"Rents, Rates, Taxes and Other Charges","Housing, Neighbourhood and Building Services",Premises-Related Expenditure,Rates,25-Aug-22,6660294,128,OTHER LOCAL AUTHORITY,HAVANT BOROUGH COUNCIL,300000020457057
Portsmouth City Council,PCC,Housing Revenue Account,"Rents, Rates, Taxes and Other Charges","Housing, Neighbourhood and Building Services",Premises-Related Expenditure,Rates,25-Aug-22,6660294,128,OTHER LOCAL AUTHORITY,HAVANT BOROUGH COUNCIL,300000020457057
Portsmouth City Council,PCC,Housing Revenue Account,"Rents, Rates, Taxes and Other Charges","Housing, Neighbourhood and Building Services",Premises-Related Expenditure,Rates,26-Aug-22,6660803,128,OTHER LOCAL AUTHORITY,HAVANT BOROUGH COUNCIL,300000020457057
Portsmouth City Council,PCC,Housing Revenue Account,"Rents, Rates, Taxes and Other Charges","Housing, Neighbourhood and Building Services",Premises-Related Expenditure,Rates,25-Aug-22,6660294,128,OTHER LOCAL AUTHORITY,HAVANT BOROUGH COUNCIL,300000020457057
Portsmouth City Council,PCC,Housing Revenue Account,"Rents, Rates, Taxes and Other Charges","Housing, Neighbourhood and Building Services",Premises-Related Expenditure,Rates,26-Aug-22,6660803,128,OTHER LOCAL AUTHORITY,HAVANT BOROUGH COUNCIL,300000020457057
Portsmouth City Council,PCC,Housing Revenue Account,"Rents, Rates, Taxes and Other Charges","Housing, Neighbourhood and Building Services",Premises-Related Expenditure,Rates,25-Aug-22,6660294,128,OTHER LOCAL AUTHORITY,HAVANT BOROUGH COUNCIL,300000020457057
Portsmouth City Council,PCC,Housing Revenue Account,"Rents, Rates, Taxes and Other Charges","Housing, Neighbourhood and Building Services",Premises-Related Expenditure,Rates,26-Aug-22,6660803,128,OTHER LOCAL AUTHORITY,HAVANT BOROUGH COUNCIL,300000020457057
Portsmouth City Council,PCC,Housing Revenue Account,"Rents, Rates, Taxes and Other Charges","Housing, Neighbourhood and Building Services",Premises-Related Expenditure,Rates,25-Aug-22,6660294,128,OTHER LOCAL AUTHORITY,HAVANT BOROUGH COUNCIL,300000020457057
Portsmouth City Council,PCC,Housing Revenue Account,"Rents, Rates, Taxes and Other Charges","Housing, Neighbourhood and Building Services",Premises-Related Expenditure,Rates,25-Aug-22,6660294,128,OTHER LOCAL AUTHORITY,HAVANT BOROUGH COUNCIL,300000020457057
Portsmouth City Council,PCC,Housing Revenue Account,"Rents, Rates, Taxes and Other Charges","Housing, Neighbourhood and Building Services",Premises-Related Expenditure,Rates,25-Aug-22,6660294,128,OTHER LOCAL AUTHORITY,HAVANT BOROUGH COUNCIL,300000020457057
Portsmouth City Council,PCC,Housing Revenue Account,"Rents, Rates, Taxes and Other Charges","Housing, Neighbourhood and Building Services",Premises-Related Expenditure,Rates,25-Aug-22,6660294,128,OTHER LOCAL AUTHORITY,HAVANT BOROUGH COUNCIL,300000020457057
Portsmouth City Council,PCC,Children's and Education Services,Special Schools,Children's Services and Education,Third Party Payments,Other establishments,25-Aug-22,6660383,"186,213.68",SUPPLIER,SOLENT ACADEMIES TRUST,300000020477417
Portsmouth City Council,PCC,Children's and Education Services,Special Schools,Children's Services and Education,Third Party Payments,Other establishments,25-Aug-22,6660383,"14,795.92",SUPPLIER,SOLENT ACADEMIES TRUST,300000020477417
Portsmouth City Council,PCC,Children's and Education Services,Special Schools,Children's Services and Education,Third Party Payments,Other establishments,25-Aug-22,6660383,"10,266.64",SUPPLIER,SOLENT ACADEMIES TRUST,300000020477417
Portsmouth City Council,PCC,Children's and Education Services,Special Schools,Children's Services and Education,Third Party Payments,Other establishments,26-Aug-22,6660633,"215,333.92",SUPPLIER,SOLENT ACADEMIES TRUST,300000020477417
Portsmouth City Council,PCC,Children's and Education Services,Special Schools,Children's Services and Education,Third Party Payments,Other establishments,26-Aug-22,6660633,"7,629.28",SUPPLIER,SOLENT ACADEMIES TRUST,300000020477417
Portsmouth City Council,PCC,Children's and Education Services,Special Schools,Children's Services and Education,Third Party Payments,Other establishments,26-Aug-22,6660633,"4,600.00",SUPPLIER,SOLENT ACADEMIES TRUST,300000020477417
Portsmouth City Council,PCC,Children's and Education Services,Special Schools,Children's Services and Education,Third Party Payments,Other establishments,25-Aug-22,6660385,"101,462.32",SUPPLIER,SOLENT ACADEMIES TRUST,300000020477417
Portsmouth City Council,PCC,Children's and Education Services,Special Schools,Children's Services and Education,Third Party Payments,Other establishments,25-Aug-22,6660385,"4,330.48",SUPPLIER,SOLENT ACADEMIES TRUST,300000020477417
Portsmouth City Council,PCC,Children's and Education Services,Special Schools,Children's Services and Education,Third Party Payments,Other establishments,25-Aug-22,6660385,"4,666.64",SUPPLIER,SOLENT ACADEMIES TRUST,300000020477417
Portsmouth City Council,PCC,Children's and Education Services,Special Schools,Children's Services and Education,Third Party Payments,Other establishments,25-Aug-22,6660384,"115,916.80",SUPPLIER,THE DELTA EDUCATION TRUST,300000020481637
Portsmouth City Council,PCC,Children's and Education Services,Special Schools,Children's Services and Education,Third Party Payments,Other establishments,25-Aug-22,6660384,"10,000.00",SUPPLIER,THE DELTA EDUCATION TRUST,300000020481637
Portsmouth City Council,PCC,Children's and Education Services,Special Schools,Children's Services and Education,Third Party Payments,Other establishments,25-Aug-22,6660384,"6,666.67",SUPPLIER,THE DELTA EDUCATION TRUST,300000020481637
Portsmouth City Council,PCC,Children's and Education Services,Management and Support Services,Children's Services and Education,Third Party Payments,Other establishments,25-Aug-22,6660384,"19,622.40",SUPPLIER,THE DELTA EDUCATION TRUST,300000020481637
Portsmouth City Council,PCC,Children's and Education Services,Management and Support Services,Children's Services and Education,Third Party Payments,Other establishments,25-Aug-22,6660384,"4,800.00",SUPPLIER,THE DELTA EDUCATION TRUST,300000020481637
Portsmouth City Council,PCC,Children's and Education Services,Management and Support Services,Children's Services and Education,Third Party Payments,Other establishments,25-Aug-22,6660384,"52,800.00",SUPPLIER,THE DELTA EDUCATION TRUST,300000020481637
Portsmouth City Council,PCC,Housing Revenue Account,"Rents, Rates, Taxes and Other Charges","Housing, Neighbourhood and Building Services",Premises-Related Expenditure,Rates,25-Aug-22,6660294,-127,OTHER LOCAL AUTHORITY,HAVANT BOROUGH COUNCIL,300000020457057
Portsmouth City Council,PCC,Housing Revenue Account,"Rents, Rates, Taxes and Other Charges","Housing, Neighbourhood and Building Services",Premises-Related Expenditure,Rates,25-Aug-22,6660294,127,OTHER LOCAL AUTHORITY,HAVANT BOROUGH COUNCIL,300000020457057
Portsmouth City Council,PCC,Housing Revenue Account,"Rents, Rates, Taxes and Other Charges","Housing, Neighbourhood and Building Services",Premises-Related Expenditure,Rates,25-Aug-22,6660294,254,OTHER LOCAL AUTHORITY,HAVANT BOROUGH COUNCIL,300000020457057
Portsmouth City Council,PCC,Housing Revenue Account,"Rents, Rates, Taxes and Other Charges","Housing, Neighbourhood and Building Services",Premises-Related Expenditure,Rates,24-Aug-22,6659759,-121,OTHER LOCAL AUTHORITY,HAVANT BOROUGH COUNCIL,300000020457057
Portsmouth City Council,PCC,Housing Revenue Account,"Rents, Rates, Taxes and Other Charges","Housing, Neighbourhood and Building Services",Premises-Related Expenditure,Rates,24-Aug-22,6659759,121,OTHER LOCAL AUTHORITY,HAVANT BOROUGH COUNCIL,300000020457057
Portsmouth City Council,PCC,Housing Revenue Account,"Rents, Rates, Taxes and Other Charges","Housing, Neighbourhood and Building Services",Premises-Related Expenditure,Rates,24-Aug-22,6659759,242,OTHER LOCAL AUTHORITY,HAVANT BOROUGH COUNCIL,300000020457057
Portsmouth City Council,PCC,Housing Revenue Account,"Rents, Rates, Taxes and Other Charges","Housing, Neighbourhood and Building Services",Premises-Related Expenditure,Rates,24-Aug-22,6659759,-141,OTHER LOCAL AUTHORITY,HAVANT BOROUGH COUNCIL,300000020457057
Portsmouth City Council,PCC,Housing Revenue Account,"Rents, Rates, Taxes and Other Charges","Housing, Neighbourhood and Building Services",Premises-Related Expenditure,Rates,24-Aug-22,6659759,141,OTHER LOCAL AUTHORITY,HAVANT BOROUGH COUNCIL,300000020457057
Portsmouth City Council,PCC,Housing Revenue Account,"Rents, Rates, Taxes and Other Charges","Housing, Neighbourhood and Building Services",Premises-Related Expenditure,Rates,24-Aug-22,6659759,282,OTHER LOCAL AUTHORITY,HAVANT BOROUGH COUNCIL,300000020457057
Portsmouth City Council,PCC,Children's and Education Services,Special Schools,Children's Services and Education,Third Party Payments,Other establishments,26-Aug-22,6660586,-576,SUPPLIER,ELIZABETH FOUNDATION,300000020459466
Portsmouth City Council,PCC,Housing Revenue Account,"Rents, Rates, Taxes and Other Charges","Housing, Neighbourhood and Building Services",Premises-Related Expenditure,Rates,25-Aug-22,6660294,142,OTHER LOCAL AUTHORITY,HAVANT BOROUGH COUNCIL,300000020457057
Portsmouth City Council,PCC,Housing Revenue Account,"Rents, Rates, Taxes and Other Charges","Housing, Neighbourhood and Building Services",Premises-Related Expenditure,Rates,25-Aug-22,6660294,134,OTHER LOCAL AUTHORITY,HAVANT BOROUGH COUNCIL,300000020457057
Portsmouth City Council,PCC,Housing Revenue Account,"Rents, Rates, Taxes and Other Charges","Housing, Neighbourhood and Building Services",Premises-Related Expenditure,Rates,25-Aug-22,6660294,128,OTHER LOCAL AUTHORITY,HAVANT BOROUGH COUNCIL,300000020457057
Portsmouth City Council,PCC,Housing Revenue Account,"Rents, Rates, Taxes and Other Charges","Housing, Neighbourhood and Building Services",Premises-Related Expenditure,Rates,25-Aug-22,6660294,256,OTHER LOCAL AUTHORITY,HAVANT BOROUGH COUNCIL,300000020457057
Portsmouth City Council,PCC,Housing Revenue Account,"Rents, Rates, Taxes and Other Charges","Housing, Neighbourhood and Building Services",Premises-Related Expenditure,Rates,25-Aug-22,6660294,128,OTHER LOCAL AUTHORITY,HAVANT BOROUGH COUNCIL,300000020457057
Portsmouth City Council,PCC,Housing Revenue Account,"Rents, Rates, Taxes and Other Charges","Housing, Neighbourhood and Building Services",Premises-Related Expenditure,Rates,25-Aug-22,6660294,142,OTHER LOCAL AUTHORITY,HAVANT BOROUGH COUNCIL,300000020457057
Portsmouth City Council,PCC,Children's and Education Services,Safeguarding Children and Young Peoples Services,Children's Services and Education,Third Party Payments,Other establishments,23-Aug-22,6659546,-897.52,SUPPLIER,SILVER BIRCH CARE LIMITED,300000020475620
Portsmouth City Council,PCC,Housing Revenue Account,"Rents, Rates, Taxes and Other Charges","Housing, Neighbourhood and Building Services",Premises-Related Expenditure,Rates,25-Aug-22,6660294,125,OTHER LOCAL AUTHORITY,HAVANT BOROUGH COUNCIL,300000020457057
Portsmouth City Council,PCC,Children's and Education Services,Special Schools,Children's Services and Education,Third Party Payments,Other establishments,26-Aug-22,6660586,-336,SUPPLIER,ELIZABETH FOUNDATION,300000020459466
Portsmouth City Council,PCC,Housing Revenue Account,"Rents, Rates, Taxes and Other Charges","Housing, Neighbourhood and Building Services",Premises-Related Expenditure,Rates,25-Aug-22,6660294,122,OTHER LOCAL AUTHORITY,HAVANT BOROUGH COUNCIL,300000020457057
Portsmouth City Council,PCC,Housing Revenue Account,Special Services,"Housing, Neighbourhood and Building Services",Premises-Related Expenditure,Energy costs,11-Aug-22,6657458,"-1,551.93",LIMITED COMPANY,GAZPROM MARKETING AND TRADING LTD,300000250807105
Portsmouth City Council,PCC,Adult Social Care,Learning Disability Support Adults (18 - 64),Adult Care,Third Party Payments,Other establishments,12-Aug-22,6657692,"3,327.23",SUPPLIER, ACHIEVE TOGETHER LIMITED,300000020469986
Portsmouth City Council,PCC,Adult Social Care,Learning Disability Support Adults (18 - 64),Adult Care,Third Party Payments,Other establishments,12-Aug-22,6657692,"7,163.79",SUPPLIER, ACHIEVE TOGETHER LIMITED,300000020469986
Portsmouth City Council,PCC,Adult Social Care,Learning Disability Support Adults (18 - 64),Adult Care,Third Party Payments,Other establishments,12-Aug-22,6657692,"7,181.15",SUPPLIER, ACHIEVE TOGETHER LIMITED,300000020469986
Portsmouth City Council,PCC,Adult Social Care,Learning Disability Support Adults (18 - 64),Adult Care,Third Party Payments,Other establishments,12-Aug-22,6657692,"8,335.28",SUPPLIER, ACHIEVE TOGETHER LIMITED,300000020469986
Portsmouth City Council,PCC,Adult Social Care,Learning Disability Support Adults (18 - 64),Adult Care,Third Party Payments,Other establishments,12-Aug-22,6657692,"8,466.10",SUPPLIER, ACHIEVE TOGETHER LIMITED,300000020469986
Portsmouth City Council,PCC,Adult Social Care,Learning Disability Support Adults (18 - 64),Adult Care,Third Party Payments,Other establishments,12-Aug-22,6657692,"8,694.26",SUPPLIER, ACHIEVE TOGETHER LIMITED,300000020469986
Portsmouth City Council,PCC,Adult Social Care,Learning Disability Support Adults (18 - 64),Adult Care,Third Party Payments,Other establishments,12-Aug-22,6657692,"9,003.95",SUPPLIER, ACHIEVE TOGETHER LIMITED,300000020469986
Portsmouth City Council,PCC,Adult Social Care,Learning Disability Support Adults (18 - 64),Adult Care,Third Party Payments,Other establishments,12-Aug-22,6657692,"9,164.84",SUPPLIER, ACHIEVE TOGETHER LIMITED,300000020469986
Portsmouth City Council,PCC,Adult Social Care,Learning Disability Support Adults (18 - 64),Adult Care,Third Party Payments,Other establishments,12-Aug-22,6657692,"9,490.96",SUPPLIER, ACHIEVE TOGETHER LIMITED,300000020469986
Portsmouth City Council,PCC,Adult Social Care,Learning Disability Support Adults (18 - 64),Adult Care,Third Party Payments,Other establishments,12-Aug-22,6657692,"12,996.75",SUPPLIER, ACHIEVE TOGETHER LIMITED,300000020469986
Portsmouth City Council,PCC,Adult Social Care,Learning Disability Support Adults (18 - 64),Adult Care,Third Party Payments,Other establishments,25-Aug-22,6660364,396.74,SUPPLIER, ACHIEVE TOGETHER LIMITED,300000020469986
Portsmouth City Council,PCC,Adult Social Care,Learning Disability Support Adults (18 - 64),Adult Care,Third Party Payments,Other establishments,25-Aug-22,6660364,661.23,SUPPLIER, ACHIEVE TOGETHER LIMITED,300000020469986
Portsmouth City Council,PCC,Adult Social Care,Learning Disability Support Adults (18 - 64),Adult Care,Third Party Payments,Other establishments,25-Aug-22,6660364,661.23,SUPPLIER, ACHIEVE TOGETHER LIMITED,300000020469986
Portsmouth City Council,PCC,Adult Social Care,Learning Disability Support Adults (18 - 64),Adult Care,Third Party Payments,Other establishments,25-Aug-22,6660364,661.23,SUPPLIER, ACHIEVE TOGETHER LIMITED,300000020469986
Portsmouth City Council,PCC,Adult Social Care,Learning Disability Support Adults (18 - 64),Adult Care,Third Party Payments,Other establishments,25-Aug-22,6660364,661.23,SUPPLIER, ACHIEVE TOGETHER LIMITED,300000020469986
Portsmouth City Council,PCC,Adult Social Care,Learning Disability Support Adults (18 - 64),Adult Care,Third Party Payments,Other establishments,25-Aug-22,6660364,661.23,SUPPLIER, ACHIEVE TOGETHER LIMITED,300000020469986
Portsmouth City Council,PCC,Adult Social Care,Learning Disability Support Adults (18 - 64),Adult Care,Third Party Payments,Other establishments,25-Aug-22,6660364,661.23,SUPPLIER, ACHIEVE TOGETHER LIMITED,300000020469986
Portsmouth City Council,PCC,Adult Social Care,Learning Disability Support Adults (18 - 64),Adult Care,Third Party Payments,Other establishments,25-Aug-22,6660364,661.23,SUPPLIER, ACHIEVE TOGETHER LIMITED,300000020469986
Portsmouth City Council,PCC,Adult Social Care,Learning Disability Support Adults (18 - 64),Adult Care,Third Party Payments,Other establishments,25-Aug-22,6660364,661.23,SUPPLIER, ACHIEVE TOGETHER LIMITED,300000020469986
Portsmouth City Council,PCC,Adult Social Care,Learning Disability Support Adults (18 - 64),Adult Care,Third Party Payments,Other establishments,25-Aug-22,6660364,661.23,SUPPLIER, ACHIEVE TOGETHER LIMITED,300000020469986
Portsmouth City Council,PCC,Children's and Education Services,Other Education and Community Budget,Children's Services and Education,Third Party Payments,Other establishments,02-Aug-22,6655222,"6,000.00",SUPPLIER,THE SALTERNS ACADEMY TRUST,300000020477978
Portsmouth City Council,PCC,Housing Services,Housing Strategy,"Housing, Neighbourhood and Building Services",Income,Customer and client receipts,02-Aug-22,6655332,"-1,259.70",SUPPLIER,GHYLLSIDE HEALTHCARE,300000020478499
Portsmouth City Council,PCC,Other,Suspense and Capital Schemes,"Housing, Neighbourhood and Building Services",Supplies and Services,Services,02-Aug-22,6655332,"1,511.64",SUPPLIER,GHYLLSIDE HEALTHCARE,300000020478499
Portsmouth City Council,PCC,Other,Suspense and Capital Schemes,"Housing, Neighbourhood and Building Services",Supplies and Services,Services,02-Aug-22,6655332,"8,398.00",SUPPLIER,GHYLLSIDE HEALTHCARE,300000020478499
Portsmouth City Council,PCC,Housing Revenue Account,"Rents, Rates, Taxes and Other Charges","Housing, Neighbourhood and Building Services",Premises-Related Expenditure,Rates,25-Aug-22,6660294,153,OTHER LOCAL AUTHORITY,HAVANT BOROUGH COUNCIL,300000020457057
Portsmouth City Council,PCC,Other,Suspense and Capital Schemes,"Housing, Neighbourhood and Building Services",Supplies and Services,Services,02-Aug-22,6655208,"1,965.60",LIMITED COMPANY,LIFTABILITY LTD,300000020458172
Portsmouth City Council,PCC,Children's and Education Services,Safeguarding Children and Young Peoples Services,Children's Services and Education,Third Party Payments,Other establishments,01-Aug-22,6654973,413.72,SUPPLIER,COMPASS FOSTERING LIMITED,300000020462668
Portsmouth City Council,PCC,Children's and Education Services,Safeguarding Children and Young Peoples Services,Children's Services and Education,Third Party Payments,Other establishments,01-Aug-22,6654973,517.15,SUPPLIER,COMPASS FOSTERING LIMITED,300000020462668
Portsmouth City Council,PCC,Children's and Education Services,Safeguarding Children and Young Peoples Services,Children's Services and Education,Third Party Payments,Other establishments,01-Aug-22,6654973,724.01,SUPPLIER,COMPASS FOSTERING LIMITED,300000020462668
Portsmouth City Council,PCC,Children's and Education Services,Safeguarding Children and Young Peoples Services,Children's Services and Education,Third Party Payments,Other establishments,01-Aug-22,6654973,724.01,SUPPLIER,COMPASS FOSTERING LIMITED,300000020462668
Portsmouth City Council,PCC,Children's and Education Services,Safeguarding Children and Young Peoples Services,Children's Services and Education,Third Party Payments,Other establishments,01-Aug-22,6654973,724.01,SUPPLIER,COMPASS FOSTERING LIMITED,300000020462668
Portsmouth City Council,PCC,Children's and Education Services,Family Support Services,Children's Services and Education,Third Party Payments,Other establishments,05-Aug-22,6656260,950,SUPPLIER,Classified as 'personal data' (under the Data Protection Act 2018),300000194059597
Portsmouth City Council,PCC,Housing Services,Housing Strategy,"Housing, Neighbourhood and Building Services",Income,Customer and client receipts,02-Aug-22,6655337,-451.5,LIMITED COMPANY,LIFTECH SYSTEMS (SE) LIMITED,300000020461913
Portsmouth City Council,PCC,Other,Suspense and Capital Schemes,"Housing, Neighbourhood and Building Services",Supplies and Services,Services,02-Aug-22,6655337,541.8,LIMITED COMPANY,LIFTECH SYSTEMS (SE) LIMITED,300000020461913
Portsmouth City Council,PCC,Other,Suspense and Capital Schemes,"Housing, Neighbourhood and Building Services",Supplies and Services,Services,02-Aug-22,6655337,"3,612.00",LIMITED COMPANY,LIFTECH SYSTEMS (SE) LIMITED,300000020461913
Portsmouth City Council,PCC,Children's and Education Services,Family Support Services,Children's Services and Education,Third Party Payments,Other establishments,03-Aug-22,6655709,900,SUPPLIER,HOPE INTO ACTION PORTSMOUTH,300000020472723
Portsmouth City Council,PCC,Children's and Education Services,Asylum seekers,Children's Services and Education,Third Party Payments,Other establishments,01-Aug-22,6654919,474.3,SUPPLIER,BANYA FAMILY PLACEMENT AGENCY LTD,300000020481029
Portsmouth City Council,PCC,Children's and Education Services,Asylum seekers,Children's Services and Education,Third Party Payments,Other establishments,01-Aug-22,6654919,592.88,SUPPLIER,BANYA FAMILY PLACEMENT AGENCY LTD,300000020481029
Portsmouth City Council,PCC,Children's and Education Services,Asylum seekers,Children's Services and Education,Third Party Payments,Other establishments,01-Aug-22,6654919,830.03,SUPPLIER,BANYA FAMILY PLACEMENT AGENCY LTD,300000020481029
Portsmouth City Council,PCC,Children's and Education Services,Asylum seekers,Children's Services and Education,Third Party Payments,Other establishments,01-Aug-22,6654919,830.03,SUPPLIER,BANYA FAMILY PLACEMENT AGENCY LTD,300000020481029
Portsmouth City Council,PCC,Children's and Education Services,Asylum seekers,Children's Services and Education,Third Party Payments,Other establishments,01-Aug-22,6654919,830.03,SUPPLIER,BANYA FAMILY PLACEMENT AGENCY LTD,300000020481029
Portsmouth City Council,PCC,Children's and Education Services,Safeguarding Children and Young Peoples Services,Children's Services and Education,Third Party Payments,Other establishments,03-Aug-22,6655420,-10,SUPPLIER,LETOMBO LTD,300000020466350
Portsmouth City Council,PCC,Children's and Education Services,Safeguarding Children and Young Peoples Services,Children's Services and Education,Third Party Payments,Other establishments,03-Aug-22,6655420,-10,SUPPLIER,LETOMBO LTD,300000020466350
Portsmouth City Council,PCC,Children's and Education Services,Safeguarding Children and Young Peoples Services,Children's Services and Education,Third Party Payments,Other establishments,03-Aug-22,6655420,-10,SUPPLIER,LETOMBO LTD,300000020466350
Portsmouth City Council,PCC,Children's and Education Services,Safeguarding Children and Young Peoples Services,Children's Services and Education,Third Party Payments,Other establishments,03-Aug-22,6655420,-10,SUPPLIER,LETOMBO LTD,300000020466350
Portsmouth City Council,PCC,Children's and Education Services,Safeguarding Children and Young Peoples Services,Children's Services and Education,Third Party Payments,Other establishments,03-Aug-22,6655420,-10,SUPPLIER,LETOMBO LTD,300000020466350
Portsmouth City Council,PCC,Children's and Education Services,Safeguarding Children and Young Peoples Services,Children's Services and Education,Third Party Payments,Other establishments,03-Aug-22,6655420,-10,SUPPLIER,LETOMBO LTD,300000020466350
Portsmouth City Council,PCC,Children's and Education Services,Safeguarding Children and Young Peoples Services,Children's Services and Education,Third Party Payments,Other establishments,03-Aug-22,6655420,-10,SUPPLIER,LETOMBO LTD,300000020466350
Portsmouth City Council,PCC,Children's and Education Services,Safeguarding Children and Young Peoples Services,Children's Services and Education,Third Party Payments,Other establishments,03-Aug-22,6655420,-10,SUPPLIER,LETOMBO LTD,300000020466350
Portsmouth City Council,PCC,Children's and Education Services,Safeguarding Children and Young Peoples Services,Children's Services and Education,Third Party Payments,Other establishments,03-Aug-22,6655420,-10,SUPPLIER,LETOMBO LTD,300000020466350
Portsmouth City Council,PCC,Children's and Education Services,Safeguarding Children and Young Peoples Services,Children's Services and Education,Third Party Payments,Other establishments,03-Aug-22,6655420,-10,SUPPLIER,LETOMBO LTD,300000020466350
Portsmouth City Council,PCC,Children's and Education Services,Safeguarding Children and Young Peoples Services,Children's Services and Education,Third Party Payments,Other establishments,03-Aug-22,6655420,-10,SUPPLIER,LETOMBO LTD,300000020466350
Portsmouth City Council,PCC,Children's and Education Services,Safeguarding Children and Young Peoples Services,Children's Services and Education,Third Party Payments,Other establishments,03-Aug-22,6655420,-10,SUPPLIER,LETOMBO LTD,300000020466350
Portsmouth City Council,PCC,Children's and Education Services,Safeguarding Children and Young Peoples Services,Children's Services and Education,Third Party Payments,Other establishments,03-Aug-22,6655420,-7.14,SUPPLIER,LETOMBO LTD,300000020466350
Portsmouth City Council,PCC,Children's and Education Services,Safeguarding Children and Young Peoples Services,Children's Services and Education,Third Party Payments,Other establishments,03-Aug-22,6655420,-2.86,SUPPLIER,LETOMBO LTD,300000020466350
Portsmouth City Council,PCC,Children's and Education Services,Safeguarding Children and Young Peoples Services,Children's Services and Education,Third Party Payments,Other establishments,03-Aug-22,6655420,16.54,SUPPLIER,LETOMBO LTD,300000020466350
Portsmouth City Council,PCC,Children's and Education Services,Safeguarding Children and Young Peoples Services,Children's Services and Education,Third Party Payments,Other establishments,03-Aug-22,6655420,41.36,SUPPLIER,LETOMBO LTD,300000020466350
Portsmouth City Council,PCC,Children's and Education Services,Safeguarding Children and Young Peoples Services,Children's Services and Education,Third Party Payments,Other establishments,03-Aug-22,6655420,57.9,SUPPLIER,LETOMBO LTD,300000020466350
Portsmouth City Council,PCC,Children's and Education Services,Safeguarding Children and Young Peoples Services,Children's Services and Education,Third Party Payments,Other establishments,03-Aug-22,6655420,57.9,SUPPLIER,LETOMBO LTD,300000020466350
Portsmouth City Council,PCC,Children's and Education Services,Safeguarding Children and Young Peoples Services,Children's Services and Education,Third Party Payments,Other establishments,03-Aug-22,6655420,57.9,SUPPLIER,LETOMBO LTD,300000020466350
Portsmouth City Council,PCC,Children's and Education Services,Safeguarding Children and Young Peoples Services,Children's Services and Education,Third Party Payments,Other establishments,03-Aug-22,6655420,57.9,SUPPLIER,LETOMBO LTD,300000020466350
Portsmouth City Council,PCC,Children's and Education Services,Safeguarding Children and Young Peoples Services,Children's Services and Education,Third Party Payments,Other establishments,03-Aug-22,6655420,57.9,SUPPLIER,LETOMBO LTD,300000020466350
Portsmouth City Council,PCC,Children's and Education Services,Safeguarding Children and Young Peoples Services,Children's Services and Education,Third Party Payments,Other establishments,03-Aug-22,6655420,57.9,SUPPLIER,LETOMBO LTD,300000020466350
Portsmouth City Council,PCC,Children's and Education Services,Safeguarding Children and Young Peoples Services,Children's Services and Education,Third Party Payments,Other establishments,03-Aug-22,6655420,57.9,SUPPLIER,LETOMBO LTD,300000020466350
Portsmouth City Council,PCC,Children's and Education Services,Safeguarding Children and Young Peoples Services,Children's Services and Education,Third Party Payments,Other establishments,03-Aug-22,6655420,57.9,SUPPLIER,LETOMBO LTD,300000020466350
Portsmouth City Council,PCC,Children's and Education Services,Safeguarding Children and Young Peoples Services,Children's Services and Education,Third Party Payments,Other establishments,03-Aug-22,6655420,57.9,SUPPLIER,LETOMBO LTD,300000020466350
Portsmouth City Council,PCC,Children's and Education Services,Safeguarding Children and Young Peoples Services,Children's Services and Education,Third Party Payments,Other establishments,03-Aug-22,6655420,57.9,SUPPLIER,LETOMBO LTD,300000020466350
Portsmouth City Council,PCC,Children's and Education Services,Safeguarding Children and Young Peoples Services,Children's Services and Education,Third Party Payments,Other establishments,03-Aug-22,6655420,57.9,SUPPLIER,LETOMBO LTD,300000020466350
Portsmouth City Council,PCC,Children's and Education Services,Safeguarding Children and Young Peoples Services,Children's Services and Education,Third Party Payments,Other establishments,03-Aug-22,6655420,57.9,SUPPLIER,LETOMBO LTD,300000020466350
Portsmouth City Council,PCC,Children's and Education Services,Safeguarding Children and Young Peoples Services,Children's Services and Education,Third Party Payments,Other establishments,03-Aug-22,6655420,244.29,SUPPLIER,LETOMBO LTD,300000020466350
Portsmouth City Council,PCC,Children's and Education Services,Safeguarding Children and Young Peoples Services,Children's Services and Education,Third Party Payments,Other establishments,03-Aug-22,6655420,610.71,SUPPLIER,LETOMBO LTD,300000020466350
Portsmouth City Council,PCC,Children's and Education Services,Safeguarding Children and Young Peoples Services,Children's Services and Education,Third Party Payments,Other establishments,03-Aug-22,6655420,855,SUPPLIER,LETOMBO LTD,300000020466350
Portsmouth City Council,PCC,Children's and Education Services,Safeguarding Children and Young Peoples Services,Children's Services and Education,Third Party Payments,Other establishments,03-Aug-22,6655420,855,SUPPLIER,LETOMBO LTD,300000020466350
Portsmouth City Council,PCC,Children's and Education Services,Safeguarding Children and Young Peoples Services,Children's Services and Education,Third Party Payments,Other establishments,03-Aug-22,6655420,855,SUPPLIER,LETOMBO LTD,300000020466350
Portsmouth City Council,PCC,Children's and Education Services,Safeguarding Children and Young Peoples Services,Children's Services and Education,Third Party Payments,Other establishments,03-Aug-22,6655420,855,SUPPLIER,LETOMBO LTD,300000020466350
Portsmouth City Council,PCC,Children's and Education Services,Safeguarding Children and Young Peoples Services,Children's Services and Education,Third Party Payments,Other establishments,03-Aug-22,6655420,855,SUPPLIER,LETOMBO LTD,300000020466350
Portsmouth City Council,PCC,Children's and Education Services,Safeguarding Children and Young Peoples Services,Children's Services and Education,Third Party Payments,Other establishments,03-Aug-22,6655420,855,SUPPLIER,LETOMBO LTD,300000020466350
Portsmouth City Council,PCC,Children's and Education Services,Safeguarding Children and Young Peoples Services,Children's Services and Education,Third Party Payments,Other establishments,03-Aug-22,6655420,855,SUPPLIER,LETOMBO LTD,300000020466350
Portsmouth City Council,PCC,Children's and Education Services,Safeguarding Children and Young Peoples Services,Children's Services and Education,Third Party Payments,Other establishments,03-Aug-22,6655420,855,SUPPLIER,LETOMBO LTD,300000020466350
Portsmouth City Council,PCC,Children's and Education Services,Safeguarding Children and Young Peoples Services,Children's Services and Education,Third Party Payments,Other establishments,03-Aug-22,6655420,855,SUPPLIER,LETOMBO LTD,300000020466350
Portsmouth City Council,PCC,Children's and Education Services,Safeguarding Children and Young Peoples Services,Children's Services and Education,Third Party Payments,Other establishments,03-Aug-22,6655420,855,SUPPLIER,LETOMBO LTD,300000020466350
Portsmouth City Council,PCC,Children's and Education Services,Safeguarding Children and Young Peoples Services,Children's Services and Education,Third Party Payments,Other establishments,03-Aug-22,6655420,855,SUPPLIER,LETOMBO LTD,300000020466350
Portsmouth City Council,PCC,Children's and Education Services,Safeguarding Children and Young Peoples Services,Children's Services and Education,Third Party Payments,Other establishments,03-Aug-22,6655420,855,SUPPLIER,LETOMBO LTD,300000020466350
Portsmouth City Council,PCC,Adult Social Care,Learning Disability Support Adults (18 - 64),Adult Care,Third Party Payments,Other establishments,25-Aug-22,6660364,661.23,SUPPLIER, ACHIEVE TOGETHER LIMITED,300000020469986
Portsmouth City Council,PCC,Housing Revenue Account,"Rents, Rates, Taxes and Other Charges","Housing, Neighbourhood and Building Services",Premises-Related Expenditure,Rates,25-Aug-22,6660294,179,OTHER LOCAL AUTHORITY,HAVANT BOROUGH COUNCIL,300000020457057
Portsmouth City Council,PCC,Adult Social Care,Learning Disability Support Adults (18 - 64),Adult Care,Third Party Payments,Other establishments,25-Aug-22,6660364,661.23,SUPPLIER, ACHIEVE TOGETHER LIMITED,300000020469986
Portsmouth City Council,PCC,Adult Social Care,Learning Disability Support Adults (18 - 64),Adult Care,Third Party Payments,Other establishments,25-Aug-22,6660364,881.64,SUPPLIER, ACHIEVE TOGETHER LIMITED,300000020469986
Portsmouth City Council,PCC,Adult Social Care,Learning Disability Support Adults (18 - 64),Adult Care,Third Party Payments,Other establishments,25-Aug-22,6660364,"1,586.95",SUPPLIER, ACHIEVE TOGETHER LIMITED,300000020469986
Portsmouth City Council,PCC,Adult Social Care,Learning Disability Support Adults (18 - 64),Adult Care,Third Party Payments,Other establishments,25-Aug-22,6660364,"1,653.08",SUPPLIER, ACHIEVE TOGETHER LIMITED,300000020469986
Portsmouth City Council,PCC,Adult Social Care,Learning Disability Support Adults (18 - 64),Adult Care,Third Party Payments,Other establishments,25-Aug-22,6660364,"1,653.08",SUPPLIER, ACHIEVE TOGETHER LIMITED,300000020469986
Portsmouth City Council,PCC,Adult Social Care,Learning Disability Support Adults (18 - 64),Adult Care,Third Party Payments,Other establishments,25-Aug-22,6660364,"1,719.20",SUPPLIER, ACHIEVE TOGETHER LIMITED,300000020469986
Portsmouth City Council,PCC,Adult Social Care,Learning Disability Support Adults (18 - 64),Adult Care,Third Party Payments,Other establishments,25-Aug-22,6660364,"1,818.38",SUPPLIER, ACHIEVE TOGETHER LIMITED,300000020469986
Portsmouth City Council,PCC,Adult Social Care,Learning Disability Support Adults (18 - 64),Adult Care,Third Party Payments,Other establishments,25-Aug-22,6660364,"3,504.52",SUPPLIER, ACHIEVE TOGETHER LIMITED,300000020469986
Portsmouth City Council,PCC,Adult Social Care,Learning Disability Support Adults (18 - 64),Adult Care,Third Party Payments,Other establishments,25-Aug-22,6660364,"3,695.54",SUPPLIER, ACHIEVE TOGETHER LIMITED,300000020469986
Portsmouth City Council,PCC,Adult Social Care,Learning Disability Support Adults (18 - 64),Adult Care,Third Party Payments,Other establishments,25-Aug-22,6660364,"3,716.11",SUPPLIER, ACHIEVE TOGETHER LIMITED,300000020469986
Portsmouth City Council,PCC,Adult Social Care,Learning Disability Support Adults (18 - 64),Adult Care,Third Party Payments,Other establishments,25-Aug-22,6660364,"3,889.50",SUPPLIER, ACHIEVE TOGETHER LIMITED,300000020469986
Portsmouth City Council,PCC,Adult Social Care,Learning Disability Support Adults (18 - 64),Adult Care,Third Party Payments,Other establishments,25-Aug-22,6660364,"4,531.63",SUPPLIER, ACHIEVE TOGETHER LIMITED,300000020469986
Portsmouth City Council,PCC,Adult Social Care,Learning Disability Support Adults (18 - 64),Adult Care,Third Party Payments,Other establishments,25-Aug-22,6660364,"4,555.14",SUPPLIER, ACHIEVE TOGETHER LIMITED,300000020469986
Portsmouth City Council,PCC,Adult Social Care,Learning Disability Support Adults (18 - 64),Adult Care,Third Party Payments,Other establishments,25-Aug-22,6660364,"4,643.30",SUPPLIER, ACHIEVE TOGETHER LIMITED,300000020469986
Portsmouth City Council,PCC,Adult Social Care,Learning Disability Support Adults (18 - 64),Adult Care,Third Party Payments,Other establishments,25-Aug-22,6660364,"4,770.41",SUPPLIER, ACHIEVE TOGETHER LIMITED,300000020469986
Portsmouth City Council,PCC,Adult Social Care,Learning Disability Support Adults (18 - 64),Adult Care,Third Party Payments,Other establishments,25-Aug-22,6660364,"6,818.02",SUPPLIER, ACHIEVE TOGETHER LIMITED,300000020469986
Portsmouth City Council,PCC,Adult Social Care,Physical Support Older People (85+),Adult Care,Third Party Payments,Other establishments,16-Aug-22,6658091,"1,132.60",SUPPLIER,ABICARE SERVICES LTD,300000020470310
Portsmouth City Council,PCC,Adult Social Care,Physical Support Older People (85+),Adult Care,Third Party Payments,Other establishments,16-Aug-22,6658091,"2,104.65",SUPPLIER,ABICARE SERVICES LTD,300000020470310
Portsmouth City Council,PCC,Adult Social Care,Physical Support Older People (85+),Adult Care,Third Party Payments,Other establishments,16-Aug-22,6658113,78.56,SUPPLIER,ADMIRAL CARE LTD,300000020477405
Portsmouth City Council,PCC,Adult Social Care,Physical Support Older People (85+),Adult Care,Third Party Payments,Other establishments,16-Aug-22,6658113,78.56,SUPPLIER,ADMIRAL CARE LTD,300000020477405
Portsmouth City Council,PCC,Adult Social Care,Social Support - Support for Carer,Adult Care,Third Party Payments,Other establishments,16-Aug-22,6658113,133.44,SUPPLIER,ADMIRAL CARE LTD,300000020477405
Portsmouth City Council,PCC,Adult Social Care,Information and Early Intervention,Adult Care,Third Party Payments,Other establishments,16-Aug-22,6658113,135.52,SUPPLIER,ADMIRAL CARE LTD,300000020477405
Portsmouth City Council,PCC,Adult Social Care,Mental Health Support Older People (65 - 74),Adult Care,Third Party Payments,Other establishments,16-Aug-22,6658113,154.88,SUPPLIER,ADMIRAL CARE LTD,300000020477405
Portsmouth City Council,PCC,Other,Suspense and Capital Schemes,Portsmouth International Port,Supplies and Services,Miscellaneous expenses,05-Aug-22,6656405,"2,121.53",LIMITED COMPANY,ENSIGN HIGHWAYS LTD,300000020461919
Portsmouth City Council,PCC,Housing Revenue Account,"Rents, Rates, Taxes and Other Charges","Housing, Neighbourhood and Building Services",Premises-Related Expenditure,Rates,25-Aug-22,6660294,132,OTHER LOCAL AUTHORITY,HAVANT BOROUGH COUNCIL,300000020457057
Portsmouth City Council,PCC,Adult Social Care,Physical Support Older People (85+),Adult Care,Third Party Payments,Other establishments,16-Aug-22,6658113,154.88,SUPPLIER,ADMIRAL CARE LTD,300000020477405
Portsmouth City Council,PCC,Adult Social Care,Mental Health Support Older People (65 - 74),Adult Care,Third Party Payments,Other establishments,16-Aug-22,6658113,174.24,SUPPLIER,ADMIRAL CARE LTD,300000020477405
Portsmouth City Council,PCC,Adult Social Care,Mental Health Support Older People (65 - 74),Adult Care,Third Party Payments,Other establishments,16-Aug-22,6658113,174.24,SUPPLIER,ADMIRAL CARE LTD,300000020477405
Portsmouth City Council,PCC,Adult Social Care,Mental Health Support Older People (65 - 74),Adult Care,Third Party Payments,Other establishments,16-Aug-22,6658113,174.24,SUPPLIER,ADMIRAL CARE LTD,300000020477405
Portsmouth City Council,PCC,Adult Social Care,Mental Health Support Older People (65 - 74),Adult Care,Third Party Payments,Other establishments,16-Aug-22,6658113,174.24,SUPPLIER,ADMIRAL CARE LTD,300000020477405
Portsmouth City Council,PCC,Adult Social Care,Mental Health Support Older People (65 - 74),Adult Care,Third Party Payments,Other establishments,16-Aug-22,6658113,184.4,SUPPLIER,ADMIRAL CARE LTD,300000020477405
Portsmouth City Council,PCC,Adult Social Care,Mental Health Support Older People (65 - 74),Adult Care,Third Party Payments,Other establishments,16-Aug-22,6658113,203.28,SUPPLIER,ADMIRAL CARE LTD,300000020477405
Portsmouth City Council,PCC,Adult Social Care,Mental Health Support Older People (65 - 74),Adult Care,Third Party Payments,Other establishments,16-Aug-22,6658113,230.5,SUPPLIER,ADMIRAL CARE LTD,300000020477405
Portsmouth City Council,PCC,Adult Social Care,Mental Health Support Older People (65 - 74),Adult Care,Third Party Payments,Other establishments,16-Aug-22,6658113,261.36,SUPPLIER,ADMIRAL CARE LTD,300000020477405
Portsmouth City Council,PCC,Adult Social Care,Social Support - Support for Carer,Adult Care,Third Party Payments,Other establishments,16-Aug-22,6658113,266.88,SUPPLIER,ADMIRAL CARE LTD,300000020477405
Portsmouth City Council,PCC,Adult Social Care,Physical Support Older People (85+),Adult Care,Third Party Payments,Other establishments,16-Aug-22,6658113,271.04,SUPPLIER,ADMIRAL CARE LTD,300000020477405
Portsmouth City Council,PCC,Adult Social Care,Physical Support Older People (85+),Adult Care,Third Party Payments,Other establishments,16-Aug-22,6658113,271.04,SUPPLIER,ADMIRAL CARE LTD,300000020477405
Portsmouth City Council,PCC,Adult Social Care,Physical Support Older People (85+),Adult Care,Third Party Payments,Other establishments,16-Aug-22,6658113,319.44,SUPPLIER,ADMIRAL CARE LTD,300000020477405
Portsmouth City Council,PCC,Adult Social Care,Physical Support Older People (85+),Adult Care,Third Party Payments,Other establishments,16-Aug-22,6658113,319.44,SUPPLIER,ADMIRAL CARE LTD,300000020477405
Portsmouth City Council,PCC,Adult Social Care,Physical Support Older People (85+),Adult Care,Third Party Payments,Other establishments,16-Aug-22,6658113,367.84,SUPPLIER,ADMIRAL CARE LTD,300000020477405
Portsmouth City Council,PCC,Adult Social Care,Physical Support Older People (85+),Adult Care,Third Party Payments,Other establishments,16-Aug-22,6658113,367.84,SUPPLIER,ADMIRAL CARE LTD,300000020477405
Portsmouth City Council,PCC,Adult Social Care,Social Support - Support for Carer,Adult Care,Third Party Payments,Other establishments,16-Aug-22,6658113,400.32,SUPPLIER,ADMIRAL CARE LTD,300000020477405
Portsmouth City Council,PCC,Adult Social Care,Social Support - Support for Carer,Adult Care,Third Party Payments,Other establishments,16-Aug-22,6658113,400.32,SUPPLIER,ADMIRAL CARE LTD,300000020477405
Portsmouth City Council,PCC,Adult Social Care,Social Support - Support for Carer,Adult Care,Third Party Payments,Other establishments,16-Aug-22,6658113,400.32,SUPPLIER,ADMIRAL CARE LTD,300000020477405
Portsmouth City Council,PCC,Adult Social Care,Physical Support Older People (85+),Adult Care,Third Party Payments,Other establishments,16-Aug-22,6658113,503.36,SUPPLIER,ADMIRAL CARE LTD,300000020477405
Portsmouth City Council,PCC,Adult Social Care,Physical Support Older People (85+),Adult Care,Third Party Payments,Other establishments,16-Aug-22,6658113,553.2,SUPPLIER,ADMIRAL CARE LTD,300000020477405
Portsmouth City Council,PCC,Adult Social Care,Mental Health Support Older People (65 - 74),Adult Care,Third Party Payments,Other establishments,16-Aug-22,6658113,619.52,SUPPLIER,ADMIRAL CARE LTD,300000020477405
Portsmouth City Council,PCC,Adult Social Care,Physical Support Older People (85+),Adult Care,Third Party Payments,Other establishments,16-Aug-22,6658113,677.6,SUPPLIER,ADMIRAL CARE LTD,300000020477405
Portsmouth City Council,PCC,Adult Social Care,Physical Support Older People (85+),Adult Care,Third Party Payments,Other establishments,16-Aug-22,6658113,677.6,SUPPLIER,ADMIRAL CARE LTD,300000020477405
Portsmouth City Council,PCC,Housing Revenue Account,"Rents, Rates, Taxes and Other Charges","Housing, Neighbourhood and Building Services",Premises-Related Expenditure,Rates,25-Aug-22,6660294,134,OTHER LOCAL AUTHORITY,HAVANT BOROUGH COUNCIL,300000020457057
Portsmouth City Council,PCC,Housing Services,Housing Strategy,"Housing, Neighbourhood and Building Services",Income,Customer and client receipts,02-Aug-22,6655208,-465.75,LIMITED COMPANY,LIFTABILITY LTD,300000020458172
Portsmouth City Council,PCC,Other,Suspense and Capital Schemes,"Housing, Neighbourhood and Building Services",Supplies and Services,Services,02-Aug-22,6655208,558.9,LIMITED COMPANY,LIFTABILITY LTD,300000020458172
Portsmouth City Council,PCC,Other,Suspense and Capital Schemes,"Housing, Neighbourhood and Building Services",Supplies and Services,Services,02-Aug-22,6655208,"3,726.00",LIMITED COMPANY,LIFTABILITY LTD,300000020458172
Portsmouth City Council,PCC,Children's and Education Services,Children Looked After,Children's Services and Education,Third Party Payments,Other establishments,01-Aug-22,6654980,-10,SUPPLIER,STILL WATERS CARE SERVICES LTD,300000020474495
Portsmouth City Council,PCC,Children's and Education Services,Children Looked After,Children's Services and Education,Third Party Payments,Other establishments,01-Aug-22,6654980,-10,SUPPLIER,STILL WATERS CARE SERVICES LTD,300000020474495
Portsmouth City Council,PCC,Children's and Education Services,Children Looked After,Children's Services and Education,Third Party Payments,Other establishments,01-Aug-22,6654980,-10,SUPPLIER,STILL WATERS CARE SERVICES LTD,300000020474495
Portsmouth City Council,PCC,Children's and Education Services,Children Looked After,Children's Services and Education,Third Party Payments,Other establishments,01-Aug-22,6654980,-7.14,SUPPLIER,STILL WATERS CARE SERVICES LTD,300000020474495
Portsmouth City Council,PCC,Children's and Education Services,Children Looked After,Children's Services and Education,Third Party Payments,Other establishments,01-Aug-22,6654980,-5.71,SUPPLIER,STILL WATERS CARE SERVICES LTD,300000020474495
Portsmouth City Council,PCC,Children's and Education Services,Children Looked After,Children's Services and Education,Third Party Payments,Other establishments,01-Aug-22,6654980,109.71,SUPPLIER,STILL WATERS CARE SERVICES LTD,300000020474495
Portsmouth City Council,PCC,Children's and Education Services,Children Looked After,Children's Services and Education,Third Party Payments,Other establishments,01-Aug-22,6654980,137.14,SUPPLIER,STILL WATERS CARE SERVICES LTD,300000020474495
Portsmouth City Council,PCC,Children's and Education Services,Children Looked After,Children's Services and Education,Third Party Payments,Other establishments,01-Aug-22,6654980,192,SUPPLIER,STILL WATERS CARE SERVICES LTD,300000020474495
Portsmouth City Council,PCC,Children's and Education Services,Children Looked After,Children's Services and Education,Third Party Payments,Other establishments,01-Aug-22,6654980,192,SUPPLIER,STILL WATERS CARE SERVICES LTD,300000020474495
Portsmouth City Council,PCC,Children's and Education Services,Children Looked After,Children's Services and Education,Third Party Payments,Other establishments,01-Aug-22,6654980,192,SUPPLIER,STILL WATERS CARE SERVICES LTD,300000020474495
Portsmouth City Council,PCC,Children's and Education Services,Children Looked After,Children's Services and Education,Third Party Payments,Other establishments,01-Aug-22,6654980,514.29,SUPPLIER,STILL WATERS CARE SERVICES LTD,300000020474495
Portsmouth City Council,PCC,Children's and Education Services,Children Looked After,Children's Services and Education,Third Party Payments,Other establishments,01-Aug-22,6654980,642.86,SUPPLIER,STILL WATERS CARE SERVICES LTD,300000020474495
Portsmouth City Council,PCC,Children's and Education Services,Children Looked After,Children's Services and Education,Third Party Payments,Other establishments,01-Aug-22,6654980,900,SUPPLIER,STILL WATERS CARE SERVICES LTD,300000020474495
Portsmouth City Council,PCC,Children's and Education Services,Children Looked After,Children's Services and Education,Third Party Payments,Other establishments,01-Aug-22,6654980,900,SUPPLIER,STILL WATERS CARE SERVICES LTD,300000020474495
Portsmouth City Council,PCC,Children's and Education Services,Children Looked After,Children's Services and Education,Third Party Payments,Other establishments,01-Aug-22,6654980,900,SUPPLIER,STILL WATERS CARE SERVICES LTD,300000020474495
Portsmouth City Council,PCC,Children's and Education Services,Children Looked After,Children's Services and Education,Third Party Payments,Other establishments,01-Aug-22,6654980,-10,SUPPLIER,STILL WATERS CARE SERVICES LTD,300000020474495
Portsmouth City Council,PCC,Children's and Education Services,Children Looked After,Children's Services and Education,Third Party Payments,Other establishments,01-Aug-22,6654980,-10,SUPPLIER,STILL WATERS CARE SERVICES LTD,300000020474495
Portsmouth City Council,PCC,Children's and Education Services,Children Looked After,Children's Services and Education,Third Party Payments,Other establishments,01-Aug-22,6654980,-10,SUPPLIER,STILL WATERS CARE SERVICES LTD,300000020474495
Portsmouth City Council,PCC,Children's and Education Services,Children Looked After,Children's Services and Education,Third Party Payments,Other establishments,01-Aug-22,6654980,-7.14,SUPPLIER,STILL WATERS CARE SERVICES LTD,300000020474495
Portsmouth City Council,PCC,Children's and Education Services,Children Looked After,Children's Services and Education,Third Party Payments,Other establishments,01-Aug-22,6654980,-5.71,SUPPLIER,STILL WATERS CARE SERVICES LTD,300000020474495
Portsmouth City Council,PCC,Children's and Education Services,Children Looked After,Children's Services and Education,Third Party Payments,Other establishments,01-Aug-22,6654980,-0.01,SUPPLIER,STILL WATERS CARE SERVICES LTD,300000020474495
Portsmouth City Council,PCC,Children's and Education Services,Children Looked After,Children's Services and Education,Third Party Payments,Other establishments,01-Aug-22,6654980,192,SUPPLIER,STILL WATERS CARE SERVICES LTD,300000020474495
Portsmouth City Council,PCC,Children's and Education Services,Children Looked After,Children's Services and Education,Third Party Payments,Other establishments,01-Aug-22,6654980,240,SUPPLIER,STILL WATERS CARE SERVICES LTD,300000020474495
Portsmouth City Council,PCC,Children's and Education Services,Children Looked After,Children's Services and Education,Third Party Payments,Other establishments,01-Aug-22,6654980,336,SUPPLIER,STILL WATERS CARE SERVICES LTD,300000020474495
Portsmouth City Council,PCC,Children's and Education Services,Children Looked After,Children's Services and Education,Third Party Payments,Other establishments,01-Aug-22,6654980,336,SUPPLIER,STILL WATERS CARE SERVICES LTD,300000020474495
Portsmouth City Council,PCC,Children's and Education Services,Children Looked After,Children's Services and Education,Third Party Payments,Other establishments,01-Aug-22,6654980,336,SUPPLIER,STILL WATERS CARE SERVICES LTD,300000020474495
Portsmouth City Council,PCC,Children's and Education Services,Children Looked After,Children's Services and Education,Third Party Payments,Other establishments,01-Aug-22,6654980,514.29,SUPPLIER,STILL WATERS CARE SERVICES LTD,300000020474495
Portsmouth City Council,PCC,Children's and Education Services,Children Looked After,Children's Services and Education,Third Party Payments,Other establishments,01-Aug-22,6654980,642.86,SUPPLIER,STILL WATERS CARE SERVICES LTD,300000020474495
Portsmouth City Council,PCC,Children's and Education Services,Children Looked After,Children's Services and Education,Third Party Payments,Other establishments,01-Aug-22,6654980,900,SUPPLIER,STILL WATERS CARE SERVICES LTD,300000020474495
Portsmouth City Council,PCC,Children's and Education Services,Children Looked After,Children's Services and Education,Third Party Payments,Other establishments,01-Aug-22,6654980,900,SUPPLIER,STILL WATERS CARE SERVICES LTD,300000020474495
Portsmouth City Council,PCC,Children's and Education Services,Children Looked After,Children's Services and Education,Third Party Payments,Other establishments,01-Aug-22,6654980,900,SUPPLIER,STILL WATERS CARE SERVICES LTD,300000020474495
Portsmouth City Council,PCC,Children's and Education Services,Safeguarding Children and Young Peoples Services,Children's Services and Education,Third Party Payments,Other establishments,02-Aug-22,6655227,"-1,146.86",SUPPLIER,BUILDING FOUNDATIONS LIMITED,300000020474383
Portsmouth City Council,PCC,Children's and Education Services,Safeguarding Children and Young Peoples Services,Children's Services and Education,Third Party Payments,Other establishments,02-Aug-22,6655227,-0.02,SUPPLIER,BUILDING FOUNDATIONS LIMITED,300000020474383
Portsmouth City Council,PCC,Children's and Education Services,Safeguarding Children and Young Peoples Services,Children's Services and Education,Third Party Payments,Other establishments,02-Aug-22,6655227,7.14,SUPPLIER,BUILDING FOUNDATIONS LIMITED,300000020474383
Portsmouth City Council,PCC,Children's and Education Services,Safeguarding Children and Young Peoples Services,Children's Services and Education,Third Party Payments,Other establishments,02-Aug-22,6655227,14.29,SUPPLIER,BUILDING FOUNDATIONS LIMITED,300000020474383
Portsmouth City Council,PCC,Children's and Education Services,Safeguarding Children and Young Peoples Services,Children's Services and Education,Third Party Payments,Other establishments,02-Aug-22,6655227,50,SUPPLIER,BUILDING FOUNDATIONS LIMITED,300000020474383
Portsmouth City Council,PCC,Children's and Education Services,Safeguarding Children and Young Peoples Services,Children's Services and Education,Third Party Payments,Other establishments,02-Aug-22,6655227,50,SUPPLIER,BUILDING FOUNDATIONS LIMITED,300000020474383
Portsmouth City Council,PCC,Children's and Education Services,Safeguarding Children and Young Peoples Services,Children's Services and Education,Third Party Payments,Other establishments,02-Aug-22,6655227,50,SUPPLIER,BUILDING FOUNDATIONS LIMITED,300000020474383
Portsmouth City Council,PCC,Children's and Education Services,Safeguarding Children and Young Peoples Services,Children's Services and Education,Third Party Payments,Other establishments,02-Aug-22,6655227,50,SUPPLIER,BUILDING FOUNDATIONS LIMITED,300000020474383
Portsmouth City Council,PCC,Children's and Education Services,Safeguarding Children and Young Peoples Services,Children's Services and Education,Third Party Payments,Other establishments,02-Aug-22,6655227,64.29,SUPPLIER,BUILDING FOUNDATIONS LIMITED,300000020474383
Portsmouth City Council,PCC,Children's and Education Services,Safeguarding Children and Young Peoples Services,Children's Services and Education,Third Party Payments,Other establishments,02-Aug-22,6655227,128.57,SUPPLIER,BUILDING FOUNDATIONS LIMITED,300000020474383
Portsmouth City Council,PCC,Children's and Education Services,Safeguarding Children and Young Peoples Services,Children's Services and Education,Third Party Payments,Other establishments,02-Aug-22,6655227,450,SUPPLIER,BUILDING FOUNDATIONS LIMITED,300000020474383
Portsmouth City Council,PCC,Children's and Education Services,Safeguarding Children and Young Peoples Services,Children's Services and Education,Third Party Payments,Other establishments,02-Aug-22,6655227,450,SUPPLIER,BUILDING FOUNDATIONS LIMITED,300000020474383
Portsmouth City Council,PCC,Children's and Education Services,Safeguarding Children and Young Peoples Services,Children's Services and Education,Third Party Payments,Other establishments,02-Aug-22,6655227,450,SUPPLIER,BUILDING FOUNDATIONS LIMITED,300000020474383
Portsmouth City Council,PCC,Children's and Education Services,Safeguarding Children and Young Peoples Services,Children's Services and Education,Third Party Payments,Other establishments,02-Aug-22,6655227,450,SUPPLIER,BUILDING FOUNDATIONS LIMITED,300000020474383
Portsmouth City Council,PCC,Children's and Education Services,Safeguarding Children and Young Peoples Services,Children's Services and Education,Third Party Payments,Other establishments,02-Aug-22,6655227,-515.1,SUPPLIER,BUILDING FOUNDATIONS LIMITED,300000020474383
Portsmouth City Council,PCC,Children's and Education Services,Safeguarding Children and Young Peoples Services,Children's Services and Education,Third Party Payments,Other establishments,02-Aug-22,6655227,-0.01,SUPPLIER,BUILDING FOUNDATIONS LIMITED,300000020474383
Portsmouth City Council,PCC,Children's and Education Services,Safeguarding Children and Young Peoples Services,Children's Services and Education,Third Party Payments,Other establishments,02-Aug-22,6655227,3.57,SUPPLIER,BUILDING FOUNDATIONS LIMITED,300000020474383
Portsmouth City Council,PCC,Children's and Education Services,Safeguarding Children and Young Peoples Services,Children's Services and Education,Third Party Payments,Other establishments,02-Aug-22,6655227,7.14,SUPPLIER,BUILDING FOUNDATIONS LIMITED,300000020474383
Portsmouth City Council,PCC,Children's and Education Services,Safeguarding Children and Young Peoples Services,Children's Services and Education,Third Party Payments,Other establishments,02-Aug-22,6655227,25,SUPPLIER,BUILDING FOUNDATIONS LIMITED,300000020474383
Portsmouth City Council,PCC,Children's and Education Services,Safeguarding Children and Young Peoples Services,Children's Services and Education,Third Party Payments,Other establishments,02-Aug-22,6655227,25,SUPPLIER,BUILDING FOUNDATIONS LIMITED,300000020474383
Portsmouth City Council,PCC,Children's and Education Services,Safeguarding Children and Young Peoples Services,Children's Services and Education,Third Party Payments,Other establishments,02-Aug-22,6655227,25,SUPPLIER,BUILDING FOUNDATIONS LIMITED,300000020474383
Portsmouth City Council,PCC,Children's and Education Services,Safeguarding Children and Young Peoples Services,Children's Services and Education,Third Party Payments,Other establishments,02-Aug-22,6655227,25,SUPPLIER,BUILDING FOUNDATIONS LIMITED,300000020474383
Portsmouth City Council,PCC,Children's and Education Services,Safeguarding Children and Young Peoples Services,Children's Services and Education,Third Party Payments,Other establishments,02-Aug-22,6655227,89.29,SUPPLIER,BUILDING FOUNDATIONS LIMITED,300000020474383
Portsmouth City Council,PCC,Children's and Education Services,Safeguarding Children and Young Peoples Services,Children's Services and Education,Third Party Payments,Other establishments,02-Aug-22,6655227,178.57,SUPPLIER,BUILDING FOUNDATIONS LIMITED,300000020474383
Portsmouth City Council,PCC,Children's and Education Services,Safeguarding Children and Young Peoples Services,Children's Services and Education,Third Party Payments,Other establishments,02-Aug-22,6655227,625,SUPPLIER,BUILDING FOUNDATIONS LIMITED,300000020474383
Portsmouth City Council,PCC,Children's and Education Services,Safeguarding Children and Young Peoples Services,Children's Services and Education,Third Party Payments,Other establishments,02-Aug-22,6655227,625,SUPPLIER,BUILDING FOUNDATIONS LIMITED,300000020474383
Portsmouth City Council,PCC,Children's and Education Services,Safeguarding Children and Young Peoples Services,Children's Services and Education,Third Party Payments,Other establishments,02-Aug-22,6655227,625,SUPPLIER,BUILDING FOUNDATIONS LIMITED,300000020474383
Portsmouth City Council,PCC,Children's and Education Services,Safeguarding Children and Young Peoples Services,Children's Services and Education,Third Party Payments,Other establishments,02-Aug-22,6655227,625,SUPPLIER,BUILDING FOUNDATIONS LIMITED,300000020474383
Portsmouth City Council,PCC,Children's and Education Services,Safeguarding Children and Young Peoples Services,Children's Services and Education,Third Party Payments,Other establishments,02-Aug-22,6655227,-515.1,SUPPLIER,BUILDING FOUNDATIONS LIMITED,300000020474383
Portsmouth City Council,PCC,Children's and Education Services,Safeguarding Children and Young Peoples Services,Children's Services and Education,Third Party Payments,Other establishments,02-Aug-22,6655227,-0.01,SUPPLIER,BUILDING FOUNDATIONS LIMITED,300000020474383
Portsmouth City Council,PCC,Children's and Education Services,Safeguarding Children and Young Peoples Services,Children's Services and Education,Third Party Payments,Other establishments,02-Aug-22,6655227,3.57,SUPPLIER,BUILDING FOUNDATIONS LIMITED,300000020474383
Portsmouth City Council,PCC,Children's and Education Services,Safeguarding Children and Young Peoples Services,Children's Services and Education,Third Party Payments,Other establishments,02-Aug-22,6655227,7.14,SUPPLIER,BUILDING FOUNDATIONS LIMITED,300000020474383
Portsmouth City Council,PCC,Children's and Education Services,Safeguarding Children and Young Peoples Services,Children's Services and Education,Third Party Payments,Other establishments,02-Aug-22,6655227,25,SUPPLIER,BUILDING FOUNDATIONS LIMITED,300000020474383
Portsmouth City Council,PCC,Children's and Education Services,Safeguarding Children and Young Peoples Services,Children's Services and Education,Third Party Payments,Other establishments,02-Aug-22,6655227,25,SUPPLIER,BUILDING FOUNDATIONS LIMITED,300000020474383
Portsmouth City Council,PCC,Children's and Education Services,Safeguarding Children and Young Peoples Services,Children's Services and Education,Third Party Payments,Other establishments,02-Aug-22,6655227,25,SUPPLIER,BUILDING FOUNDATIONS LIMITED,300000020474383
Portsmouth City Council,PCC,Children's and Education Services,Safeguarding Children and Young Peoples Services,Children's Services and Education,Third Party Payments,Other establishments,02-Aug-22,6655227,25,SUPPLIER,BUILDING FOUNDATIONS LIMITED,300000020474383
Portsmouth City Council,PCC,Children's and Education Services,Safeguarding Children and Young Peoples Services,Children's Services and Education,Third Party Payments,Other establishments,02-Aug-22,6655227,89.29,SUPPLIER,BUILDING FOUNDATIONS LIMITED,300000020474383
Portsmouth City Council,PCC,Children's and Education Services,Safeguarding Children and Young Peoples Services,Children's Services and Education,Third Party Payments,Other establishments,02-Aug-22,6655227,178.57,SUPPLIER,BUILDING FOUNDATIONS LIMITED,300000020474383
Portsmouth City Council,PCC,Children's and Education Services,Safeguarding Children and Young Peoples Services,Children's Services and Education,Third Party Payments,Other establishments,02-Aug-22,6655227,625,SUPPLIER,BUILDING FOUNDATIONS LIMITED,300000020474383
Portsmouth City Council,PCC,Children's and Education Services,Safeguarding Children and Young Peoples Services,Children's Services and Education,Third Party Payments,Other establishments,02-Aug-22,6655227,625,SUPPLIER,BUILDING FOUNDATIONS LIMITED,300000020474383
Portsmouth City Council,PCC,Children's and Education Services,Safeguarding Children and Young Peoples Services,Children's Services and Education,Third Party Payments,Other establishments,02-Aug-22,6655227,625,SUPPLIER,BUILDING FOUNDATIONS LIMITED,300000020474383
Portsmouth City Council,PCC,Children's and Education Services,Safeguarding Children and Young Peoples Services,Children's Services and Education,Third Party Payments,Other establishments,02-Aug-22,6655227,625,SUPPLIER,BUILDING FOUNDATIONS LIMITED,300000020474383
Portsmouth City Council,PCC,Children's and Education Services,Safeguarding Children and Young Peoples Services,Children's Services and Education,Third Party Payments,Other establishments,02-Aug-22,6655227,-515.1,SUPPLIER,BUILDING FOUNDATIONS LIMITED,300000020474383
Portsmouth City Council,PCC,Children's and Education Services,Safeguarding Children and Young Peoples Services,Children's Services and Education,Third Party Payments,Other establishments,02-Aug-22,6655227,-0.01,SUPPLIER,BUILDING FOUNDATIONS LIMITED,300000020474383
Portsmouth City Council,PCC,Children's and Education Services,Safeguarding Children and Young Peoples Services,Children's Services and Education,Third Party Payments,Other establishments,02-Aug-22,6655227,17.86,SUPPLIER,BUILDING FOUNDATIONS LIMITED,300000020474383
Portsmouth City Council,PCC,Children's and Education Services,Safeguarding Children and Young Peoples Services,Children's Services and Education,Third Party Payments,Other establishments,02-Aug-22,6655227,35.71,SUPPLIER,BUILDING FOUNDATIONS LIMITED,300000020474383
Portsmouth City Council,PCC,Children's and Education Services,Safeguarding Children and Young Peoples Services,Children's Services and Education,Third Party Payments,Other establishments,02-Aug-22,6655227,89.29,SUPPLIER,BUILDING FOUNDATIONS LIMITED,300000020474383
Portsmouth City Council,PCC,Children's and Education Services,Safeguarding Children and Young Peoples Services,Children's Services and Education,Third Party Payments,Other establishments,02-Aug-22,6655227,125,SUPPLIER,BUILDING FOUNDATIONS LIMITED,300000020474383
Portsmouth City Council,PCC,Children's and Education Services,Safeguarding Children and Young Peoples Services,Children's Services and Education,Third Party Payments,Other establishments,02-Aug-22,6655227,125,SUPPLIER,BUILDING FOUNDATIONS LIMITED,300000020474383
Portsmouth City Council,PCC,Children's and Education Services,Safeguarding Children and Young Peoples Services,Children's Services and Education,Third Party Payments,Other establishments,02-Aug-22,6655227,125,SUPPLIER,BUILDING FOUNDATIONS LIMITED,300000020474383
Portsmouth City Council,PCC,Children's and Education Services,Safeguarding Children and Young Peoples Services,Children's Services and Education,Third Party Payments,Other establishments,02-Aug-22,6655227,125,SUPPLIER,BUILDING FOUNDATIONS LIMITED,300000020474383
Portsmouth City Council,PCC,Children's and Education Services,Safeguarding Children and Young Peoples Services,Children's Services and Education,Third Party Payments,Other establishments,02-Aug-22,6655227,178.57,SUPPLIER,BUILDING FOUNDATIONS LIMITED,300000020474383
Portsmouth City Council,PCC,Children's and Education Services,Safeguarding Children and Young Peoples Services,Children's Services and Education,Third Party Payments,Other establishments,02-Aug-22,6655227,625,SUPPLIER,BUILDING FOUNDATIONS LIMITED,300000020474383
Portsmouth City Council,PCC,Children's and Education Services,Safeguarding Children and Young Peoples Services,Children's Services and Education,Third Party Payments,Other establishments,02-Aug-22,6655227,625,SUPPLIER,BUILDING FOUNDATIONS LIMITED,300000020474383
Portsmouth City Council,PCC,Children's and Education Services,Safeguarding Children and Young Peoples Services,Children's Services and Education,Third Party Payments,Other establishments,02-Aug-22,6655227,625,SUPPLIER,BUILDING FOUNDATIONS LIMITED,300000020474383
Portsmouth City Council,PCC,Children's and Education Services,Safeguarding Children and Young Peoples Services,Children's Services and Education,Third Party Payments,Other establishments,02-Aug-22,6655227,625,SUPPLIER,BUILDING FOUNDATIONS LIMITED,300000020474383
Portsmouth City Council,PCC,Children's and Education Services,Asylum seekers,Children's Services and Education,Third Party Payments,Other establishments,03-Aug-22,6655412,0.01,SUPPLIER,FAMILY FIRST FOSTERING,300000020483859
Portsmouth City Council,PCC,Children's and Education Services,Asylum seekers,Children's Services and Education,Third Party Payments,Other establishments,03-Aug-22,6655412,522.91,SUPPLIER,FAMILY FIRST FOSTERING,300000020483859
Portsmouth City Council,PCC,Children's and Education Services,Asylum seekers,Children's Services and Education,Third Party Payments,Other establishments,03-Aug-22,6655412,784.37,SUPPLIER,FAMILY FIRST FOSTERING,300000020483859
Portsmouth City Council,PCC,Children's and Education Services,Asylum seekers,Children's Services and Education,Third Party Payments,Other establishments,03-Aug-22,6655412,915.1,SUPPLIER,FAMILY FIRST FOSTERING,300000020483859
Portsmouth City Council,PCC,Children's and Education Services,Asylum seekers,Children's Services and Education,Third Party Payments,Other establishments,03-Aug-22,6655412,915.1,SUPPLIER,FAMILY FIRST FOSTERING,300000020483859
Portsmouth City Council,PCC,Children's and Education Services,Other Children and Family Services,Children's Services and Education,Third Party Payments,Other establishments,03-Aug-22,6655431,-0.01,CHARITY OR VOLUNTARY,TREVI HOUSE LTD,300000121235959
Portsmouth City Council,PCC,Children's and Education Services,Other Children and Family Services,Children's Services and Education,Third Party Payments,Other establishments,03-Aug-22,6655431,542.86,CHARITY OR VOLUNTARY,TREVI HOUSE LTD,300000121235959
Portsmouth City Council,PCC,Children's and Education Services,Other Children and Family Services,Children's Services and Education,Third Party Payments,Other establishments,03-Aug-22,6655431,814.29,CHARITY OR VOLUNTARY,TREVI HOUSE LTD,300000121235959
Portsmouth City Council,PCC,Children's and Education Services,Other Children and Family Services,Children's Services and Education,Third Party Payments,Other establishments,03-Aug-22,6655431,950,CHARITY OR VOLUNTARY,TREVI HOUSE LTD,300000121235959
Portsmouth City Council,PCC,Children's and Education Services,Other Children and Family Services,Children's Services and Education,Third Party Payments,Other establishments,03-Aug-22,6655431,950,CHARITY OR VOLUNTARY,TREVI HOUSE LTD,300000121235959
Portsmouth City Council,PCC,Children's and Education Services,Other Children and Family Services,Children's Services and Education,Third Party Payments,Other establishments,03-Aug-22,6655431,0.01,CHARITY OR VOLUNTARY,TREVI HOUSE LTD,300000121235959
Portsmouth City Council,PCC,Children's and Education Services,Other Children and Family Services,Children's Services and Education,Third Party Payments,Other establishments,03-Aug-22,6655431,135.71,CHARITY OR VOLUNTARY,TREVI HOUSE LTD,300000121235959
Portsmouth City Council,PCC,Children's and Education Services,Other Children and Family Services,Children's Services and Education,Third Party Payments,Other establishments,03-Aug-22,6655431,678.57,CHARITY OR VOLUNTARY,TREVI HOUSE LTD,300000121235959
Portsmouth City Council,PCC,Children's and Education Services,Children Looked After,Children's Services and Education,Third Party Payments,Other establishments,04-Aug-22,6655963,109.5,SUPPLIER,THE CHILDRENS FAMILY TRUST,300000020479545
Portsmouth City Council,PCC,Children's and Education Services,Children Looked After,Children's Services and Education,Third Party Payments,Other establishments,04-Aug-22,6655963,547.5,SUPPLIER,THE CHILDRENS FAMILY TRUST,300000020479545
Portsmouth City Council,PCC,Children's and Education Services,Children Looked After,Children's Services and Education,Third Party Payments,Other establishments,04-Aug-22,6655963,766.5,SUPPLIER,THE CHILDRENS FAMILY TRUST,300000020479545
Portsmouth City Council,PCC,Children's and Education Services,Children Looked After,Children's Services and Education,Third Party Payments,Other establishments,04-Aug-22,6655963,766.5,SUPPLIER,THE CHILDRENS FAMILY TRUST,300000020479545
Portsmouth City Council,PCC,Children's and Education Services,Children Looked After,Children's Services and Education,Third Party Payments,Other establishments,04-Aug-22,6655963,766.5,SUPPLIER,THE CHILDRENS FAMILY TRUST,300000020479545
Portsmouth City Council,PCC,Children's and Education Services,Children Looked After,Children's Services and Education,Third Party Payments,Other establishments,04-Aug-22,6655963,0.04,SUPPLIER,THE CHILDRENS FAMILY TRUST,300000020479545
Portsmouth City Council,PCC,Children's and Education Services,Children Looked After,Children's Services and Education,Third Party Payments,Other establishments,04-Aug-22,6655963,112.17,SUPPLIER,THE CHILDRENS FAMILY TRUST,300000020479545
Portsmouth City Council,PCC,Children's and Education Services,Children Looked After,Children's Services and Education,Third Party Payments,Other establishments,04-Aug-22,6655963,224.34,SUPPLIER,THE CHILDRENS FAMILY TRUST,300000020479545
Portsmouth City Council,PCC,Children's and Education Services,Children Looked After,Children's Services and Education,Third Party Payments,Other establishments,04-Aug-22,6655963,785.18,SUPPLIER,THE CHILDRENS FAMILY TRUST,300000020479545
Portsmouth City Council,PCC,Children's and Education Services,Children Looked After,Children's Services and Education,Third Party Payments,Other establishments,04-Aug-22,6655963,785.18,SUPPLIER,THE CHILDRENS FAMILY TRUST,300000020479545
Portsmouth City Council,PCC,Children's and Education Services,Children Looked After,Children's Services and Education,Third Party Payments,Other establishments,04-Aug-22,6655963,785.18,SUPPLIER,THE CHILDRENS FAMILY TRUST,300000020479545
Portsmouth City Council,PCC,Children's and Education Services,Children Looked After,Children's Services and Education,Third Party Payments,Other establishments,04-Aug-22,6655963,785.18,SUPPLIER,THE CHILDRENS FAMILY TRUST,300000020479545
Portsmouth City Council,PCC,Children's and Education Services,Children Looked After,Children's Services and Education,Third Party Payments,Other establishments,04-Aug-22,6655963,110.61,SUPPLIER,THE CHILDRENS FAMILY TRUST,300000020479545
Portsmouth City Council,PCC,Children's and Education Services,Children Looked After,Children's Services and Education,Third Party Payments,Other establishments,04-Aug-22,6655963,221.22,SUPPLIER,THE CHILDRENS FAMILY TRUST,300000020479545
Portsmouth City Council,PCC,Children's and Education Services,Children Looked After,Children's Services and Education,Third Party Payments,Other establishments,04-Aug-22,6655963,774.27,SUPPLIER,THE CHILDRENS FAMILY TRUST,300000020479545
Portsmouth City Council,PCC,Children's and Education Services,Children Looked After,Children's Services and Education,Third Party Payments,Other establishments,04-Aug-22,6655963,774.27,SUPPLIER,THE CHILDRENS FAMILY TRUST,300000020479545
Portsmouth City Council,PCC,Children's and Education Services,Children Looked After,Children's Services and Education,Third Party Payments,Other establishments,04-Aug-22,6655963,774.27,SUPPLIER,THE CHILDRENS FAMILY TRUST,300000020479545
Portsmouth City Council,PCC,Children's and Education Services,Children Looked After,Children's Services and Education,Third Party Payments,Other establishments,04-Aug-22,6655963,774.27,SUPPLIER,THE CHILDRENS FAMILY TRUST,300000020479545
Portsmouth City Council,PCC,Children's and Education Services,Children Looked After,Children's Services and Education,Third Party Payments,Other establishments,04-Aug-22,6655963,-0.04,SUPPLIER,THE CHILDRENS FAMILY TRUST,300000020479545
Portsmouth City Council,PCC,Children's and Education Services,Children Looked After,Children's Services and Education,Third Party Payments,Other establishments,04-Aug-22,6655963,107.81,SUPPLIER,THE CHILDRENS FAMILY TRUST,300000020479545
Portsmouth City Council,PCC,Children's and Education Services,Children Looked After,Children's Services and Education,Third Party Payments,Other establishments,04-Aug-22,6655963,215.62,SUPPLIER,THE CHILDRENS FAMILY TRUST,300000020479545
Portsmouth City Council,PCC,Children's and Education Services,Children Looked After,Children's Services and Education,Third Party Payments,Other establishments,04-Aug-22,6655963,754.68,SUPPLIER,THE CHILDRENS FAMILY TRUST,300000020479545
Portsmouth City Council,PCC,Children's and Education Services,Children Looked After,Children's Services and Education,Third Party Payments,Other establishments,04-Aug-22,6655963,754.68,SUPPLIER,THE CHILDRENS FAMILY TRUST,300000020479545
Portsmouth City Council,PCC,Children's and Education Services,Children Looked After,Children's Services and Education,Third Party Payments,Other establishments,04-Aug-22,6655963,754.68,SUPPLIER,THE CHILDRENS FAMILY TRUST,300000020479545
Portsmouth City Council,PCC,Children's and Education Services,Children Looked After,Children's Services and Education,Third Party Payments,Other establishments,04-Aug-22,6655963,754.68,SUPPLIER,THE CHILDRENS FAMILY TRUST,300000020479545
Portsmouth City Council,PCC,Children's and Education Services,Children Looked After,Children's Services and Education,Third Party Payments,Other establishments,04-Aug-22,6655963,-0.04,SUPPLIER,THE CHILDRENS FAMILY TRUST,300000020479545
Portsmouth City Council,PCC,Children's and Education Services,Children Looked After,Children's Services and Education,Third Party Payments,Other establishments,04-Aug-22,6655963,110.61,SUPPLIER,THE CHILDRENS FAMILY TRUST,300000020479545
Portsmouth City Council,PCC,Children's and Education Services,Children Looked After,Children's Services and Education,Third Party Payments,Other establishments,04-Aug-22,6655963,221.22,SUPPLIER,THE CHILDRENS FAMILY TRUST,300000020479545
Portsmouth City Council,PCC,Children's and Education Services,Children Looked After,Children's Services and Education,Third Party Payments,Other establishments,04-Aug-22,6655963,774.28,SUPPLIER,THE CHILDRENS FAMILY TRUST,300000020479545
Portsmouth City Council,PCC,Children's and Education Services,Children Looked After,Children's Services and Education,Third Party Payments,Other establishments,04-Aug-22,6655963,774.28,SUPPLIER,THE CHILDRENS FAMILY TRUST,300000020479545
Portsmouth City Council,PCC,Children's and Education Services,Children Looked After,Children's Services and Education,Third Party Payments,Other establishments,04-Aug-22,6655963,774.28,SUPPLIER,THE CHILDRENS FAMILY TRUST,300000020479545
Portsmouth City Council,PCC,Children's and Education Services,Children Looked After,Children's Services and Education,Third Party Payments,Other establishments,04-Aug-22,6655963,774.28,SUPPLIER,THE CHILDRENS FAMILY TRUST,300000020479545
Portsmouth City Council,PCC,Children's and Education Services,Children Looked After,Children's Services and Education,Third Party Payments,Other establishments,04-Aug-22,6655963,219,SUPPLIER,THE CHILDRENS FAMILY TRUST,300000020479545
Portsmouth City Council,PCC,Children's and Education Services,Children Looked After,Children's Services and Education,Third Party Payments,Other establishments,04-Aug-22,6655963,219,SUPPLIER,THE CHILDRENS FAMILY TRUST,300000020479545
Portsmouth City Council,PCC,Children's and Education Services,Asylum seekers,Children's Services and Education,Third Party Payments,Other establishments,08-Aug-22,6656503,-1.42,SUPPLIER,FAMILY FIRST FOSTERING,300000020483859
Portsmouth City Council,PCC,Children's and Education Services,Asylum seekers,Children's Services and Education,Third Party Payments,Other establishments,08-Aug-22,6656503,1.43,SUPPLIER,FAMILY FIRST FOSTERING,300000020483859
Portsmouth City Council,PCC,Children's and Education Services,Asylum seekers,Children's Services and Education,Third Party Payments,Other establishments,08-Aug-22,6656503,364.29,SUPPLIER,FAMILY FIRST FOSTERING,300000020483859
Portsmouth City Council,PCC,Children's and Education Services,Asylum seekers,Children's Services and Education,Third Party Payments,Other establishments,08-Aug-22,6656503,485.71,SUPPLIER,FAMILY FIRST FOSTERING,300000020483859
Portsmouth City Council,PCC,Children's and Education Services,Asylum seekers,Children's Services and Education,Third Party Payments,Other establishments,08-Aug-22,6656503,485.71,SUPPLIER,FAMILY FIRST FOSTERING,300000020483859
Portsmouth City Council,PCC,Children's and Education Services,Asylum seekers,Children's Services and Education,Third Party Payments,Other establishments,08-Aug-22,6656503,607.14,SUPPLIER,FAMILY FIRST FOSTERING,300000020483859
Portsmouth City Council,PCC,Children's and Education Services,Asylum seekers,Children's Services and Education,Third Party Payments,Other establishments,08-Aug-22,6656503,850,SUPPLIER,FAMILY FIRST FOSTERING,300000020483859
Portsmouth City Council,PCC,Children's and Education Services,Asylum seekers,Children's Services and Education,Third Party Payments,Other establishments,08-Aug-22,6656503,850,SUPPLIER,FAMILY FIRST FOSTERING,300000020483859
Portsmouth City Council,PCC,Children's and Education Services,Safeguarding Children and Young Peoples Services,Children's Services and Education,Third Party Payments,Other establishments,08-Aug-22,6656503,0.01,SUPPLIER,FAMILY FIRST FOSTERING,300000020483859
Portsmouth City Council,PCC,Children's and Education Services,Safeguarding Children and Young Peoples Services,Children's Services and Education,Third Party Payments,Other establishments,08-Aug-22,6656503,285.71,SUPPLIER,FAMILY FIRST FOSTERING,300000020483859
Portsmouth City Council,PCC,Children's and Education Services,Safeguarding Children and Young Peoples Services,Children's Services and Education,Third Party Payments,Other establishments,08-Aug-22,6656503,357.14,SUPPLIER,FAMILY FIRST FOSTERING,300000020483859
Portsmouth City Council,PCC,Children's and Education Services,Safeguarding Children and Young Peoples Services,Children's Services and Education,Third Party Payments,Other establishments,08-Aug-22,6656503,500,SUPPLIER,FAMILY FIRST FOSTERING,300000020483859
Portsmouth City Council,PCC,Children's and Education Services,Safeguarding Children and Young Peoples Services,Children's Services and Education,Third Party Payments,Other establishments,08-Aug-22,6656503,500,SUPPLIER,FAMILY FIRST FOSTERING,300000020483859
Portsmouth City Council,PCC,Children's and Education Services,Safeguarding Children and Young Peoples Services,Children's Services and Education,Third Party Payments,Other establishments,08-Aug-22,6656503,500,SUPPLIER,FAMILY FIRST FOSTERING,300000020483859
Portsmouth City Council,PCC,Children's and Education Services,Asylum seekers,Children's Services and Education,Third Party Payments,Other establishments,08-Aug-22,6656503,1,SUPPLIER,FAMILY FIRST FOSTERING,300000020483859
Portsmouth City Council,PCC,Children's and Education Services,Asylum seekers,Children's Services and Education,Third Party Payments,Other establishments,08-Aug-22,6656503,493,SUPPLIER,FAMILY FIRST FOSTERING,300000020483859
Portsmouth City Council,PCC,Children's and Education Services,Asylum seekers,Children's Services and Education,Third Party Payments,Other establishments,08-Aug-22,6656503,616.25,SUPPLIER,FAMILY FIRST FOSTERING,300000020483859
Portsmouth City Council,PCC,Children's and Education Services,Asylum seekers,Children's Services and Education,Third Party Payments,Other establishments,08-Aug-22,6656503,862.75,SUPPLIER,FAMILY FIRST FOSTERING,300000020483859
Portsmouth City Council,PCC,Children's and Education Services,Asylum seekers,Children's Services and Education,Third Party Payments,Other establishments,08-Aug-22,6656503,862.75,SUPPLIER,FAMILY FIRST FOSTERING,300000020483859
Portsmouth City Council,PCC,Children's and Education Services,Asylum seekers,Children's Services and Education,Third Party Payments,Other establishments,08-Aug-22,6656503,862.75,SUPPLIER,FAMILY FIRST FOSTERING,300000020483859
Portsmouth City Council,PCC,Children's and Education Services,Asylum seekers,Children's Services and Education,Third Party Payments,Other establishments,08-Aug-22,6656503,493,SUPPLIER,FAMILY FIRST FOSTERING,300000020483859
Portsmouth City Council,PCC,Children's and Education Services,Asylum seekers,Children's Services and Education,Third Party Payments,Other establishments,08-Aug-22,6656503,616.25,SUPPLIER,FAMILY FIRST FOSTERING,300000020483859
Portsmouth City Council,PCC,Children's and Education Services,Asylum seekers,Children's Services and Education,Third Party Payments,Other establishments,08-Aug-22,6656503,862.75,SUPPLIER,FAMILY FIRST FOSTERING,300000020483859
Portsmouth City Council,PCC,Children's and Education Services,Asylum seekers,Children's Services and Education,Third Party Payments,Other establishments,08-Aug-22,6656503,862.75,SUPPLIER,FAMILY FIRST FOSTERING,300000020483859
Portsmouth City Council,PCC,Children's and Education Services,Asylum seekers,Children's Services and Education,Third Party Payments,Other establishments,08-Aug-22,6656503,862.75,SUPPLIER,FAMILY FIRST FOSTERING,300000020483859
Portsmouth City Council,PCC,Children's and Education Services,Asylum seekers,Children's Services and Education,Third Party Payments,Other establishments,08-Aug-22,6656526,-0.17,PRIVATE PROVIDER,Outset Fostering Agency,300000413803542
Portsmouth City Council,PCC,Children's and Education Services,Asylum seekers,Children's Services and Education,Third Party Payments,Other establishments,08-Aug-22,6656526,457.14,PRIVATE PROVIDER,Outset Fostering Agency,300000413803542
Portsmouth City Council,PCC,Children's and Education Services,Asylum seekers,Children's Services and Education,Third Party Payments,Other establishments,08-Aug-22,6656526,571.43,PRIVATE PROVIDER,Outset Fostering Agency,300000413803542
Portsmouth City Council,PCC,Children's and Education Services,Asylum seekers,Children's Services and Education,Third Party Payments,Other establishments,08-Aug-22,6656526,800,PRIVATE PROVIDER,Outset Fostering Agency,300000413803542
Portsmouth City Council,PCC,Children's and Education Services,Asylum seekers,Children's Services and Education,Third Party Payments,Other establishments,08-Aug-22,6656526,800,PRIVATE PROVIDER,Outset Fostering Agency,300000413803542
Portsmouth City Council,PCC,Children's and Education Services,Asylum seekers,Children's Services and Education,Third Party Payments,Other establishments,08-Aug-22,6656526,800,PRIVATE PROVIDER,Outset Fostering Agency,300000413803542
Portsmouth City Council,PCC,Children's and Education Services,Children Looked After,Children's Services and Education,Third Party Payments,Other establishments,03-Aug-22,6655380,-0.27,SUPPLIER,BLUE SKY FOSTERING,300000020464936
Portsmouth City Council,PCC,Children's and Education Services,Children Looked After,Children's Services and Education,Third Party Payments,Other establishments,03-Aug-22,6655380,110.43,SUPPLIER,BLUE SKY FOSTERING,300000020464936
Portsmouth City Council,PCC,Children's and Education Services,Children Looked After,Children's Services and Education,Third Party Payments,Other establishments,03-Aug-22,6655380,220.86,SUPPLIER,BLUE SKY FOSTERING,300000020464936
Portsmouth City Council,PCC,Children's and Education Services,Children Looked After,Children's Services and Education,Third Party Payments,Other establishments,03-Aug-22,6655380,773,SUPPLIER,BLUE SKY FOSTERING,300000020464936
Portsmouth City Council,PCC,Children's and Education Services,Children Looked After,Children's Services and Education,Third Party Payments,Other establishments,03-Aug-22,6655380,773,SUPPLIER,BLUE SKY FOSTERING,300000020464936
Portsmouth City Council,PCC,Children's and Education Services,Children Looked After,Children's Services and Education,Third Party Payments,Other establishments,03-Aug-22,6655380,773,SUPPLIER,BLUE SKY FOSTERING,300000020464936
Portsmouth City Council,PCC,Children's and Education Services,Children Looked After,Children's Services and Education,Third Party Payments,Other establishments,03-Aug-22,6655380,773,SUPPLIER,BLUE SKY FOSTERING,300000020464936
Portsmouth City Council,PCC,Children's and Education Services,Children Looked After,Children's Services and Education,Third Party Payments,Other establishments,03-Aug-22,6655380,-0.27,SUPPLIER,BLUE SKY FOSTERING,300000020464936
Portsmouth City Council,PCC,Children's and Education Services,Children Looked After,Children's Services and Education,Third Party Payments,Other establishments,03-Aug-22,6655380,110.43,SUPPLIER,BLUE SKY FOSTERING,300000020464936
Portsmouth City Council,PCC,Children's and Education Services,Children Looked After,Children's Services and Education,Third Party Payments,Other establishments,03-Aug-22,6655380,220.86,SUPPLIER,BLUE SKY FOSTERING,300000020464936
Portsmouth City Council,PCC,Children's and Education Services,Children Looked After,Children's Services and Education,Third Party Payments,Other establishments,03-Aug-22,6655380,773,SUPPLIER,BLUE SKY FOSTERING,300000020464936
Portsmouth City Council,PCC,Children's and Education Services,Children Looked After,Children's Services and Education,Third Party Payments,Other establishments,03-Aug-22,6655380,773,SUPPLIER,BLUE SKY FOSTERING,300000020464936
Portsmouth City Council,PCC,Children's and Education Services,Children Looked After,Children's Services and Education,Third Party Payments,Other establishments,03-Aug-22,6655380,773,SUPPLIER,BLUE SKY FOSTERING,300000020464936
Portsmouth City Council,PCC,Children's and Education Services,Children Looked After,Children's Services and Education,Third Party Payments,Other establishments,03-Aug-22,6655380,773,SUPPLIER,BLUE SKY FOSTERING,300000020464936
Portsmouth City Council,PCC,Children's and Education Services,Asylum seekers,Children's Services and Education,Third Party Payments,Other establishments,03-Aug-22,6655412,0.01,SUPPLIER,FAMILY FIRST FOSTERING,300000020483859
Portsmouth City Council,PCC,Children's and Education Services,Asylum seekers,Children's Services and Education,Third Party Payments,Other establishments,03-Aug-22,6655412,522.91,SUPPLIER,FAMILY FIRST FOSTERING,300000020483859
Portsmouth City Council,PCC,Children's and Education Services,Asylum seekers,Children's Services and Education,Third Party Payments,Other establishments,03-Aug-22,6655412,784.37,SUPPLIER,FAMILY FIRST FOSTERING,300000020483859
Portsmouth City Council,PCC,Children's and Education Services,Asylum seekers,Children's Services and Education,Third Party Payments,Other establishments,03-Aug-22,6655412,915.1,SUPPLIER,FAMILY FIRST FOSTERING,300000020483859
Portsmouth City Council,PCC,Children's and Education Services,Children Looked After,Children's Services and Education,Third Party Payments,Other establishments,09-Aug-22,6656750,106,CHARITY OR VOLUNTARY,FRIENDS THERAPEUTIC COMMUNITY TRUST,300000333489551
Portsmouth City Council,PCC,Children's and Education Services,Children Looked After,Children's Services and Education,Third Party Payments,Other establishments,09-Aug-22,6656750,115.5,CHARITY OR VOLUNTARY,FRIENDS THERAPEUTIC COMMUNITY TRUST,300000333489551
Portsmouth City Council,PCC,Children's and Education Services,Children Looked After,Children's Services and Education,Third Party Payments,Other establishments,09-Aug-22,6656750,212,CHARITY OR VOLUNTARY,FRIENDS THERAPEUTIC COMMUNITY TRUST,300000333489551
Portsmouth City Council,PCC,Children's and Education Services,Children Looked After,Children's Services and Education,Third Party Payments,Other establishments,09-Aug-22,6656750,231,CHARITY OR VOLUNTARY,FRIENDS THERAPEUTIC COMMUNITY TRUST,300000333489551
Portsmouth City Council,PCC,Children's and Education Services,Children Looked After,Children's Services and Education,Third Party Payments,Other establishments,09-Aug-22,6656750,726.5,CHARITY OR VOLUNTARY,FRIENDS THERAPEUTIC COMMUNITY TRUST,300000333489551
Portsmouth City Council,PCC,Children's and Education Services,Children Looked After,Children's Services and Education,Third Party Payments,Other establishments,09-Aug-22,6656750,742,CHARITY OR VOLUNTARY,FRIENDS THERAPEUTIC COMMUNITY TRUST,300000333489551
Portsmouth City Council,PCC,Children's and Education Services,Children Looked After,Children's Services and Education,Third Party Payments,Other establishments,09-Aug-22,6656750,742,CHARITY OR VOLUNTARY,FRIENDS THERAPEUTIC COMMUNITY TRUST,300000333489551
Portsmouth City Council,PCC,Children's and Education Services,Children Looked After,Children's Services and Education,Third Party Payments,Other establishments,09-Aug-22,6656750,742,CHARITY OR VOLUNTARY,FRIENDS THERAPEUTIC COMMUNITY TRUST,300000333489551
Portsmouth City Council,PCC,Children's and Education Services,Children Looked After,Children's Services and Education,Third Party Payments,Other establishments,09-Aug-22,6656750,742,CHARITY OR VOLUNTARY,FRIENDS THERAPEUTIC COMMUNITY TRUST,300000333489551
Portsmouth City Council,PCC,Children's and Education Services,Children Looked After,Children's Services and Education,Third Party Payments,Other establishments,09-Aug-22,6656750,808.5,CHARITY OR VOLUNTARY,FRIENDS THERAPEUTIC COMMUNITY TRUST,300000333489551
Portsmouth City Council,PCC,Children's and Education Services,Children Looked After,Children's Services and Education,Third Party Payments,Other establishments,09-Aug-22,6656750,808.5,CHARITY OR VOLUNTARY,FRIENDS THERAPEUTIC COMMUNITY TRUST,300000333489551
Portsmouth City Council,PCC,Children's and Education Services,Children Looked After,Children's Services and Education,Third Party Payments,Other establishments,09-Aug-22,6656750,808.5,CHARITY OR VOLUNTARY,FRIENDS THERAPEUTIC COMMUNITY TRUST,300000333489551
Portsmouth City Council,PCC,Children's and Education Services,Children Looked After,Children's Services and Education,Third Party Payments,Other establishments,09-Aug-22,6656750,808.5,CHARITY OR VOLUNTARY,FRIENDS THERAPEUTIC COMMUNITY TRUST,300000333489551
Portsmouth City Council,PCC,Children's and Education Services,Children Looked After,Children's Services and Education,Third Party Payments,Other establishments,09-Aug-22,6656750,"1,453.00",CHARITY OR VOLUNTARY,FRIENDS THERAPEUTIC COMMUNITY TRUST,300000333489551
Portsmouth City Council,PCC,Children's and Education Services,Children Looked After,Children's Services and Education,Third Party Payments,Other establishments,09-Aug-22,6656750,"5,085.50",CHARITY OR VOLUNTARY,FRIENDS THERAPEUTIC COMMUNITY TRUST,300000333489551
Portsmouth City Council,PCC,Children's and Education Services,Children Looked After,Children's Services and Education,Third Party Payments,Other establishments,09-Aug-22,6656750,"5,085.50",CHARITY OR VOLUNTARY,FRIENDS THERAPEUTIC COMMUNITY TRUST,300000333489551
Portsmouth City Council,PCC,Children's and Education Services,Children Looked After,Children's Services and Education,Third Party Payments,Other establishments,09-Aug-22,6656750,"5,085.50",CHARITY OR VOLUNTARY,FRIENDS THERAPEUTIC COMMUNITY TRUST,300000333489551
Portsmouth City Council,PCC,Children's and Education Services,Children Looked After,Children's Services and Education,Third Party Payments,Other establishments,09-Aug-22,6656750,"5,085.50",CHARITY OR VOLUNTARY,FRIENDS THERAPEUTIC COMMUNITY TRUST,300000333489551
Portsmouth City Council,PCC,Children's and Education Services,Asylum seekers,Children's Services and Education,Third Party Payments,Other establishments,09-Aug-22,6656752,131.43,LIMITED COMPANY,Connect Fostering Services Ltd,300000378804675
Portsmouth City Council,PCC,Children's and Education Services,Asylum seekers,Children's Services and Education,Third Party Payments,Other establishments,09-Aug-22,6656752,262.86,LIMITED COMPANY,Connect Fostering Services Ltd,300000378804675
Portsmouth City Council,PCC,Children's and Education Services,Asylum seekers,Children's Services and Education,Third Party Payments,Other establishments,09-Aug-22,6656752,920,LIMITED COMPANY,Connect Fostering Services Ltd,300000378804675
Portsmouth City Council,PCC,Children's and Education Services,Asylum seekers,Children's Services and Education,Third Party Payments,Other establishments,09-Aug-22,6656752,920,LIMITED COMPANY,Connect Fostering Services Ltd,300000378804675
Portsmouth City Council,PCC,Children's and Education Services,Asylum seekers,Children's Services and Education,Third Party Payments,Other establishments,09-Aug-22,6656752,920,LIMITED COMPANY,Connect Fostering Services Ltd,300000378804675
Portsmouth City Council,PCC,Children's and Education Services,Asylum seekers,Children's Services and Education,Third Party Payments,Other establishments,09-Aug-22,6656752,920,LIMITED COMPANY,Connect Fostering Services Ltd,300000378804675
Portsmouth City Council,PCC,Children's and Education Services,Safeguarding Children and Young Peoples Services,Children's Services and Education,Third Party Payments,Other establishments,26-Aug-22,6660723,-583.4,SUPPLIER,HORIZON CARE AND EDUCATION GROUP LTD,300000020480667
Portsmouth City Council,PCC,Children's and Education Services,Safeguarding Children and Young Peoples Services,Children's Services and Education,Third Party Payments,Other establishments,26-Aug-22,6660723,"-2,415.21",SUPPLIER,HORIZON CARE AND EDUCATION GROUP LTD,300000020480667
Portsmouth City Council,PCC,Children's and Education Services,Safeguarding Children and Young Peoples Services,Children's Services and Education,Third Party Payments,Other establishments,26-Aug-22,6660723,-583.4,SUPPLIER,HORIZON CARE AND EDUCATION GROUP LTD,300000020480667
Portsmouth City Council,PCC,Children's and Education Services,Children Looked After,Children's Services and Education,Third Party Payments,Other establishments,03-Aug-22,6655401,0.05,SUPPLIER,HORIZON CARE AND EDUCATION GROUP LTD,300000020480667
Portsmouth City Council,PCC,Children's and Education Services,Children Looked After,Children's Services and Education,Third Party Payments,Other establishments,03-Aug-22,6655401,397.71,SUPPLIER,HORIZON CARE AND EDUCATION GROUP LTD,300000020480667
Portsmouth City Council,PCC,Children's and Education Services,Children Looked After,Children's Services and Education,Third Party Payments,Other establishments,03-Aug-22,6655401,497.14,SUPPLIER,HORIZON CARE AND EDUCATION GROUP LTD,300000020480667
Portsmouth City Council,PCC,Children's and Education Services,Children Looked After,Children's Services and Education,Third Party Payments,Other establishments,03-Aug-22,6655401,696,SUPPLIER,HORIZON CARE AND EDUCATION GROUP LTD,300000020480667
Portsmouth City Council,PCC,Children's and Education Services,Children Looked After,Children's Services and Education,Third Party Payments,Other establishments,03-Aug-22,6655401,696,SUPPLIER,HORIZON CARE AND EDUCATION GROUP LTD,300000020480667
Portsmouth City Council,PCC,Children's and Education Services,Children Looked After,Children's Services and Education,Third Party Payments,Other establishments,03-Aug-22,6655401,696,SUPPLIER,HORIZON CARE AND EDUCATION GROUP LTD,300000020480667
Portsmouth City Council,PCC,Adult Social Care,Physical Support Older People (85+),Adult Care,Third Party Payments,Other establishments,16-Aug-22,6658113,677.6,SUPPLIER,ADMIRAL CARE LTD,300000020477405
Portsmouth City Council,PCC,Adult Social Care,Physical Support Older People (85+),Adult Care,Third Party Payments,Other establishments,16-Aug-22,6658113,813.12,SUPPLIER,ADMIRAL CARE LTD,300000020477405
Portsmouth City Council,PCC,Adult Social Care,Physical Support Older People (85+),Adult Care,Third Party Payments,Other establishments,16-Aug-22,6658113,813.12,SUPPLIER,ADMIRAL CARE LTD,300000020477405
Portsmouth City Council,PCC,Adult Social Care,Physical Support Older People (85+),Adult Care,Third Party Payments,Other establishments,16-Aug-22,6658113,813.12,SUPPLIER,ADMIRAL CARE LTD,300000020477405
Portsmouth City Council,PCC,Adult Social Care,Physical Support Older People (85+),Adult Care,Third Party Payments,Other establishments,16-Aug-22,6658113,813.12,SUPPLIER,ADMIRAL CARE LTD,300000020477405
Portsmouth City Council,PCC,Adult Social Care,Physical Support Older People (85+),Adult Care,Third Party Payments,Other establishments,16-Aug-22,6658113,813.12,SUPPLIER,ADMIRAL CARE LTD,300000020477405
Portsmouth City Council,PCC,Adult Social Care,Physical Support Older People (85+),Adult Care,Third Party Payments,Other establishments,16-Aug-22,6658113,948.64,SUPPLIER,ADMIRAL CARE LTD,300000020477405
Portsmouth City Council,PCC,Adult Social Care,Physical Support Older People (85+),Adult Care,Third Party Payments,Other establishments,16-Aug-22,6658113,948.64,SUPPLIER,ADMIRAL CARE LTD,300000020477405
Portsmouth City Council,PCC,Adult Social Care,Physical Support Older People (85+),Adult Care,Third Party Payments,Other establishments,16-Aug-22,6658113,"1,084.16",SUPPLIER,ADMIRAL CARE LTD,300000020477405
Portsmouth City Council,PCC,Housing Services,Private Sector Housing Renewal,"Housing, Neighbourhood and Building Services",Income,Other grants reimbursements and contributions,02-Aug-22,6655337,"-1,479.75",LIMITED COMPANY,LIFTECH SYSTEMS (SE) LIMITED,300000020461913
Portsmouth City Council,PCC,Other,Suspense and Capital Schemes,Capital - Housing General Fund,Capital Charges,REFCUS,02-Aug-22,6655337,"1,775.70",LIMITED COMPANY,LIFTECH SYSTEMS (SE) LIMITED,300000020461913
Portsmouth City Council,PCC,Other,Suspense and Capital Schemes,Capital - Housing General Fund,Capital Charges,REFCUS,02-Aug-22,6655337,"2,445.00",LIMITED COMPANY,LIFTECH SYSTEMS (SE) LIMITED,300000020461913
Portsmouth City Council,PCC,Other,Suspense and Capital Schemes,"Housing, Neighbourhood and Building Services",Supplies and Services,Services,11-Aug-22,6657422,"8,232.00",SUPPLIER,D&T BATHROOMS LTD,300000020476584
Portsmouth City Council,PCC,Children's and Education Services,Safeguarding Children and Young Peoples Services,Children's Services and Education,Third Party Payments,Other establishments,26-Aug-22,6660723,0.04,SUPPLIER,HORIZON CARE AND EDUCATION GROUP LTD,300000020480667
Portsmouth City Council,PCC,Children's and Education Services,Safeguarding Children and Young Peoples Services,Children's Services and Education,Third Party Payments,Other establishments,26-Aug-22,6660723,198.86,SUPPLIER,HORIZON CARE AND EDUCATION GROUP LTD,300000020480667
Portsmouth City Council,PCC,Children's and Education Services,Safeguarding Children and Young Peoples Services,Children's Services and Education,Third Party Payments,Other establishments,26-Aug-22,6660723,198.86,SUPPLIER,HORIZON CARE AND EDUCATION GROUP LTD,300000020480667
Portsmouth City Council,PCC,Children's and Education Services,Safeguarding Children and Young Peoples Services,Children's Services and Education,Third Party Payments,Other establishments,26-Aug-22,6660723,497.14,SUPPLIER,HORIZON CARE AND EDUCATION GROUP LTD,300000020480667
Portsmouth City Council,PCC,Children's and Education Services,Safeguarding Children and Young Peoples Services,Children's Services and Education,Third Party Payments,Other establishments,26-Aug-22,6660723,696,SUPPLIER,HORIZON CARE AND EDUCATION GROUP LTD,300000020480667
Portsmouth City Council,PCC,Children's and Education Services,Safeguarding Children and Young Peoples Services,Children's Services and Education,Third Party Payments,Other establishments,26-Aug-22,6660723,696,SUPPLIER,HORIZON CARE AND EDUCATION GROUP LTD,300000020480667
Portsmouth City Council,PCC,Children's and Education Services,Safeguarding Children and Young Peoples Services,Children's Services and Education,Third Party Payments,Other establishments,26-Aug-22,6660723,696,SUPPLIER,HORIZON CARE AND EDUCATION GROUP LTD,300000020480667
Portsmouth City Council,PCC,Children's and Education Services,Safeguarding Children and Young Peoples Services,Children's Services and Education,Third Party Payments,Other establishments,26-Aug-22,6660723,-583.4,SUPPLIER,HORIZON CARE AND EDUCATION GROUP LTD,300000020480667
Portsmouth City Council,PCC,Children's and Education Services,Children Looked After,Children's Services and Education,Third Party Payments,Other establishments,26-Aug-22,6660723,"-2,475.97",SUPPLIER,HORIZON CARE AND EDUCATION GROUP LTD,300000020480667
Portsmouth City Council,PCC,Children's and Education Services,Children Looked After,Children's Services and Education,Third Party Payments,Other establishments,26-Aug-22,6660723,"3,082.33",SUPPLIER,HORIZON CARE AND EDUCATION GROUP LTD,300000020480667
Portsmouth City Council,PCC,Children's and Education Services,Children Looked After,Children's Services and Education,Third Party Payments,Other establishments,19-Aug-22,6658943,25.5,PRIVATE PROVIDER,WEST WIGHT NURSERY,300000113663008
Portsmouth City Council,PCC,Children's and Education Services,Children Looked After,Children's Services and Education,Third Party Payments,Other establishments,19-Aug-22,6658943,153,PRIVATE PROVIDER,WEST WIGHT NURSERY,300000113663008
Portsmouth City Council,PCC,Children's and Education Services,Children Looked After,Children's Services and Education,Third Party Payments,Other establishments,19-Aug-22,6658943,178.5,PRIVATE PROVIDER,WEST WIGHT NURSERY,300000113663008
Portsmouth City Council,PCC,Children's and Education Services,Children Looked After,Children's Services and Education,Third Party Payments,Other establishments,19-Aug-22,6658943,178.5,PRIVATE PROVIDER,WEST WIGHT NURSERY,300000113663008
Portsmouth City Council,PCC,Children's and Education Services,Children Looked After,Children's Services and Education,Third Party Payments,Other establishments,19-Aug-22,6658943,178.5,PRIVATE PROVIDER,WEST WIGHT NURSERY,300000113663008
Portsmouth City Council,PCC,Children's and Education Services,Children Looked After,Children's Services and Education,Third Party Payments,Other establishments,11-Aug-22,6657521,"-4,602.00",SUPPLIER,CHROMA THERAPIES LIMITED,300000020476420
Portsmouth City Council,PCC,Children's and Education Services,Children Looked After,Children's Services and Education,Third Party Payments,Other establishments,11-Aug-22,6657521,"4,992.00",SUPPLIER,CHROMA THERAPIES LIMITED,300000020476420
Portsmouth City Council,PCC,Children's and Education Services,Children Looked After,Children's Services and Education,Third Party Payments,Other establishments,11-Aug-22,6657521,"-4,602.00",SUPPLIER,CHROMA THERAPIES LIMITED,300000020476420
Portsmouth City Council,PCC,Children's and Education Services,Children Looked After,Children's Services and Education,Third Party Payments,Other establishments,11-Aug-22,6657521,"4,992.00",SUPPLIER,CHROMA THERAPIES LIMITED,300000020476420
Portsmouth City Council,PCC,Children's and Education Services,Family Support Services,Children's Services and Education,Third Party Payments,Other establishments,05-Aug-22,6656403,18.98,SUPPLIER,TOPS DAY NURSERY LIMITED,300000020463687
Portsmouth City Council,PCC,Children's and Education Services,Family Support Services,Children's Services and Education,Third Party Payments,Other establishments,05-Aug-22,6656403,113.9,SUPPLIER,TOPS DAY NURSERY LIMITED,300000020463687
Portsmouth City Council,PCC,Children's and Education Services,Family Support Services,Children's Services and Education,Third Party Payments,Other establishments,05-Aug-22,6656403,132.88,SUPPLIER,TOPS DAY NURSERY LIMITED,300000020463687
Portsmouth City Council,PCC,Children's and Education Services,Family Support Services,Children's Services and Education,Third Party Payments,Other establishments,05-Aug-22,6656403,132.88,SUPPLIER,TOPS DAY NURSERY LIMITED,300000020463687
Portsmouth City Council,PCC,Children's and Education Services,Family Support Services,Children's Services and Education,Third Party Payments,Other establishments,05-Aug-22,6656403,132.88,SUPPLIER,TOPS DAY NURSERY LIMITED,300000020463687
Portsmouth City Council,PCC,Children's and Education Services,Family Support Services,Children's Services and Education,Third Party Payments,Other establishments,05-Aug-22,6656403,132.88,SUPPLIER,TOPS DAY NURSERY LIMITED,300000020463687
Portsmouth City Council,PCC,Children's and Education Services,Children Looked After,Children's Services and Education,Third Party Payments,Other establishments,11-Aug-22,6657539,117.81,SUPPLIER,CORE ASSETS GROUP,300000020461175
Portsmouth City Council,PCC,Children's and Education Services,Children Looked After,Children's Services and Education,Third Party Payments,Other establishments,11-Aug-22,6657539,235.62,SUPPLIER,CORE ASSETS GROUP,300000020461175
Portsmouth City Council,PCC,Children's and Education Services,Children Looked After,Children's Services and Education,Third Party Payments,Other establishments,11-Aug-22,6657539,824.67,SUPPLIER,CORE ASSETS GROUP,300000020461175
Portsmouth City Council,PCC,Children's and Education Services,Children Looked After,Children's Services and Education,Third Party Payments,Other establishments,11-Aug-22,6657539,824.67,SUPPLIER,CORE ASSETS GROUP,300000020461175
Portsmouth City Council,PCC,Children's and Education Services,Children Looked After,Children's Services and Education,Third Party Payments,Other establishments,11-Aug-22,6657539,824.67,SUPPLIER,CORE ASSETS GROUP,300000020461175
Portsmouth City Council,PCC,Children's and Education Services,Children Looked After,Children's Services and Education,Third Party Payments,Other establishments,11-Aug-22,6657539,824.67,SUPPLIER,CORE ASSETS GROUP,300000020461175
Portsmouth City Council,PCC,Children's and Education Services,Children Looked After,Children's Services and Education,Third Party Payments,Other establishments,11-Aug-22,6657539,100.35,SUPPLIER,CORE ASSETS GROUP,300000020461175
Portsmouth City Council,PCC,Children's and Education Services,Children Looked After,Children's Services and Education,Third Party Payments,Other establishments,11-Aug-22,6657539,200.7,SUPPLIER,CORE ASSETS GROUP,300000020461175
Portsmouth City Council,PCC,Children's and Education Services,Children Looked After,Children's Services and Education,Third Party Payments,Other establishments,11-Aug-22,6657539,702.45,SUPPLIER,CORE ASSETS GROUP,300000020461175
Portsmouth City Council,PCC,Children's and Education Services,Children Looked After,Children's Services and Education,Third Party Payments,Other establishments,11-Aug-22,6657539,702.45,SUPPLIER,CORE ASSETS GROUP,300000020461175
Portsmouth City Council,PCC,Children's and Education Services,Children Looked After,Children's Services and Education,Third Party Payments,Other establishments,11-Aug-22,6657539,702.45,SUPPLIER,CORE ASSETS GROUP,300000020461175
Portsmouth City Council,PCC,Children's and Education Services,Children Looked After,Children's Services and Education,Third Party Payments,Other establishments,11-Aug-22,6657539,702.45,SUPPLIER,CORE ASSETS GROUP,300000020461175
Portsmouth City Council,PCC,Adult Social Care,Physical Support Older People (85+),Adult Care,Third Party Payments,Other establishments,16-Aug-22,6658113,"1,084.16",SUPPLIER,ADMIRAL CARE LTD,300000020477405
Portsmouth City Council,PCC,Adult Social Care,Physical Support Adults (18 - 64),Adult Care,Third Party Payments,Other establishments,16-Aug-22,6658113,"1,198.60",SUPPLIER,ADMIRAL CARE LTD,300000020477405
Portsmouth City Council,PCC,Adult Social Care,Social Care Activities,Adult Care,Third Party Payments,Other establishments,16-Aug-22,6658113,"1,219.68",SUPPLIER,ADMIRAL CARE LTD,300000020477405
Portsmouth City Council,PCC,Adult Social Care,Social Care Activities,Adult Care,Third Party Payments,Other establishments,16-Aug-22,6658113,"1,219.68",SUPPLIER,ADMIRAL CARE LTD,300000020477405
Portsmouth City Council,PCC,Adult Social Care,Social Care Activities,Adult Care,Third Party Payments,Other establishments,16-Aug-22,6658113,"1,490.72",SUPPLIER,ADMIRAL CARE LTD,300000020477405
Portsmouth City Council,PCC,Adult Social Care,Social Care Activities,Adult Care,Third Party Payments,Other establishments,16-Aug-22,6658113,"1,490.72",SUPPLIER,ADMIRAL CARE LTD,300000020477405
Portsmouth City Council,PCC,Children's and Education Services,Children Looked After,Children's Services and Education,Third Party Payments,Other establishments,11-Aug-22,6657533,166.52,SUPPLIER,FAIR WAYS COMMUNITY BENEFIT SOCEITY T/A FAIRWAYS CARE (UK) LTD,300000020459125
Portsmouth City Council,PCC,Children's and Education Services,Children Looked After,Children's Services and Education,Third Party Payments,Other establishments,11-Aug-22,6657533,333.04,SUPPLIER,FAIR WAYS COMMUNITY BENEFIT SOCEITY T/A FAIRWAYS CARE (UK) LTD,300000020459125
Portsmouth City Council,PCC,Children's and Education Services,Children Looked After,Children's Services and Education,Third Party Payments,Other establishments,11-Aug-22,6657533,"1,165.64",SUPPLIER,FAIR WAYS COMMUNITY BENEFIT SOCEITY T/A FAIRWAYS CARE (UK) LTD,300000020459125
Portsmouth City Council,PCC,Children's and Education Services,Children Looked After,Children's Services and Education,Third Party Payments,Other establishments,11-Aug-22,6657533,"1,165.64",SUPPLIER,FAIR WAYS COMMUNITY BENEFIT SOCEITY T/A FAIRWAYS CARE (UK) LTD,300000020459125
Portsmouth City Council,PCC,Children's and Education Services,Children Looked After,Children's Services and Education,Third Party Payments,Other establishments,11-Aug-22,6657533,"1,165.64",SUPPLIER,FAIR WAYS COMMUNITY BENEFIT SOCEITY T/A FAIRWAYS CARE (UK) LTD,300000020459125
Portsmouth City Council,PCC,Children's and Education Services,Children Looked After,Children's Services and Education,Third Party Payments,Other establishments,11-Aug-22,6657533,"1,165.64",SUPPLIER,FAIR WAYS COMMUNITY BENEFIT SOCEITY T/A FAIRWAYS CARE (UK) LTD,300000020459125
Portsmouth City Council,PCC,Adult Social Care,Physical Support Older People (85+),Adult Care,Third Party Payments,Other establishments,16-Aug-22,6658113,"1,974.72",SUPPLIER,ADMIRAL CARE LTD,300000020477405
Portsmouth City Council,PCC,Adult Social Care,Physical Support Older People (85+),Adult Care,Third Party Payments,Other establishments,16-Aug-22,6658113,"3,291.20",SUPPLIER,ADMIRAL CARE LTD,300000020477405
Portsmouth City Council,PCC,Adult Social Care,Learning Disability Support Adults (18 - 64),Adult Care,Third Party Payments,Other establishments,12-Aug-22,6657556,"-2,775.42",SUPPLIER,AFFINITY TRUST LTD,300000020477195
Portsmouth City Council,PCC,Adult Social Care,Learning Disability Support Adults (18 - 64),Adult Care,Third Party Payments,Other establishments,12-Aug-22,6657556,"-2,623.52",SUPPLIER,AFFINITY TRUST LTD,300000020477195
Portsmouth City Council,PCC,Adult Social Care,Learning Disability Support Adults (18 - 64),Adult Care,Third Party Payments,Other establishments,12-Aug-22,6657556,"-2,623.52",SUPPLIER,AFFINITY TRUST LTD,300000020477195
Portsmouth City Council,PCC,Adult Social Care,Learning Disability Support Adults (18 - 64),Adult Care,Third Party Payments,Other establishments,12-Aug-22,6657556,"-2,341.98",SUPPLIER,AFFINITY TRUST LTD,300000020477195
Portsmouth City Council,PCC,Adult Social Care,Learning Disability Support Adults (18 - 64),Adult Care,Third Party Payments,Other establishments,12-Aug-22,6657556,"-2,316.51",SUPPLIER,AFFINITY TRUST LTD,300000020477195
Portsmouth City Council,PCC,Adult Social Care,Learning Disability Support Adults (18 - 64),Adult Care,Third Party Payments,Other establishments,12-Aug-22,6657556,"-2,163.78",SUPPLIER,AFFINITY TRUST LTD,300000020477195
Portsmouth City Council,PCC,Adult Social Care,Learning Disability Support Adults (18 - 64),Adult Care,Third Party Payments,Other establishments,12-Aug-22,6657556,"-2,011.76",SUPPLIER,AFFINITY TRUST LTD,300000020477195
Portsmouth City Council,PCC,Adult Social Care,Learning Disability Support Adults (18 - 64),Adult Care,Third Party Payments,Other establishments,12-Aug-22,6657556,"7,453.02",SUPPLIER,AFFINITY TRUST LTD,300000020477195
Portsmouth City Council,PCC,Adult Social Care,Learning Disability Support Adults (18 - 64),Adult Care,Third Party Payments,Other establishments,12-Aug-22,6657556,"7,795.57",SUPPLIER,AFFINITY TRUST LTD,300000020477195
Portsmouth City Council,PCC,Adult Social Care,Learning Disability Support Adults (18 - 64),Adult Care,Third Party Payments,Other establishments,12-Aug-22,6657556,"7,979.09",SUPPLIER,AFFINITY TRUST LTD,300000020477195
Portsmouth City Council,PCC,Adult Social Care,Learning Disability Support Adults (18 - 64),Adult Care,Third Party Payments,Other establishments,12-Aug-22,6657556,"8,066.82",SUPPLIER,AFFINITY TRUST LTD,300000020477195
Portsmouth City Council,PCC,Adult Social Care,Learning Disability Support Adults (18 - 64),Adult Care,Third Party Payments,Other establishments,12-Aug-22,6657556,"9,559.78",SUPPLIER,AFFINITY TRUST LTD,300000020477195
Portsmouth City Council,PCC,Adult Social Care,Learning Disability Support Adults (18 - 64),Adult Care,Third Party Payments,Other establishments,12-Aug-22,6657556,"10,166.14",SUPPLIER,AFFINITY TRUST LTD,300000020477195
Portsmouth City Council,PCC,Adult Social Care,Learning Disability Support Adults (18 - 64),Adult Care,Third Party Payments,Other establishments,12-Aug-22,6657556,"10,166.14",SUPPLIER,AFFINITY TRUST LTD,300000020477195
Portsmouth City Council,PCC,Adult Social Care,Social Support - Support for Carer,Adult Care,Third Party Payments,Other establishments,01-Aug-22,6654921,400.32,SUPPLIER,AGINCARE UK,300000020481869
Portsmouth City Council,PCC,Adult Social Care,Social Support - Support for Carer,Adult Care,Third Party Payments,Other establishments,01-Aug-22,6654921,166.8,SUPPLIER,AGINCARE UK,300000020481869
Portsmouth City Council,PCC,Adult Social Care,Physical Support Adults (18 - 64),Adult Care,Third Party Payments,Other establishments,01-Aug-22,6654921,67.76,SUPPLIER,AGINCARE UK,300000020481869
Portsmouth City Council,PCC,Adult Social Care,Social Support - Support for Carer,Adult Care,Third Party Payments,Other establishments,01-Aug-22,6654921,50.04,SUPPLIER,AGINCARE UK,300000020481869
Portsmouth City Council,PCC,Adult Social Care,Social Support - Support for Carer,Adult Care,Third Party Payments,Other establishments,01-Aug-22,6654921,133.44,SUPPLIER,AGINCARE UK,300000020481869
Portsmouth City Council,PCC,Adult Social Care,Social Support - Support for Carer,Adult Care,Third Party Payments,Other establishments,01-Aug-22,6654921,400.32,SUPPLIER,AGINCARE UK,300000020481869
Portsmouth City Council,PCC,Adult Social Care,Physical Support Older People (85+),Adult Care,Third Party Payments,Other establishments,01-Aug-22,6654921,116.16,SUPPLIER,AGINCARE UK,300000020481869
Portsmouth City Council,PCC,Adult Social Care,Physical Support Older People (85+),Adult Care,Third Party Payments,Other establishments,01-Aug-22,6654921,271.04,SUPPLIER,AGINCARE UK,300000020481869
Portsmouth City Council,PCC,Adult Social Care,Physical Support Older People (85+),Adult Care,Third Party Payments,Other establishments,01-Aug-22,6654921,396.88,SUPPLIER,AGINCARE UK,300000020481869
Portsmouth City Council,PCC,Adult Social Care,Physical Support Adults (18 - 64),Adult Care,Third Party Payments,Other establishments,01-Aug-22,6654921,29.04,SUPPLIER,AGINCARE UK,300000020481869
Portsmouth City Council,PCC,Adult Social Care,Physical Support Older People (85+),Adult Care,Third Party Payments,Other establishments,01-Aug-22,6654921,24.2,SUPPLIER,AGINCARE UK,300000020481869
Portsmouth City Council,PCC,Adult Social Care,Social Support - Support for Carer,Adult Care,Third Party Payments,Other establishments,01-Aug-22,6654921,33.36,SUPPLIER,AGINCARE UK,300000020481869
Portsmouth City Council,PCC,Adult Social Care,Social Support - Support for Carer,Adult Care,Third Party Payments,Other establishments,01-Aug-22,6654921,41.7,SUPPLIER,AGINCARE UK,300000020481869
Portsmouth City Council,PCC,Adult Social Care,Social Support - Support for Carer,Adult Care,Third Party Payments,Other establishments,01-Aug-22,6654921,58.38,SUPPLIER,AGINCARE UK,300000020481869
Portsmouth City Council,PCC,Adult Social Care,Social Support - Support for Carer,Adult Care,Third Party Payments,Other establishments,01-Aug-22,6654921,283.56,SUPPLIER,AGINCARE UK,300000020481869
Portsmouth City Council,PCC,Housing Services,Housing Strategy,"Housing, Neighbourhood and Building Services",Income,Customer and client receipts,11-Aug-22,6657428,-987,SUPPLIER,ANY MAINTENANCE LTD,300000020474016
Portsmouth City Council,PCC,Other,Suspense and Capital Schemes,"Housing, Neighbourhood and Building Services",Supplies and Services,Services,11-Aug-22,6657428,"1,184.40",SUPPLIER,ANY MAINTENANCE LTD,300000020474016
Portsmouth City Council,PCC,Other,Suspense and Capital Schemes,"Housing, Neighbourhood and Building Services",Supplies and Services,Services,11-Aug-22,6657428,"6,580.00",SUPPLIER,ANY MAINTENANCE LTD,300000020474016
Portsmouth City Council,PCC,Adult Social Care,Physical Support Older People (85+),Adult Care,Third Party Payments,Other establishments,01-Aug-22,6654921,348.48,SUPPLIER,AGINCARE UK,300000020481869
Portsmouth City Council,PCC,Adult Social Care,Physical Support Older People (85+),Adult Care,Third Party Payments,Other establishments,01-Aug-22,6654921,445.28,SUPPLIER,AGINCARE UK,300000020481869
Portsmouth City Council,PCC,Adult Social Care,Physical Support Adults (18 - 64),Adult Care,Third Party Payments,Other establishments,01-Aug-22,6654921,159.72,SUPPLIER,AGINCARE UK,300000020481869
Portsmouth City Council,PCC,Adult Social Care,Social Care Activities,Adult Care,Third Party Payments,Other establishments,12-Aug-22,6657690,"15,884.40",SUPPLIER,ALBANY CARE (PORTCHESTER) LIMITED,300000020467728
Portsmouth City Council,PCC,Adult Social Care,Mental Health Support Adults (18 - 64),Adult Care,Third Party Payments,Other establishments,12-Aug-22,6657559,"2,969.80",SUPPLIER,ALBANY FARM CARE (HAMPSHIRE) LTD,300000020477794
Portsmouth City Council,PCC,Adult Social Care,Learning Disability Support Adults (18 - 64),Adult Care,Third Party Payments,Other establishments,12-Aug-22,6657559,"7,542.30",SUPPLIER,ALBANY FARM CARE (HAMPSHIRE) LTD,300000020477794
Portsmouth City Council,PCC,Adult Social Care,Assistive Equipment & Technology,Adult Care,Premises-Related Expenditure,"Repairs, alterations and maintenance of buildings",05-Aug-22,6656452,320,SOLETRADER,ALC BUILDING SERVICES,300000020461119
Portsmouth City Council,PCC,Adult Social Care,Assistive Equipment & Technology,Adult Care,Premises-Related Expenditure,"Repairs, alterations and maintenance of buildings",05-Aug-22,6656452,347,SOLETRADER,ALC BUILDING SERVICES,300000020461119
Portsmouth City Council,PCC,Adult Social Care,Learning Disability Support Adults (18 - 64),Adult Care,Third Party Payments,Other establishments,18-Aug-22,6658699,"5,081.34",PRIVATE PROVIDER,ALEX DAVIS (GOSPORT) LTD,300000457142831
Portsmouth City Council,PCC,Adult Social Care,Learning Disability Support Adults (18 - 64),Adult Care,Third Party Payments,Other establishments,12-Aug-22,6657740,"4,877.54",SUPPLIER,ALLIED CARE ASHSTEAD HOUSE,300000020473831
Portsmouth City Council,PCC,Adult Social Care,Learning Disability Support Adults (18 - 64),Adult Care,Third Party Payments,Other establishments,25-Aug-22,6660274,"1,430.12",SUPPLIER,ALLIED CARE LTD,300000020478714
Portsmouth City Council,PCC,Adult Social Care,Learning Disability Support Adults (18 - 64),Adult Care,Transport-Related Expenditure,Direct transport costs,26-Aug-22,6660503,551.77,SUPPLIER,ALLSTAR BUSINESS SOLUTIONS LTD,300000020477226
Portsmouth City Council,PCC,Adult Social Care,Social Care Activities,Adult Care,Third Party Payments,Other establishments,01-Aug-22,6654929,30.04,SUPPLIER,ALTOGETHER CARE LLP,300000120931464
Portsmouth City Council,PCC,Adult Social Care,Physical Support Adults (18 - 64),Adult Care,Third Party Payments,Other establishments,01-Aug-22,6654929,60.08,SUPPLIER,ALTOGETHER CARE LLP,300000120931464
Portsmouth City Council,PCC,Adult Social Care,Physical Support Older People (85+),Adult Care,Third Party Payments,Other establishments,01-Aug-22,6654929,93.12,SUPPLIER,ALTOGETHER CARE LLP,300000120931464
Portsmouth City Council,PCC,Adult Social Care,Physical Support Older People (85+),Adult Care,Third Party Payments,Other establishments,01-Aug-22,6654929,232.8,SUPPLIER,ALTOGETHER CARE LLP,300000120931464
Portsmouth City Council,PCC,Adult Social Care,Physical Support Older People (85+),Adult Care,Third Party Payments,Other establishments,01-Aug-22,6654929,314.28,SUPPLIER,ALTOGETHER CARE LLP,300000120931464
Portsmouth City Council,PCC,Adult Social Care,Physical Support Older People (85+),Adult Care,Third Party Payments,Other establishments,01-Aug-22,6654929,330.44,SUPPLIER,ALTOGETHER CARE LLP,300000120931464
Portsmouth City Council,PCC,Adult Social Care,Social Support - Support for Carer,Adult Care,Third Party Payments,Other establishments,01-Aug-22,6654929,399,SUPPLIER,ALTOGETHER CARE LLP,300000120931464
Portsmouth City Council,PCC,Adult Social Care,Physical Support Older People (85+),Adult Care,Third Party Payments,Other establishments,01-Aug-22,6654929,641.72,SUPPLIER,ALTOGETHER CARE LLP,300000120931464
Portsmouth City Council,PCC,Adult Social Care,Physical Support Older People (85+),Adult Care,Third Party Payments,Other establishments,01-Aug-22,6654929,857.92,SUPPLIER,ALTOGETHER CARE LLP,300000120931464
Portsmouth City Council,PCC,Adult Social Care,Physical Support Older People (85+),Adult Care,Third Party Payments,Other establishments,31-Aug-22,6661031,46.56,SUPPLIER,ALTOGETHER CARE LLP,300000120931464
Portsmouth City Council,PCC,Adult Social Care,Physical Support Older People (85+),Adult Care,Third Party Payments,Other establishments,31-Aug-22,6661031,58.2,SUPPLIER,ALTOGETHER CARE LLP,300000120931464
Portsmouth City Council,PCC,Adult Social Care,Physical Support Adults (18 - 64),Adult Care,Third Party Payments,Other establishments,31-Aug-22,6661031,60.08,SUPPLIER,ALTOGETHER CARE LLP,300000120931464
Portsmouth City Council,PCC,Adult Social Care,Physical Support Older People (85+),Adult Care,Third Party Payments,Other establishments,31-Aug-22,6661031,60.08,SUPPLIER,ALTOGETHER CARE LLP,300000120931464
Portsmouth City Council,PCC,Adult Social Care,Physical Support Older People (85+),Adult Care,Third Party Payments,Other establishments,31-Aug-22,6661031,80.28,SUPPLIER,ALTOGETHER CARE LLP,300000120931464
Portsmouth City Council,PCC,Adult Social Care,Physical Support Older People (85+),Adult Care,Third Party Payments,Other establishments,31-Aug-22,6661031,90.12,SUPPLIER,ALTOGETHER CARE LLP,300000120931464
Portsmouth City Council,PCC,Adult Social Care,Physical Support Older People (85+),Adult Care,Third Party Payments,Other establishments,31-Aug-22,6661031,174.6,SUPPLIER,ALTOGETHER CARE LLP,300000120931464
Portsmouth City Council,PCC,Adult Social Care,Social Care Activities,Adult Care,Third Party Payments,Other establishments,31-Aug-22,6661031,195.26,SUPPLIER,ALTOGETHER CARE LLP,300000120931464
Portsmouth City Council,PCC,Adult Social Care,Physical Support Older People (85+),Adult Care,Third Party Payments,Other establishments,31-Aug-22,6661031,325.92,SUPPLIER,ALTOGETHER CARE LLP,300000120931464
Portsmouth City Council,PCC,Adult Social Care,Physical Support Older People (85+),Adult Care,Third Party Payments,Other establishments,31-Aug-22,6661031,345.46,SUPPLIER,ALTOGETHER CARE LLP,300000120931464
Portsmouth City Council,PCC,Adult Social Care,Social Support - Support for Carer,Adult Care,Third Party Payments,Other establishments,31-Aug-22,6661031,399,SUPPLIER,ALTOGETHER CARE LLP,300000120931464
Portsmouth City Council,PCC,Adult Social Care,Physical Support Older People (85+),Adult Care,Third Party Payments,Other establishments,31-Aug-22,6661031,570,SUPPLIER,ALTOGETHER CARE LLP,300000120931464
Portsmouth City Council,PCC,Adult Social Care,Physical Support Older People (85+),Adult Care,Third Party Payments,Other establishments,31-Aug-22,6661031,"1,028.92",SUPPLIER,ALTOGETHER CARE LLP,300000120931464
Portsmouth City Council,PCC,Adult Social Care,Support with Memory and Cognition Older People (85+),Adult Care,Third Party Payments,Other establishments,12-Aug-22,6657563,"3,154.56",SUPPLIER,ALTON HOUSE PARTNERSHIP,300000020463909
Portsmouth City Council,PCC,Adult Social Care,Support with Memory and Cognition Older People (85+),Adult Care,Third Party Payments,Other establishments,12-Aug-22,6657563,"3,154.56",SUPPLIER,ALTON HOUSE PARTNERSHIP,300000020463909
Portsmouth City Council,PCC,Adult Social Care,Physical Support Older People (85+),Adult Care,Third Party Payments,Other establishments,12-Aug-22,6657673,"-1,807.78",SUPPLIER,ALTON MANOR LTD,300000020457904
Portsmouth City Council,PCC,Adult Social Care,Mental Health Support Adults (18 - 64),Adult Care,Third Party Payments,Other establishments,12-Aug-22,6657673,"2,386.69",SUPPLIER,ALTON MANOR LTD,300000020457904
Portsmouth City Council,PCC,Adult Social Care,Support with Memory and Cognition Older People (85+),Adult Care,Third Party Payments,Other establishments,12-Aug-22,6657673,"2,535.80",SUPPLIER,ALTON MANOR LTD,300000020457904
Portsmouth City Council,PCC,Adult Social Care,Support with Memory and Cognition Older People (85+),Adult Care,Third Party Payments,Other establishments,12-Aug-22,6657673,"2,535.80",SUPPLIER,ALTON MANOR LTD,300000020457904
Portsmouth City Council,PCC,Adult Social Care,Support with Memory and Cognition Older People (85+),Adult Care,Third Party Payments,Other establishments,12-Aug-22,6657673,"2,535.80",SUPPLIER,ALTON MANOR LTD,300000020457904
Portsmouth City Council,PCC,Environmental and Regulatory Services,"Cemetery, Cremation and Mortuary Services","Culture, Leisure & Regulatory Services",Premises-Related Expenditure,Energy costs,11-Aug-22,6657458,118.86,LIMITED COMPANY,GAZPROM MARKETING AND TRADING LTD,300000250807105
Portsmouth City Council,PCC,Other,Suspense and Capital Schemes,"Housing, Neighbourhood and Building Services",Premises-Related Expenditure,Energy costs,19-Aug-22,6658983,"1,798.17",LIMITED COMPANY,GAZPROM MARKETING AND TRADING LTD,300000250807105
Portsmouth City Council,PCC,Other,Suspense and Capital Schemes,"Housing, Neighbourhood and Building Services",Premises-Related Expenditure,Energy costs,19-Aug-22,6658983,"-1,916.63",LIMITED COMPANY,GAZPROM MARKETING AND TRADING LTD,300000250807105
Portsmouth City Council,PCC,Costs below Net Cost of Services,Trading,Regeneration,Premises-Related Expenditure,Energy costs,19-Aug-22,6658983,701.93,LIMITED COMPANY,GAZPROM MARKETING AND TRADING LTD,300000250807105
Portsmouth City Council,PCC,Housing Services,Homelessness,"Housing, Neighbourhood and Building Services",Premises-Related Expenditure,Energy costs,11-Aug-22,6657458,51.44,LIMITED COMPANY,GAZPROM MARKETING AND TRADING LTD,300000250807105
Portsmouth City Council,PCC,Other,Suspense and Capital Schemes,"Housing, Neighbourhood and Building Services",Premises-Related Expenditure,Energy costs,11-Aug-22,6657458,9.25,LIMITED COMPANY,GAZPROM MARKETING AND TRADING LTD,300000250807105
Portsmouth City Council,PCC,Housing Revenue Account,Special Services,"Housing, Neighbourhood and Building Services",Premises-Related Expenditure,Energy costs,11-Aug-22,6657458,6.77,LIMITED COMPANY,GAZPROM MARKETING AND TRADING LTD,300000250807105
Portsmouth City Council,PCC,Housing Revenue Account,Supervision and Management,"Housing, Neighbourhood and Building Services",Premises-Related Expenditure,Energy costs,11-Aug-22,6657458,91.01,LIMITED COMPANY,GAZPROM MARKETING AND TRADING LTD,300000250807105
Portsmouth City Council,PCC,Housing Revenue Account,Special Services,"Housing, Neighbourhood and Building Services",Premises-Related Expenditure,Energy costs,11-Aug-22,6657458,17.17,LIMITED COMPANY,GAZPROM MARKETING AND TRADING LTD,300000250807105
Portsmouth City Council,PCC,Children's and Education Services,Primary Schools,Children's Services and Education,Premises-Related Expenditure,Energy costs,11-Aug-22,6657458,26.95,LIMITED COMPANY,GAZPROM MARKETING AND TRADING LTD,300000250807105
Portsmouth City Council,PCC,Housing Revenue Account,Special Services,"Housing, Neighbourhood and Building Services",Premises-Related Expenditure,Energy costs,11-Aug-22,6657458,"5,048.83",LIMITED COMPANY,GAZPROM MARKETING AND TRADING LTD,300000250807105
Portsmouth City Council,PCC,Housing Revenue Account,Special Services,"Housing, Neighbourhood and Building Services",Premises-Related Expenditure,Energy costs,11-Aug-22,6657458,"-5,512.18",LIMITED COMPANY,GAZPROM MARKETING AND TRADING LTD,300000250807105
Portsmouth City Council,PCC,Housing Revenue Account,Special Services,"Housing, Neighbourhood and Building Services",Premises-Related Expenditure,Energy costs,11-Aug-22,6657458,63.48,LIMITED COMPANY,GAZPROM MARKETING AND TRADING LTD,300000250807105
Portsmouth City Council,PCC,Housing Revenue Account,Special Services,"Housing, Neighbourhood and Building Services",Premises-Related Expenditure,Energy costs,11-Aug-22,6657458,73.28,LIMITED COMPANY,GAZPROM MARKETING AND TRADING LTD,300000250807105
Portsmouth City Council,PCC,Housing Revenue Account,Special Services,"Housing, Neighbourhood and Building Services",Premises-Related Expenditure,Energy costs,11-Aug-22,6657458,66.6,LIMITED COMPANY,GAZPROM MARKETING AND TRADING LTD,300000250807105
Portsmouth City Council,PCC,Housing Revenue Account,Special Services,"Housing, Neighbourhood and Building Services",Premises-Related Expenditure,Energy costs,11-Aug-22,6657458,159.9,LIMITED COMPANY,GAZPROM MARKETING AND TRADING LTD,300000250807105
Portsmouth City Council,PCC,Housing Services,Homelessness,"Housing, Neighbourhood and Building Services",Premises-Related Expenditure,Energy costs,11-Aug-22,6657458,55.34,LIMITED COMPANY,GAZPROM MARKETING AND TRADING LTD,300000250807105
Portsmouth City Council,PCC,Housing Services,Homelessness,"Housing, Neighbourhood and Building Services",Premises-Related Expenditure,Energy costs,11-Aug-22,6657458,78.87,LIMITED COMPANY,GAZPROM MARKETING AND TRADING LTD,300000250807105
Portsmouth City Council,PCC,Children's and Education Services,Primary Schools,Children's Services and Education,Premises-Related Expenditure,Energy costs,11-Aug-22,6657458,125.1,LIMITED COMPANY,GAZPROM MARKETING AND TRADING LTD,300000250807105
Portsmouth City Council,PCC,Children's and Education Services,Primary Schools,Children's Services and Education,Premises-Related Expenditure,Energy costs,11-Aug-22,6657458,-95.59,LIMITED COMPANY,GAZPROM MARKETING AND TRADING LTD,300000250807105
Portsmouth City Council,PCC,Children's and Education Services,Primary Schools,Children's Services and Education,Premises-Related Expenditure,Energy costs,11-Aug-22,6657458,968.37,LIMITED COMPANY,GAZPROM MARKETING AND TRADING LTD,300000250807105
Portsmouth City Council,PCC,Children's and Education Services,Primary Schools,Children's Services and Education,Premises-Related Expenditure,Energy costs,11-Aug-22,6657458,15.06,LIMITED COMPANY,GAZPROM MARKETING AND TRADING LTD,300000250807105
Portsmouth City Council,PCC,Children's and Education Services,Other Children and Family Services,Children's Services and Education,Premises-Related Expenditure,Energy costs,11-Aug-22,6657458,109.17,LIMITED COMPANY,GAZPROM MARKETING AND TRADING LTD,300000250807105
Portsmouth City Council,PCC,Housing Revenue Account,Special Services,"Housing, Neighbourhood and Building Services",Premises-Related Expenditure,Energy costs,11-Aug-22,6657458,112.75,LIMITED COMPANY,GAZPROM MARKETING AND TRADING LTD,300000250807105
Portsmouth City Council,PCC,Housing Services,Homelessness,"Housing, Neighbourhood and Building Services",Premises-Related Expenditure,Energy costs,11-Aug-22,6657458,76.04,LIMITED COMPANY,GAZPROM MARKETING AND TRADING LTD,300000250807105
Portsmouth City Council,PCC,Housing Services,Homelessness,"Housing, Neighbourhood and Building Services",Premises-Related Expenditure,Energy costs,11-Aug-22,6657458,67.07,LIMITED COMPANY,GAZPROM MARKETING AND TRADING LTD,300000250807105
Portsmouth City Council,PCC,Adult Social Care,Support with Memory and Cognition Older People (85+),Adult Care,Third Party Payments,Other establishments,12-Aug-22,6657673,"2,535.80",SUPPLIER,ALTON MANOR LTD,300000020457904
Portsmouth City Council,PCC,Adult Social Care,Social Care Activities,Adult Care,Third Party Payments,Other establishments,12-Aug-22,6657673,"3,085.83",SUPPLIER,ALTON MANOR LTD,300000020457904
Portsmouth City Council,PCC,Adult Social Care,Support with Memory and Cognition Older People (85+),Adult Care,Third Party Payments,Other establishments,12-Aug-22,6657673,"3,100.00",SUPPLIER,ALTON MANOR LTD,300000020457904
Portsmouth City Council,PCC,Housing Revenue Account,Special Services,"Housing, Neighbourhood and Building Services",Premises-Related Expenditure,Energy costs,11-Aug-22,6657458,62.94,LIMITED COMPANY,GAZPROM MARKETING AND TRADING LTD,300000250807105
Portsmouth City Council,PCC,Children's and Education Services,Primary Schools,Children's Services and Education,Premises-Related Expenditure,Energy costs,11-Aug-22,6657458,477.52,LIMITED COMPANY,GAZPROM MARKETING AND TRADING LTD,300000250807105
Portsmouth City Council,PCC,Other,Suspense and Capital Schemes,"Housing, Neighbourhood and Building Services",Premises-Related Expenditure,Energy costs,11-Aug-22,6657458,19.49,LIMITED COMPANY,GAZPROM MARKETING AND TRADING LTD,300000250807105
Portsmouth City Council,PCC,Adult Social Care,Support with Memory and Cognition Older People (85+),Adult Care,Third Party Payments,Other establishments,12-Aug-22,6657673,"3,100.00",SUPPLIER,ALTON MANOR LTD,300000020457904
Portsmouth City Council,PCC,Children's and Education Services,Children Looked After,Children's Services and Education,Premises-Related Expenditure,Energy costs,11-Aug-22,6657458,94.45,LIMITED COMPANY,GAZPROM MARKETING AND TRADING LTD,300000250807105
Portsmouth City Council,PCC,Housing Revenue Account,Special Services,"Housing, Neighbourhood and Building Services",Premises-Related Expenditure,Energy costs,11-Aug-22,6657458,264.25,LIMITED COMPANY,GAZPROM MARKETING AND TRADING LTD,300000250807105
Portsmouth City Council,PCC,Environmental and Regulatory Services,"Cemetery, Cremation and Mortuary Services","Culture, Leisure & Regulatory Services",Premises-Related Expenditure,Energy costs,11-Aug-22,6657458,103.61,LIMITED COMPANY,GAZPROM MARKETING AND TRADING LTD,300000250807105
Portsmouth City Council,PCC,Cultural and Related Services,Library Service,"Culture, Leisure & Regulatory Services",Premises-Related Expenditure,Energy costs,11-Aug-22,6657458,37.44,LIMITED COMPANY,GAZPROM MARKETING AND TRADING LTD,300000250807105
Portsmouth City Council,PCC,Children's and Education Services,Children Looked After,Children's Services and Education,Premises-Related Expenditure,Energy costs,11-Aug-22,6657458,89.29,LIMITED COMPANY,GAZPROM MARKETING AND TRADING LTD,300000250807105
Portsmouth City Council,PCC,Adult Social Care,Physical Support Adults (18 - 64),Adult Care,Third Party Payments,Other establishments,12-Aug-22,6657673,"3,296.54",SUPPLIER,ALTON MANOR LTD,300000020457904
Portsmouth City Council,PCC,Adult Social Care,Support with Memory and Cognition Older People (85+),Adult Care,Third Party Payments,Other establishments,12-Aug-22,6657673,"3,296.54",SUPPLIER,ALTON MANOR LTD,300000020457904
Portsmouth City Council,PCC,Adult Social Care,Support with Memory and Cognition Older People (85+),Adult Care,Third Party Payments,Other establishments,12-Aug-22,6657673,"3,296.54",SUPPLIER,ALTON MANOR LTD,300000020457904
Portsmouth City Council,PCC,Adult Social Care,Support with Memory and Cognition Older People (85+),Adult Care,Third Party Payments,Other establishments,12-Aug-22,6657673,"3,296.54",SUPPLIER,ALTON MANOR LTD,300000020457904
Portsmouth City Council,PCC,Adult Social Care,Social Care Activities,Adult Care,Third Party Payments,Other establishments,12-Aug-22,6657673,"3,321.65",SUPPLIER,ALTON MANOR LTD,300000020457904
Portsmouth City Council,PCC,Adult Social Care,Support with Memory and Cognition Older People (85+),Adult Care,Third Party Payments,Other establishments,12-Aug-22,6657673,"3,361.02",SUPPLIER,ALTON MANOR LTD,300000020457904
Portsmouth City Council,PCC,Adult Social Care,Social Care Activities,Adult Care,Third Party Payments,Other establishments,12-Aug-22,6657673,"3,400.04",SUPPLIER,ALTON MANOR LTD,300000020457904
Portsmouth City Council,PCC,Planning Services,Business support,Regeneration,Premises-Related Expenditure,Energy costs,11-Aug-22,6657458,"-1,568.42",LIMITED COMPANY,GAZPROM MARKETING AND TRADING LTD,300000250807105
Portsmouth City Council,PCC,Planning Services,Business support,Regeneration,Premises-Related Expenditure,Energy costs,11-Aug-22,6657458,764.42,LIMITED COMPANY,GAZPROM MARKETING AND TRADING LTD,300000250807105
Portsmouth City Council,PCC,Housing Revenue Account,Special Services,"Housing, Neighbourhood and Building Services",Premises-Related Expenditure,Energy costs,11-Aug-22,6657458,"-2,507.13",LIMITED COMPANY,GAZPROM MARKETING AND TRADING LTD,300000250807105
Portsmouth City Council,PCC,Housing Revenue Account,Special Services,"Housing, Neighbourhood and Building Services",Premises-Related Expenditure,Energy costs,11-Aug-22,6657458,"-3,436.79",LIMITED COMPANY,GAZPROM MARKETING AND TRADING LTD,300000250807105
Portsmouth City Council,PCC,Housing Revenue Account,Special Services,"Housing, Neighbourhood and Building Services",Premises-Related Expenditure,Energy costs,11-Aug-22,6657458,6.02,LIMITED COMPANY,GAZPROM MARKETING AND TRADING LTD,300000250807105
Portsmouth City Council,PCC,Housing Revenue Account,Special Services,"Housing, Neighbourhood and Building Services",Premises-Related Expenditure,Energy costs,11-Aug-22,6657458,197.56,LIMITED COMPANY,GAZPROM MARKETING AND TRADING LTD,300000250807105
Portsmouth City Council,PCC,Housing Revenue Account,Special Services,"Housing, Neighbourhood and Building Services",Premises-Related Expenditure,Energy costs,11-Aug-22,6657458,"1,703.72",LIMITED COMPANY,GAZPROM MARKETING AND TRADING LTD,300000250807105
Portsmouth City Council,PCC,Other,Suspense and Capital Schemes,"Housing, Neighbourhood and Building Services",Premises-Related Expenditure,Energy costs,11-Aug-22,6657458,"1,916.63",LIMITED COMPANY,GAZPROM MARKETING AND TRADING LTD,300000250807105
Portsmouth City Council,PCC,Cultural and Related Services,Open Spaces,"Culture, Leisure & Regulatory Services",Premises-Related Expenditure,Energy costs,11-Aug-22,6657458,-378.62,LIMITED COMPANY,GAZPROM MARKETING AND TRADING LTD,300000250807105
Portsmouth City Council,PCC,Cultural and Related Services,Open Spaces,"Culture, Leisure & Regulatory Services",Premises-Related Expenditure,Energy costs,11-Aug-22,6657458,-671.2,LIMITED COMPANY,GAZPROM MARKETING AND TRADING LTD,300000250807105
Portsmouth City Council,PCC,Cultural and Related Services,Open Spaces,"Culture, Leisure & Regulatory Services",Premises-Related Expenditure,Energy costs,11-Aug-22,6657458,-790.23,LIMITED COMPANY,GAZPROM MARKETING AND TRADING LTD,300000250807105
Portsmouth City Council,PCC,Cultural and Related Services,Open Spaces,"Culture, Leisure & Regulatory Services",Premises-Related Expenditure,Energy costs,11-Aug-22,6657458,"-1,047.53",LIMITED COMPANY,GAZPROM MARKETING AND TRADING LTD,300000250807105
Portsmouth City Council,PCC,Cultural and Related Services,Open Spaces,"Culture, Leisure & Regulatory Services",Premises-Related Expenditure,Energy costs,11-Aug-22,6657458,"-1,163.44",LIMITED COMPANY,GAZPROM MARKETING AND TRADING LTD,300000250807105
Portsmouth City Council,PCC,Cultural and Related Services,Open Spaces,"Culture, Leisure & Regulatory Services",Premises-Related Expenditure,Energy costs,11-Aug-22,6657458,-834.57,LIMITED COMPANY,GAZPROM MARKETING AND TRADING LTD,300000250807105
Portsmouth City Council,PCC,Cultural and Related Services,Open Spaces,"Culture, Leisure & Regulatory Services",Premises-Related Expenditure,Energy costs,11-Aug-22,6657458,857.49,LIMITED COMPANY,GAZPROM MARKETING AND TRADING LTD,300000250807105
Portsmouth City Council,PCC,Children's and Education Services,Primary Schools,Children's Services and Education,Premises-Related Expenditure,Energy costs,11-Aug-22,6657458,18.5,LIMITED COMPANY,GAZPROM MARKETING AND TRADING LTD,300000250807105
Portsmouth City Council,PCC,Support Service / Transparency Costs Unallocated,AMS,Corporate Services,Premises-Related Expenditure,Energy costs,11-Aug-22,6657458,"21,225.23",LIMITED COMPANY,GAZPROM MARKETING AND TRADING LTD,300000250807105
Portsmouth City Council,PCC,Housing Revenue Account,Special Services,"Housing, Neighbourhood and Building Services",Premises-Related Expenditure,Energy costs,11-Aug-22,6657458,"22,206.21",LIMITED COMPANY,GAZPROM MARKETING AND TRADING LTD,300000250807105
Portsmouth City Council,PCC,Children's and Education Services,Primary Schools,Children's Services and Education,Premises-Related Expenditure,Energy costs,11-Aug-22,6657458,666.69,LIMITED COMPANY,GAZPROM MARKETING AND TRADING LTD,300000250807105
Portsmouth City Council,PCC,Children's and Education Services,Primary Schools,Children's Services and Education,Premises-Related Expenditure,Energy costs,11-Aug-22,6657458,53.76,LIMITED COMPANY,GAZPROM MARKETING AND TRADING LTD,300000250807105
Portsmouth City Council,PCC,Housing Revenue Account,Special Services,"Housing, Neighbourhood and Building Services",Premises-Related Expenditure,Energy costs,11-Aug-22,6657458,20.23,LIMITED COMPANY,GAZPROM MARKETING AND TRADING LTD,300000250807105
Portsmouth City Council,PCC,Costs below Net Cost of Services,Trading,Regeneration,Premises-Related Expenditure,Energy costs,11-Aug-22,6657458,6.02,LIMITED COMPANY,GAZPROM MARKETING AND TRADING LTD,300000250807105
Portsmouth City Council,PCC,Housing Revenue Account,Special Services,"Housing, Neighbourhood and Building Services",Premises-Related Expenditure,Energy costs,11-Aug-22,6657458,245,LIMITED COMPANY,GAZPROM MARKETING AND TRADING LTD,300000250807105
Portsmouth City Council,PCC,Housing Revenue Account,Special Services,"Housing, Neighbourhood and Building Services",Premises-Related Expenditure,Energy costs,11-Aug-22,6657458,73.47,LIMITED COMPANY,GAZPROM MARKETING AND TRADING LTD,300000250807105
Portsmouth City Council,PCC,Housing Revenue Account,Special Services,"Housing, Neighbourhood and Building Services",Premises-Related Expenditure,Energy costs,11-Aug-22,6657458,92.46,LIMITED COMPANY,GAZPROM MARKETING AND TRADING LTD,300000250807105
Portsmouth City Council,PCC,Cultural and Related Services,Recreation and Sport,"Culture, Leisure & Regulatory Services",Premises-Related Expenditure,Energy costs,11-Aug-22,6657458,70.09,LIMITED COMPANY,GAZPROM MARKETING AND TRADING LTD,300000250807105
Portsmouth City Council,PCC,Planning Services,Business support,Regeneration,Premises-Related Expenditure,Energy costs,11-Aug-22,6657458,25.71,LIMITED COMPANY,GAZPROM MARKETING AND TRADING LTD,300000250807105
Portsmouth City Council,PCC,Children's and Education Services,Primary Schools,Children's Services and Education,Premises-Related Expenditure,Energy costs,11-Aug-22,6657458,570.5,LIMITED COMPANY,GAZPROM MARKETING AND TRADING LTD,300000250807105
Portsmouth City Council,PCC,Children's and Education Services,Family Support Services,Children's Services and Education,Premises-Related Expenditure,Energy costs,11-Aug-22,6657458,245.29,LIMITED COMPANY,GAZPROM MARKETING AND TRADING LTD,300000250807105
Portsmouth City Council,PCC,Housing Revenue Account,Special Services,"Housing, Neighbourhood and Building Services",Premises-Related Expenditure,Energy costs,11-Aug-22,6657458,384.16,LIMITED COMPANY,GAZPROM MARKETING AND TRADING LTD,300000250807105
Portsmouth City Council,PCC,Housing Revenue Account,Special Services,"Housing, Neighbourhood and Building Services",Premises-Related Expenditure,Energy costs,11-Aug-22,6657458,109.78,LIMITED COMPANY,GAZPROM MARKETING AND TRADING LTD,300000250807105
Portsmouth City Council,PCC,Adult Social Care,Support with Memory and Cognition Older People (85+),Adult Care,Third Party Payments,Other establishments,12-Aug-22,6657673,"3,428.29",SUPPLIER,ALTON MANOR LTD,300000020457904
Portsmouth City Council,PCC,Central Services,"Registration of Births, Deaths and Marriages","Culture, Leisure & Regulatory Services",Premises-Related Expenditure,Energy costs,11-Aug-22,6657458,117.58,LIMITED COMPANY,GAZPROM MARKETING AND TRADING LTD,300000250807105
Portsmouth City Council,PCC,Other,Suspense and Capital Schemes,Capital - Housing General Fund,Capital Charges,Capital Expenditure (WIP),11-Aug-22,6657458,15.59,LIMITED COMPANY,GAZPROM MARKETING AND TRADING LTD,300000250807105
Portsmouth City Council,PCC,Children's and Education Services,Primary Schools,Children's Services and Education,Premises-Related Expenditure,Energy costs,11-Aug-22,6657458,89.1,LIMITED COMPANY,GAZPROM MARKETING AND TRADING LTD,300000250807105
Portsmouth City Council,PCC,Children's and Education Services,Primary Schools,Children's Services and Education,Premises-Related Expenditure,Energy costs,11-Aug-22,6657458,22.47,LIMITED COMPANY,GAZPROM MARKETING AND TRADING LTD,300000250807105
Portsmouth City Council,PCC,Children's and Education Services,Primary Schools,Children's Services and Education,Premises-Related Expenditure,Energy costs,11-Aug-22,6657458,75.03,LIMITED COMPANY,GAZPROM MARKETING AND TRADING LTD,300000250807105
Portsmouth City Council,PCC,Planning Services,Business support,Regeneration,Premises-Related Expenditure,Energy costs,11-Aug-22,6657458,331.93,LIMITED COMPANY,GAZPROM MARKETING AND TRADING LTD,300000250807105
Portsmouth City Council,PCC,Children's and Education Services,Children Looked After,Children's Services and Education,Premises-Related Expenditure,Energy costs,11-Aug-22,6657458,376.32,LIMITED COMPANY,GAZPROM MARKETING AND TRADING LTD,300000250807105
Portsmouth City Council,PCC,Housing Revenue Account,Supervision and Management,"Housing, Neighbourhood and Building Services",Premises-Related Expenditure,Energy costs,11-Aug-22,6657458,63.19,LIMITED COMPANY,GAZPROM MARKETING AND TRADING LTD,300000250807105
Portsmouth City Council,PCC,Housing Revenue Account,Special Services,"Housing, Neighbourhood and Building Services",Premises-Related Expenditure,CRC Allowances,11-Aug-22,6657458,71.12,LIMITED COMPANY,GAZPROM MARKETING AND TRADING LTD,300000250807105
Portsmouth City Council,PCC,Housing Revenue Account,Special Services,"Housing, Neighbourhood and Building Services",Premises-Related Expenditure,Energy costs,11-Aug-22,6657458,27.86,LIMITED COMPANY,GAZPROM MARKETING AND TRADING LTD,300000250807105
Portsmouth City Council,PCC,Housing Revenue Account,Special Services,"Housing, Neighbourhood and Building Services",Premises-Related Expenditure,Energy costs,11-Aug-22,6657458,"22,467.41",LIMITED COMPANY,GAZPROM MARKETING AND TRADING LTD,300000250807105
Portsmouth City Council,PCC,Housing Revenue Account,Special Services,"Housing, Neighbourhood and Building Services",Premises-Related Expenditure,Energy costs,11-Aug-22,6657458,"1,245.18",LIMITED COMPANY,GAZPROM MARKETING AND TRADING LTD,300000250807105
Portsmouth City Council,PCC,Planning Services,Business support,Regeneration,Premises-Related Expenditure,Energy costs,11-Aug-22,6657458,144.11,LIMITED COMPANY,GAZPROM MARKETING AND TRADING LTD,300000250807105
Portsmouth City Council,PCC,Housing Revenue Account,Special Services,"Housing, Neighbourhood and Building Services",Premises-Related Expenditure,Energy costs,11-Aug-22,6657458,"1,616.64",LIMITED COMPANY,GAZPROM MARKETING AND TRADING LTD,300000250807105
Portsmouth City Council,PCC,Housing Revenue Account,Special Services,"Housing, Neighbourhood and Building Services",Premises-Related Expenditure,Energy costs,11-Aug-22,6657458,"1,518.78",LIMITED COMPANY,GAZPROM MARKETING AND TRADING LTD,300000250807105
Portsmouth City Council,PCC,Cultural and Related Services,Culture and Heritage,"Culture, Leisure & Regulatory Services",Premises-Related Expenditure,Energy costs,11-Aug-22,6657458,"1,082.12",LIMITED COMPANY,GAZPROM MARKETING AND TRADING LTD,300000250807105
Portsmouth City Council,PCC,Cultural and Related Services,Culture and Heritage,"Culture, Leisure & Regulatory Services",Premises-Related Expenditure,Energy costs,11-Aug-22,6657458,96.01,LIMITED COMPANY,GAZPROM MARKETING AND TRADING LTD,300000250807105
Portsmouth City Council,PCC,Housing Revenue Account,Special Services,"Housing, Neighbourhood and Building Services",Premises-Related Expenditure,Energy costs,11-Aug-22,6657458,434.76,LIMITED COMPANY,GAZPROM MARKETING AND TRADING LTD,300000250807105
Portsmouth City Council,PCC,Housing Revenue Account,Supervision and Management,"Housing, Neighbourhood and Building Services",Premises-Related Expenditure,Energy costs,11-Aug-22,6657458,60.91,LIMITED COMPANY,GAZPROM MARKETING AND TRADING LTD,300000250807105
Portsmouth City Council,PCC,Highways and Transport Services,"Airports, Harbours and Toll Facilities",Portsmouth International Port,Premises-Related Expenditure,Energy costs,11-Aug-22,6657458,29.8,LIMITED COMPANY,GAZPROM MARKETING AND TRADING LTD,300000250807105
Portsmouth City Council,PCC,Housing Revenue Account,Special Services,"Housing, Neighbourhood and Building Services",Premises-Related Expenditure,Energy costs,11-Aug-22,6657458,451.22,LIMITED COMPANY,GAZPROM MARKETING AND TRADING LTD,300000250807105
Portsmouth City Council,PCC,Children's and Education Services,Children Looked After,Children's Services and Education,Premises-Related Expenditure,Energy costs,11-Aug-22,6657458,211.1,LIMITED COMPANY,GAZPROM MARKETING AND TRADING LTD,300000250807105
Portsmouth City Council,PCC,Housing Revenue Account,Special Services,"Housing, Neighbourhood and Building Services",Premises-Related Expenditure,CRC Allowances,11-Aug-22,6657458,10.98,LIMITED COMPANY,GAZPROM MARKETING AND TRADING LTD,300000250807105
Portsmouth City Council,PCC,Housing Revenue Account,Special Services,"Housing, Neighbourhood and Building Services",Premises-Related Expenditure,CRC Allowances,11-Aug-22,6657458,19.9,LIMITED COMPANY,GAZPROM MARKETING AND TRADING LTD,300000250807105
Portsmouth City Council,PCC,Housing Revenue Account,Special Services,"Housing, Neighbourhood and Building Services",Premises-Related Expenditure,Energy costs,11-Aug-22,6657458,7.69,LIMITED COMPANY,GAZPROM MARKETING AND TRADING LTD,300000250807105
Portsmouth City Council,PCC,Housing Revenue Account,Special Services,"Housing, Neighbourhood and Building Services",Premises-Related Expenditure,Energy costs,11-Aug-22,6657458,5.92,LIMITED COMPANY,GAZPROM MARKETING AND TRADING LTD,300000250807105
Portsmouth City Council,PCC,Housing Revenue Account,Special Services,"Housing, Neighbourhood and Building Services",Premises-Related Expenditure,Energy costs,11-Aug-22,6657458,167.14,LIMITED COMPANY,GAZPROM MARKETING AND TRADING LTD,300000250807105
Portsmouth City Council,PCC,Cultural and Related Services,Recreation and Sport,"Culture, Leisure & Regulatory Services",Premises-Related Expenditure,Energy costs,11-Aug-22,6657458,590.07,LIMITED COMPANY,GAZPROM MARKETING AND TRADING LTD,300000250807105
Portsmouth City Council,PCC,Housing Revenue Account,Special Services,"Housing, Neighbourhood and Building Services",Premises-Related Expenditure,Energy costs,11-Aug-22,6657458,417.99,LIMITED COMPANY,GAZPROM MARKETING AND TRADING LTD,300000250807105
Portsmouth City Council,PCC,Housing Revenue Account,Supervision and Management,"Housing, Neighbourhood and Building Services",Premises-Related Expenditure,Energy costs,11-Aug-22,6657458,16.3,LIMITED COMPANY,GAZPROM MARKETING AND TRADING LTD,300000250807105
Portsmouth City Council,PCC,Adult Social Care,Support with Memory and Cognition Older People (85+),Adult Care,Third Party Payments,Other establishments,12-Aug-22,6657673,"3,532.14",SUPPLIER,ALTON MANOR LTD,300000020457904
Portsmouth City Council,PCC,Housing Revenue Account,Special Services,"Housing, Neighbourhood and Building Services",Premises-Related Expenditure,Energy costs,11-Aug-22,6657458,27.91,LIMITED COMPANY,GAZPROM MARKETING AND TRADING LTD,300000250807105
Portsmouth City Council,PCC,Adult Social Care,Support with Memory and Cognition Older People (85+),Adult Care,Third Party Payments,Other establishments,12-Aug-22,6657673,"3,766.19",SUPPLIER,ALTON MANOR LTD,300000020457904
Portsmouth City Council,PCC,Highways and Transport Services,"Airports, Harbours and Toll Facilities",Portsmouth International Port,Premises-Related Expenditure,Energy costs,11-Aug-22,6657458,5.92,LIMITED COMPANY,GAZPROM MARKETING AND TRADING LTD,300000250807105
Portsmouth City Council,PCC,Adult Social Care,Physical Support Older People (85+),Adult Care,Third Party Payments,Other establishments,12-Aug-22,6657673,"4,000.08",SUPPLIER,ALTON MANOR LTD,300000020457904
Portsmouth City Council,PCC,Housing Revenue Account,Supervision and Management,"Housing, Neighbourhood and Building Services",Premises-Related Expenditure,Energy costs,11-Aug-22,6657458,331.85,LIMITED COMPANY,GAZPROM MARKETING AND TRADING LTD,300000250807105
Portsmouth City Council,PCC,Other,Suspense and Capital Schemes,Portsmouth International Port,Premises-Related Expenditure,Energy costs,11-Aug-22,6657458,703.39,LIMITED COMPANY,GAZPROM MARKETING AND TRADING LTD,300000250807105
Portsmouth City Council,PCC,Children's and Education Services,Primary Schools,Children's Services and Education,Premises-Related Expenditure,Energy costs,11-Aug-22,6657458,190.54,LIMITED COMPANY,GAZPROM MARKETING AND TRADING LTD,300000250807105
Portsmouth City Council,PCC,Children's and Education Services,Primary Schools,Children's Services and Education,Premises-Related Expenditure,Energy costs,11-Aug-22,6657458,61.66,LIMITED COMPANY,GAZPROM MARKETING AND TRADING LTD,300000250807105
Portsmouth City Council,PCC,Housing Revenue Account,Special Services,"Housing, Neighbourhood and Building Services",Premises-Related Expenditure,Energy costs,11-Aug-22,6657458,498.62,LIMITED COMPANY,GAZPROM MARKETING AND TRADING LTD,300000250807105
Portsmouth City Council,PCC,Housing Revenue Account,Special Services,"Housing, Neighbourhood and Building Services",Premises-Related Expenditure,Energy costs,11-Aug-22,6657458,148.76,LIMITED COMPANY,GAZPROM MARKETING AND TRADING LTD,300000250807105
Portsmouth City Council,PCC,Children's and Education Services,Other Education and Community Budget,Children's Services and Education,Premises-Related Expenditure,Energy costs,11-Aug-22,6657458,9.3,LIMITED COMPANY,GAZPROM MARKETING AND TRADING LTD,300000250807105
Portsmouth City Council,PCC,Housing Revenue Account,Special Services,"Housing, Neighbourhood and Building Services",Premises-Related Expenditure,Energy costs,11-Aug-22,6657458,29.06,LIMITED COMPANY,GAZPROM MARKETING AND TRADING LTD,300000250807105
Portsmouth City Council,PCC,Housing Revenue Account,Special Services,"Housing, Neighbourhood and Building Services",Premises-Related Expenditure,Energy costs,11-Aug-22,6657458,44.01,LIMITED COMPANY,GAZPROM MARKETING AND TRADING LTD,300000250807105
Portsmouth City Council,PCC,Housing Revenue Account,Special Services,"Housing, Neighbourhood and Building Services",Premises-Related Expenditure,Energy costs,11-Aug-22,6657458,77.25,LIMITED COMPANY,GAZPROM MARKETING AND TRADING LTD,300000250807105
Portsmouth City Council,PCC,Housing Revenue Account,Special Services,"Housing, Neighbourhood and Building Services",Premises-Related Expenditure,Energy costs,11-Aug-22,6657458,6.02,LIMITED COMPANY,GAZPROM MARKETING AND TRADING LTD,300000250807105
Portsmouth City Council,PCC,Housing Revenue Account,"Rents, Rates, Taxes and Other Charges","Housing, Neighbourhood and Building Services",Premises-Related Expenditure,Energy costs,11-Aug-22,6657458,12.7,LIMITED COMPANY,GAZPROM MARKETING AND TRADING LTD,300000250807105
Portsmouth City Council,PCC,Housing Revenue Account,Special Services,"Housing, Neighbourhood and Building Services",Premises-Related Expenditure,Energy costs,11-Aug-22,6657458,5.92,LIMITED COMPANY,GAZPROM MARKETING AND TRADING LTD,300000250807105
Portsmouth City Council,PCC,Adult Social Care,Physical Support Older People (85+),Adult Care,Third Party Payments,Other establishments,12-Aug-22,6657673,"4,428.66",SUPPLIER,ALTON MANOR LTD,300000020457904
Portsmouth City Council,PCC,Adult Social Care,Support with Memory and Cognition Older People (65 - 74),Adult Care,Supplies and Services,"Printing, stationery and general office expenses",30-Aug-22,6660931,32.46,SUPPLIER,AMAZON BUSINESS EU SARL,300000020473393
Portsmouth City Council,PCC,Children's and Education Services,Children Looked After,Children's Services and Education,Premises-Related Expenditure,Energy costs,11-Aug-22,6657458,338.9,LIMITED COMPANY,GAZPROM MARKETING AND TRADING LTD,300000250807105
Portsmouth City Council,PCC,Housing Revenue Account,Special Services,"Housing, Neighbourhood and Building Services",Premises-Related Expenditure,Energy costs,11-Aug-22,6657458,150.73,LIMITED COMPANY,GAZPROM MARKETING AND TRADING LTD,300000250807105
Portsmouth City Council,PCC,Cultural and Related Services,Library Service,"Culture, Leisure & Regulatory Services",Premises-Related Expenditure,Energy costs,11-Aug-22,6657458,27.83,LIMITED COMPANY,GAZPROM MARKETING AND TRADING LTD,300000250807105
Portsmouth City Council,PCC,Housing Revenue Account,Special Services,"Housing, Neighbourhood and Building Services",Premises-Related Expenditure,Energy costs,11-Aug-22,6657458,32.31,LIMITED COMPANY,GAZPROM MARKETING AND TRADING LTD,300000250807105
Portsmouth City Council,PCC,Housing Revenue Account,Special Services,"Housing, Neighbourhood and Building Services",Premises-Related Expenditure,Energy costs,11-Aug-22,6657458,964.46,LIMITED COMPANY,GAZPROM MARKETING AND TRADING LTD,300000250807105
Portsmouth City Council,PCC,Housing Revenue Account,Special Services,"Housing, Neighbourhood and Building Services",Premises-Related Expenditure,Energy costs,11-Aug-22,6657458,74.52,LIMITED COMPANY,GAZPROM MARKETING AND TRADING LTD,300000250807105
Portsmouth City Council,PCC,Housing Revenue Account,Special Services,"Housing, Neighbourhood and Building Services",Premises-Related Expenditure,Energy costs,11-Aug-22,6657458,"1,680.59",LIMITED COMPANY,GAZPROM MARKETING AND TRADING LTD,300000250807105
Portsmouth City Council,PCC,Housing Revenue Account,Special Services,"Housing, Neighbourhood and Building Services",Premises-Related Expenditure,Energy costs,11-Aug-22,6657458,495.42,LIMITED COMPANY,GAZPROM MARKETING AND TRADING LTD,300000250807105
Portsmouth City Council,PCC,Children's and Education Services,Primary Schools,Children's Services and Education,Premises-Related Expenditure,Energy costs,11-Aug-22,6657458,275.92,LIMITED COMPANY,GAZPROM MARKETING AND TRADING LTD,300000250807105
Portsmouth City Council,PCC,Children's and Education Services,Primary Schools,Children's Services and Education,Premises-Related Expenditure,Energy costs,11-Aug-22,6657458,263.06,LIMITED COMPANY,GAZPROM MARKETING AND TRADING LTD,300000250807105
Portsmouth City Council,PCC,Other,Suspense and Capital Schemes,"Housing, Neighbourhood and Building Services",Premises-Related Expenditure,Energy costs,11-Aug-22,6657458,28.44,LIMITED COMPANY,GAZPROM MARKETING AND TRADING LTD,300000250807105
Portsmouth City Council,PCC,Other,Suspense and Capital Schemes,"Housing, Neighbourhood and Building Services",Premises-Related Expenditure,Energy costs,11-Aug-22,6657458,28.77,LIMITED COMPANY,GAZPROM MARKETING AND TRADING LTD,300000250807105
Portsmouth City Council,PCC,Planning Services,Business support,Regeneration,Premises-Related Expenditure,Energy costs,11-Aug-22,6657458,10.59,LIMITED COMPANY,GAZPROM MARKETING AND TRADING LTD,300000250807105
Portsmouth City Council,PCC,Planning Services,Business support,Regeneration,Premises-Related Expenditure,Energy costs,11-Aug-22,6657458,933.28,LIMITED COMPANY,GAZPROM MARKETING AND TRADING LTD,300000250807105
Portsmouth City Council,PCC,Children's and Education Services,Primary Schools,Children's Services and Education,Premises-Related Expenditure,Energy costs,11-Aug-22,6657458,423.29,LIMITED COMPANY,GAZPROM MARKETING AND TRADING LTD,300000250807105
Portsmouth City Council,PCC,Children's and Education Services,Primary Schools,Children's Services and Education,Premises-Related Expenditure,Energy costs,11-Aug-22,6657458,30.22,LIMITED COMPANY,GAZPROM MARKETING AND TRADING LTD,300000250807105
Portsmouth City Council,PCC,Children's and Education Services,Primary Schools,Children's Services and Education,Premises-Related Expenditure,Energy costs,11-Aug-22,6657458,343.55,LIMITED COMPANY,GAZPROM MARKETING AND TRADING LTD,300000250807105
Portsmouth City Council,PCC,Housing Revenue Account,Special Services,"Housing, Neighbourhood and Building Services",Premises-Related Expenditure,Energy costs,11-Aug-22,6657458,28.9,LIMITED COMPANY,GAZPROM MARKETING AND TRADING LTD,300000250807105
Portsmouth City Council,PCC,Cultural and Related Services,Library Service,"Culture, Leisure & Regulatory Services",Premises-Related Expenditure,Energy costs,11-Aug-22,6657458,314.36,LIMITED COMPANY,GAZPROM MARKETING AND TRADING LTD,300000250807105
Portsmouth City Council,PCC,Cultural and Related Services,Culture and Heritage,"Culture, Leisure & Regulatory Services",Premises-Related Expenditure,Energy costs,11-Aug-22,6657458,5.83,LIMITED COMPANY,GAZPROM MARKETING AND TRADING LTD,300000250807105
Portsmouth City Council,PCC,Housing Revenue Account,Special Services,"Housing, Neighbourhood and Building Services",Premises-Related Expenditure,Energy costs,11-Aug-22,6657458,51.7,LIMITED COMPANY,GAZPROM MARKETING AND TRADING LTD,300000250807105
Portsmouth City Council,PCC,Highways and Transport Services,"Airports, Harbours and Toll Facilities",Portsmouth International Port,Premises-Related Expenditure,Energy costs,11-Aug-22,6657458,6.02,LIMITED COMPANY,GAZPROM MARKETING AND TRADING LTD,300000250807105
Portsmouth City Council,PCC,Children's and Education Services,Primary Schools,Children's Services and Education,Premises-Related Expenditure,Energy costs,11-Aug-22,6657458,428.52,LIMITED COMPANY,GAZPROM MARKETING AND TRADING LTD,300000250807105
Portsmouth City Council,PCC,Children's and Education Services,Primary Schools,Children's Services and Education,Premises-Related Expenditure,Energy costs,11-Aug-22,6657458,21.26,LIMITED COMPANY,GAZPROM MARKETING AND TRADING LTD,300000250807105
Portsmouth City Council,PCC,Housing Revenue Account,Special Services,"Housing, Neighbourhood and Building Services",Premises-Related Expenditure,Energy costs,11-Aug-22,6657458,61.4,LIMITED COMPANY,GAZPROM MARKETING AND TRADING LTD,300000250807105
Portsmouth City Council,PCC,Housing Revenue Account,Special Services,"Housing, Neighbourhood and Building Services",Premises-Related Expenditure,Energy costs,11-Aug-22,6657458,16.29,LIMITED COMPANY,GAZPROM MARKETING AND TRADING LTD,300000250807105
Portsmouth City Council,PCC,Housing Revenue Account,Special Services,"Housing, Neighbourhood and Building Services",Premises-Related Expenditure,Energy costs,11-Aug-22,6657458,49.73,LIMITED COMPANY,GAZPROM MARKETING AND TRADING LTD,300000250807105
Portsmouth City Council,PCC,Children's and Education Services,Primary Schools,Children's Services and Education,Premises-Related Expenditure,Energy costs,11-Aug-22,6657458,644.4,LIMITED COMPANY,GAZPROM MARKETING AND TRADING LTD,300000250807105
Portsmouth City Council,PCC,Housing Revenue Account,Special Services,"Housing, Neighbourhood and Building Services",Premises-Related Expenditure,Energy costs,11-Aug-22,6657458,45.67,LIMITED COMPANY,GAZPROM MARKETING AND TRADING LTD,300000250807105
Portsmouth City Council,PCC,Costs below Net Cost of Services,Trading,Regeneration,Premises-Related Expenditure,Energy costs,11-Aug-22,6657458,67.34,LIMITED COMPANY,GAZPROM MARKETING AND TRADING LTD,300000250807105
Portsmouth City Council,PCC,Housing Revenue Account,Special Services,"Housing, Neighbourhood and Building Services",Premises-Related Expenditure,Energy costs,11-Aug-22,6657458,512.43,LIMITED COMPANY,GAZPROM MARKETING AND TRADING LTD,300000250807105
Portsmouth City Council,PCC,Children's and Education Services,Family Support Services,Children's Services and Education,Premises-Related Expenditure,Energy costs,11-Aug-22,6657458,722.39,LIMITED COMPANY,GAZPROM MARKETING AND TRADING LTD,300000250807105
Portsmouth City Council,PCC,Children's and Education Services,Primary Schools,Children's Services and Education,Premises-Related Expenditure,Energy costs,11-Aug-22,6657458,575.39,LIMITED COMPANY,GAZPROM MARKETING AND TRADING LTD,300000250807105
Portsmouth City Council,PCC,Other,Suspense and Capital Schemes,"Housing, Neighbourhood and Building Services",Premises-Related Expenditure,Energy costs,11-Aug-22,6657458,19.39,LIMITED COMPANY,GAZPROM MARKETING AND TRADING LTD,300000250807105
Portsmouth City Council,PCC,Other,Suspense and Capital Schemes,"Housing, Neighbourhood and Building Services",Premises-Related Expenditure,Energy costs,11-Aug-22,6657458,612.08,LIMITED COMPANY,GAZPROM MARKETING AND TRADING LTD,300000250807105
Portsmouth City Council,PCC,Adult Social Care,Support with Memory and Cognition Older People (65 - 74),Adult Care,Supplies and Services,"Equipment, furniture and materials",10-Aug-22,6657344,21.64,SUPPLIER,AMAZON BUSINESS EU SARL,300000020473393
Portsmouth City Council,PCC,Housing Revenue Account,"Rents, Rates, Taxes and Other Charges","Housing, Neighbourhood and Building Services",Premises-Related Expenditure,Energy costs,11-Aug-22,6657458,38.81,LIMITED COMPANY,GAZPROM MARKETING AND TRADING LTD,300000250807105
Portsmouth City Council,PCC,Housing Revenue Account,Special Services,"Housing, Neighbourhood and Building Services",Premises-Related Expenditure,Energy costs,11-Aug-22,6657458,7.66,LIMITED COMPANY,GAZPROM MARKETING AND TRADING LTD,300000250807105
Portsmouth City Council,PCC,Housing Revenue Account,"Rents, Rates, Taxes and Other Charges","Housing, Neighbourhood and Building Services",Premises-Related Expenditure,Energy costs,11-Aug-22,6657458,50.07,LIMITED COMPANY,GAZPROM MARKETING AND TRADING LTD,300000250807105
Portsmouth City Council,PCC,Housing Revenue Account,"Rents, Rates, Taxes and Other Charges","Housing, Neighbourhood and Building Services",Premises-Related Expenditure,Energy costs,11-Aug-22,6657458,40.86,LIMITED COMPANY,GAZPROM MARKETING AND TRADING LTD,300000250807105
Portsmouth City Council,PCC,Housing Revenue Account,Special Services,"Housing, Neighbourhood and Building Services",Premises-Related Expenditure,Energy costs,11-Aug-22,6657458,10.06,LIMITED COMPANY,GAZPROM MARKETING AND TRADING LTD,300000250807105
Portsmouth City Council,PCC,Children's and Education Services,Primary Schools,Children's Services and Education,Premises-Related Expenditure,Energy costs,11-Aug-22,6657458,645.3,LIMITED COMPANY,GAZPROM MARKETING AND TRADING LTD,300000250807105
Portsmouth City Council,PCC,Housing Revenue Account,Special Services,"Housing, Neighbourhood and Building Services",Premises-Related Expenditure,Energy costs,11-Aug-22,6657458,72.56,LIMITED COMPANY,GAZPROM MARKETING AND TRADING LTD,300000250807105
Portsmouth City Council,PCC,Children's and Education Services,Primary Schools,Children's Services and Education,Premises-Related Expenditure,Energy costs,11-Aug-22,6657458,232.86,LIMITED COMPANY,GAZPROM MARKETING AND TRADING LTD,300000250807105
Portsmouth City Council,PCC,Housing Revenue Account,Supervision and Management,"Housing, Neighbourhood and Building Services",Premises-Related Expenditure,Energy costs,11-Aug-22,6657458,296.45,LIMITED COMPANY,GAZPROM MARKETING AND TRADING LTD,300000250807105
Portsmouth City Council,PCC,Housing Revenue Account,Supervision and Management,"Housing, Neighbourhood and Building Services",Premises-Related Expenditure,Energy costs,11-Aug-22,6657458,343.56,LIMITED COMPANY,GAZPROM MARKETING AND TRADING LTD,300000250807105
Portsmouth City Council,PCC,Housing Revenue Account,Special Services,"Housing, Neighbourhood and Building Services",Premises-Related Expenditure,Energy costs,11-Aug-22,6657458,6.02,LIMITED COMPANY,GAZPROM MARKETING AND TRADING LTD,300000250807105
Portsmouth City Council,PCC,Housing Revenue Account,Special Services,"Housing, Neighbourhood and Building Services",Premises-Related Expenditure,Energy costs,11-Aug-22,6657458,"-25,303.57",LIMITED COMPANY,GAZPROM MARKETING AND TRADING LTD,300000250807105
Portsmouth City Council,PCC,Housing Revenue Account,Special Services,"Housing, Neighbourhood and Building Services",Premises-Related Expenditure,Energy costs,11-Aug-22,6657458,"-3,011.92",LIMITED COMPANY,GAZPROM MARKETING AND TRADING LTD,300000250807105
Portsmouth City Council,PCC,Other,Suspense and Capital Schemes,"Housing, Neighbourhood and Building Services",Premises-Related Expenditure,Energy costs,19-Aug-22,6658983,-28.77,LIMITED COMPANY,GAZPROM MARKETING AND TRADING LTD,300000250807105
Portsmouth City Council,PCC,Other,Suspense and Capital Schemes,"Housing, Neighbourhood and Building Services",Premises-Related Expenditure,Energy costs,19-Aug-22,6658983,-42.83,LIMITED COMPANY,GAZPROM MARKETING AND TRADING LTD,300000250807105
Portsmouth City Council,PCC,Other,Suspense and Capital Schemes,"Housing, Neighbourhood and Building Services",Premises-Related Expenditure,Energy costs,19-Aug-22,6658983,-65.78,LIMITED COMPANY,GAZPROM MARKETING AND TRADING LTD,300000250807105
Portsmouth City Council,PCC,Other,Suspense and Capital Schemes,"Housing, Neighbourhood and Building Services",Premises-Related Expenditure,Energy costs,19-Aug-22,6658983,-114.41,LIMITED COMPANY,GAZPROM MARKETING AND TRADING LTD,300000250807105
Portsmouth City Council,PCC,Other,Suspense and Capital Schemes,"Housing, Neighbourhood and Building Services",Premises-Related Expenditure,Energy costs,19-Aug-22,6658983,-135.51,LIMITED COMPANY,GAZPROM MARKETING AND TRADING LTD,300000250807105
Portsmouth City Council,PCC,Other,Suspense and Capital Schemes,"Housing, Neighbourhood and Building Services",Premises-Related Expenditure,Energy costs,19-Aug-22,6658983,-160.11,LIMITED COMPANY,GAZPROM MARKETING AND TRADING LTD,300000250807105
Portsmouth City Council,PCC,Other,Suspense and Capital Schemes,"Housing, Neighbourhood and Building Services",Premises-Related Expenditure,Energy costs,19-Aug-22,6658983,-19.39,LIMITED COMPANY,GAZPROM MARKETING AND TRADING LTD,300000250807105
Portsmouth City Council,PCC,Other,Suspense and Capital Schemes,"Housing, Neighbourhood and Building Services",Premises-Related Expenditure,Energy costs,19-Aug-22,6658983,-22.96,LIMITED COMPANY,GAZPROM MARKETING AND TRADING LTD,300000250807105
Portsmouth City Council,PCC,Other,Suspense and Capital Schemes,"Housing, Neighbourhood and Building Services",Premises-Related Expenditure,Energy costs,19-Aug-22,6658983,-27.34,LIMITED COMPANY,GAZPROM MARKETING AND TRADING LTD,300000250807105
Portsmouth City Council,PCC,Other,Suspense and Capital Schemes,"Housing, Neighbourhood and Building Services",Premises-Related Expenditure,Energy costs,19-Aug-22,6658983,-23.54,LIMITED COMPANY,GAZPROM MARKETING AND TRADING LTD,300000250807105
Portsmouth City Council,PCC,Other,Suspense and Capital Schemes,"Housing, Neighbourhood and Building Services",Premises-Related Expenditure,Energy costs,19-Aug-22,6658983,-33,LIMITED COMPANY,GAZPROM MARKETING AND TRADING LTD,300000250807105
Portsmouth City Council,PCC,Housing Revenue Account,Special Services,"Housing, Neighbourhood and Building Services",Premises-Related Expenditure,Energy costs,11-Aug-22,6657458,"-4,469.81",LIMITED COMPANY,GAZPROM MARKETING AND TRADING LTD,300000250807105
Portsmouth City Council,PCC,Housing Revenue Account,Special Services,"Housing, Neighbourhood and Building Services",Premises-Related Expenditure,Energy costs,11-Aug-22,6657458,"-11,590.75",LIMITED COMPANY,GAZPROM MARKETING AND TRADING LTD,300000250807105
Portsmouth City Council,PCC,Children's and Education Services,Primary Schools,Children's Services and Education,Premises-Related Expenditure,Energy costs,11-Aug-22,6657458,-10.92,LIMITED COMPANY,GAZPROM MARKETING AND TRADING LTD,300000250807105
Portsmouth City Council,PCC,Other,Suspense and Capital Schemes,"Housing, Neighbourhood and Building Services",Premises-Related Expenditure,Energy costs,19-Aug-22,6658983,-28.44,LIMITED COMPANY,GAZPROM MARKETING AND TRADING LTD,300000250807105
Portsmouth City Council,PCC,Other,Suspense and Capital Schemes,"Housing, Neighbourhood and Building Services",Premises-Related Expenditure,Energy costs,19-Aug-22,6658983,-42.38,LIMITED COMPANY,GAZPROM MARKETING AND TRADING LTD,300000250807105
Portsmouth City Council,PCC,Other,Suspense and Capital Schemes,"Housing, Neighbourhood and Building Services",Premises-Related Expenditure,Energy costs,19-Aug-22,6658983,-66.5,LIMITED COMPANY,GAZPROM MARKETING AND TRADING LTD,300000250807105
Portsmouth City Council,PCC,Other,Suspense and Capital Schemes,"Housing, Neighbourhood and Building Services",Premises-Related Expenditure,Energy costs,19-Aug-22,6658983,-98.89,LIMITED COMPANY,GAZPROM MARKETING AND TRADING LTD,300000250807105
Portsmouth City Council,PCC,Other,Suspense and Capital Schemes,"Housing, Neighbourhood and Building Services",Premises-Related Expenditure,Energy costs,19-Aug-22,6658983,-121.18,LIMITED COMPANY,GAZPROM MARKETING AND TRADING LTD,300000250807105
Portsmouth City Council,PCC,Other,Suspense and Capital Schemes,"Housing, Neighbourhood and Building Services",Premises-Related Expenditure,Energy costs,19-Aug-22,6658983,-135.16,LIMITED COMPANY,GAZPROM MARKETING AND TRADING LTD,300000250807105
Portsmouth City Council,PCC,Other,Suspense and Capital Schemes,"Housing, Neighbourhood and Building Services",Premises-Related Expenditure,Energy costs,19-Aug-22,6658983,-103.75,LIMITED COMPANY,GAZPROM MARKETING AND TRADING LTD,300000250807105
Portsmouth City Council,PCC,Other,Suspense and Capital Schemes,"Housing, Neighbourhood and Building Services",Premises-Related Expenditure,Energy costs,19-Aug-22,6658983,-87.68,LIMITED COMPANY,GAZPROM MARKETING AND TRADING LTD,300000250807105
Portsmouth City Council,PCC,Other,Suspense and Capital Schemes,"Housing, Neighbourhood and Building Services",Premises-Related Expenditure,Energy costs,19-Aug-22,6658983,-53.63,LIMITED COMPANY,GAZPROM MARKETING AND TRADING LTD,300000250807105
Portsmouth City Council,PCC,Adult Social Care,Learning Disability Support Adults (18 - 64),Adult Care,Supplies and Services,"Equipment, furniture and materials",22-Aug-22,6659442,9.15,SUPPLIER,AMAZON BUSINESS EU SARL,300000020473393
Portsmouth City Council,PCC,Children's and Education Services,Primary Schools,Children's Services and Education,Premises-Related Expenditure,Energy costs,19-Aug-22,6658983,119.05,LIMITED COMPANY,GAZPROM MARKETING AND TRADING LTD,300000250807105
Portsmouth City Council,PCC,Housing Revenue Account,Special Services,"Housing, Neighbourhood and Building Services",Premises-Related Expenditure,Energy costs,11-Aug-22,6657458,167.47,LIMITED COMPANY,GAZPROM MARKETING AND TRADING LTD,300000250807105
Portsmouth City Council,PCC,Children's and Education Services,Secondary Schools,Children's Services and Education,Premises-Related Expenditure,Energy costs,11-Aug-22,6657458,770.96,LIMITED COMPANY,GAZPROM MARKETING AND TRADING LTD,300000250807105
Portsmouth City Council,PCC,Children's and Education Services,Other Education and Community Budget,Regeneration,Premises-Related Expenditure,Energy costs,11-Aug-22,6657458,316.09,LIMITED COMPANY,GAZPROM MARKETING AND TRADING LTD,300000250807105
Portsmouth City Council,PCC,Housing Revenue Account,Special Services,"Housing, Neighbourhood and Building Services",Premises-Related Expenditure,Energy costs,11-Aug-22,6657458,"1,018.60",LIMITED COMPANY,GAZPROM MARKETING AND TRADING LTD,300000250807105
Portsmouth City Council,PCC,Costs below Net Cost of Services,Trading,Regeneration,Premises-Related Expenditure,Energy costs,11-Aug-22,6657458,"35,113.78",LIMITED COMPANY,GAZPROM MARKETING AND TRADING LTD,300000250807105
Portsmouth City Council,PCC,Housing Revenue Account,Special Services,"Housing, Neighbourhood and Building Services",Premises-Related Expenditure,Energy costs,11-Aug-22,6657458,161.68,LIMITED COMPANY,GAZPROM MARKETING AND TRADING LTD,300000250807105
Portsmouth City Council,PCC,Housing Revenue Account,Special Services,"Housing, Neighbourhood and Building Services",Premises-Related Expenditure,Energy costs,11-Aug-22,6657458,33.81,LIMITED COMPANY,GAZPROM MARKETING AND TRADING LTD,300000250807105
Portsmouth City Council,PCC,Housing Revenue Account,Special Services,"Housing, Neighbourhood and Building Services",Premises-Related Expenditure,Energy costs,11-Aug-22,6657458,113.73,LIMITED COMPANY,GAZPROM MARKETING AND TRADING LTD,300000250807105
Portsmouth City Council,PCC,Housing Revenue Account,Special Services,"Housing, Neighbourhood and Building Services",Premises-Related Expenditure,Energy costs,11-Aug-22,6657458,38.76,LIMITED COMPANY,GAZPROM MARKETING AND TRADING LTD,300000250807105
Portsmouth City Council,PCC,Housing Revenue Account,Special Services,"Housing, Neighbourhood and Building Services",Premises-Related Expenditure,Energy costs,11-Aug-22,6657458,167.34,LIMITED COMPANY,GAZPROM MARKETING AND TRADING LTD,300000250807105
Portsmouth City Council,PCC,Housing Revenue Account,Special Services,"Housing, Neighbourhood and Building Services",Premises-Related Expenditure,Energy costs,11-Aug-22,6657458,35.62,LIMITED COMPANY,GAZPROM MARKETING AND TRADING LTD,300000250807105
Portsmouth City Council,PCC,Housing Revenue Account,Special Services,"Housing, Neighbourhood and Building Services",Premises-Related Expenditure,Energy costs,11-Aug-22,6657458,177.22,LIMITED COMPANY,GAZPROM MARKETING AND TRADING LTD,300000250807105
Portsmouth City Council,PCC,Housing Revenue Account,Special Services,"Housing, Neighbourhood and Building Services",Premises-Related Expenditure,Energy costs,11-Aug-22,6657458,10.75,LIMITED COMPANY,GAZPROM MARKETING AND TRADING LTD,300000250807105
Portsmouth City Council,PCC,Highways and Transport Services,"Airports, Harbours and Toll Facilities",Portsmouth International Port,Premises-Related Expenditure,Energy costs,11-Aug-22,6657458,41.78,LIMITED COMPANY,GAZPROM MARKETING AND TRADING LTD,300000250807105
Portsmouth City Council,PCC,Other,Suspense and Capital Schemes,Portsmouth International Port,Premises-Related Expenditure,Energy costs,11-Aug-22,6657458,121.06,LIMITED COMPANY,GAZPROM MARKETING AND TRADING LTD,300000250807105
Portsmouth City Council,PCC,Housing Revenue Account,Special Services,"Housing, Neighbourhood and Building Services",Premises-Related Expenditure,Energy costs,11-Aug-22,6657458,29.54,LIMITED COMPANY,GAZPROM MARKETING AND TRADING LTD,300000250807105
Portsmouth City Council,PCC,Housing Revenue Account,Special Services,"Housing, Neighbourhood and Building Services",Premises-Related Expenditure,Energy costs,11-Aug-22,6657458,36.4,LIMITED COMPANY,GAZPROM MARKETING AND TRADING LTD,300000250807105
Portsmouth City Council,PCC,Housing Revenue Account,Special Services,"Housing, Neighbourhood and Building Services",Premises-Related Expenditure,Energy costs,11-Aug-22,6657458,68.87,LIMITED COMPANY,GAZPROM MARKETING AND TRADING LTD,300000250807105
Portsmouth City Council,PCC,Housing Revenue Account,Special Services,"Housing, Neighbourhood and Building Services",Premises-Related Expenditure,Energy costs,11-Aug-22,6657458,367.77,LIMITED COMPANY,GAZPROM MARKETING AND TRADING LTD,300000250807105
Portsmouth City Council,PCC,Housing Revenue Account,Special Services,"Housing, Neighbourhood and Building Services",Premises-Related Expenditure,Energy costs,11-Aug-22,6657458,-322.08,LIMITED COMPANY,GAZPROM MARKETING AND TRADING LTD,300000250807105
Portsmouth City Council,PCC,Children's and Education Services,Primary Schools,Children's Services and Education,Premises-Related Expenditure,Energy costs,11-Aug-22,6657458,-737.88,LIMITED COMPANY,GAZPROM MARKETING AND TRADING LTD,300000250807105
Portsmouth City Council,PCC,Other,Suspense and Capital Schemes,"Housing, Neighbourhood and Building Services",Premises-Related Expenditure,Energy costs,11-Aug-22,6657458,"-1,596.26",LIMITED COMPANY,GAZPROM MARKETING AND TRADING LTD,300000250807105
Portsmouth City Council,PCC,Adult Social Care,Learning Disability Support Adults (18 - 64),Adult Care,Premises-Related Expenditure,"Repairs, alterations and maintenance of buildings",22-Aug-22,6659442,16.66,SUPPLIER,AMAZON BUSINESS EU SARL,300000020473393
Portsmouth City Council,PCC,Adult Social Care,Learning Disability Support Adults (18 - 64),Adult Care,Supplies and Services,"Printing, stationery and general office expenses",22-Aug-22,6659442,18.32,SUPPLIER,AMAZON BUSINESS EU SARL,300000020473393
Portsmouth City Council,PCC,Adult Social Care,Learning Disability Support Adults (18 - 64),Adult Care,Supplies and Services,"Equipment, furniture and materials",10-Aug-22,6657344,5.82,SUPPLIER,AMAZON BUSINESS EU SARL,300000020473393
Portsmouth City Council,PCC,Adult Social Care,Support with Memory and Cognition Older People (65 - 74),Adult Care,Premises-Related Expenditure,Fixtures and fittings,17-Aug-22,6658190,-385.4,SUPPLIER,AMAZON BUSINESS EU SARL,300000020473393
Portsmouth City Council,PCC,Adult Social Care,Support with Memory and Cognition Older People (65 - 74),Adult Care,Premises-Related Expenditure,Fixtures and fittings,17-Aug-22,6658190,-308.32,SUPPLIER,AMAZON BUSINESS EU SARL,300000020473393
Portsmouth City Council,PCC,Adult Social Care,Support with Memory and Cognition Older People (65 - 74),Adult Care,Premises-Related Expenditure,Fixtures and fittings,17-Aug-22,6658190,77.08,SUPPLIER,AMAZON BUSINESS EU SARL,300000020473393
Portsmouth City Council,PCC,Adult Social Care,Support with Memory and Cognition Older People (65 - 74),Adult Care,Premises-Related Expenditure,Fixtures and fittings,17-Aug-22,6658190,308.32,SUPPLIER,AMAZON BUSINESS EU SARL,300000020473393
Portsmouth City Council,PCC,Adult Social Care,Support with Memory and Cognition Older People (65 - 74),Adult Care,Premises-Related Expenditure,Fixtures and fittings,17-Aug-22,6658190,385.4,SUPPLIER,AMAZON BUSINESS EU SARL,300000020473393
Portsmouth City Council,PCC,Adult Social Care,Support with Memory and Cognition Older People (65 - 74),Adult Care,Premises-Related Expenditure,Fixtures and fittings,16-Aug-22,6658084,77.08,SUPPLIER,AMAZON BUSINESS EU SARL,300000020473393
Portsmouth City Council,PCC,Adult Social Care,Support with Memory and Cognition Older People (65 - 74),Adult Care,Premises-Related Expenditure,Cleaning and domestic supplies,01-Aug-22,6654966,24.6,SUPPLIER,AMAZON BUSINESS EU SARL,300000020473393
Portsmouth City Council,PCC,Public Health,Public Health - Split Costing,Public Health,Supplies and Services,"Equipment, furniture and materials",01-Aug-22,6654966,11.26,SUPPLIER,AMAZON BUSINESS EU SARL,300000020473393
Portsmouth City Council,PCC,Adult Social Care,Support with Memory and Cognition Older People (65 - 74),Adult Care,Supplies and Services,"Equipment, furniture and materials",02-Aug-22,6655237,53.9,SUPPLIER,AMAZON BUSINESS EU SARL,300000020473393
Portsmouth City Council,PCC,Adult Social Care,Learning Disability Support Adults (18 - 64),Adult Care,Supplies and Services,"Printing, stationery and general office expenses",02-Aug-22,6655237,14.96,SUPPLIER,AMAZON BUSINESS EU SARL,300000020473393
Portsmouth City Council,PCC,Adult Social Care,Learning Disability Support Adults (18 - 64),Adult Care,Supplies and Services,Catering,03-Aug-22,6655726,18.29,SUPPLIER,AMAZON BUSINESS EU SARL,300000020473393
Portsmouth City Council,PCC,Adult Social Care,Learning Disability Support Adults (18 - 64),Adult Care,Supplies and Services,Catering,08-Aug-22,6656500,79.16,SUPPLIER,AMAZON BUSINESS EU SARL,300000020473393
Portsmouth City Council,PCC,Adult Social Care,Learning Disability Support Adults (18 - 64),Adult Care,Supplies and Services,"Equipment, furniture and materials",10-Aug-22,6657344,4.42,SUPPLIER,AMAZON BUSINESS EU SARL,300000020473393
Portsmouth City Council,PCC,Adult Social Care,Learning Disability Support Adults (18 - 64),Adult Care,Supplies and Services,"Equipment, furniture and materials",10-Aug-22,6657344,4.42,SUPPLIER,AMAZON BUSINESS EU SARL,300000020473393
Portsmouth City Council,PCC,Adult Social Care,Social Care Activities,Adult Care,Supplies and Services,"Printing, stationery and general office expenses",12-Aug-22,6657720,8.98,SUPPLIER,AMAZON BUSINESS EU SARL,300000020473393
Portsmouth City Council,PCC,Adult Social Care,Learning Disability Support Adults (18 - 64),Adult Care,Premises-Related Expenditure,Fixtures and fittings,12-Aug-22,6657720,9.06,SUPPLIER,AMAZON BUSINESS EU SARL,300000020473393
Portsmouth City Council,PCC,Adult Social Care,Learning Disability Support Adults (18 - 64),Adult Care,Supplies and Services,"Equipment, furniture and materials",15-Aug-22,6658003,10.92,SUPPLIER,AMAZON BUSINESS EU SARL,300000020473393
Portsmouth City Council,PCC,Public Health,Public Health - Split Costing,Public Health,Supplies and Services,"Equipment, furniture and materials",15-Aug-22,6658003,12.9,SUPPLIER,AMAZON BUSINESS EU SARL,300000020473393
Portsmouth City Council,PCC,Adult Social Care,Learning Disability Support Adults (18 - 64),Adult Care,Supplies and Services,"Equipment, furniture and materials",15-Aug-22,6658003,24.98,SUPPLIER,AMAZON BUSINESS EU SARL,300000020473393
Portsmouth City Council,PCC,Public Health,Public Health - Split Costing,Public Health,Supplies and Services,"Equipment, furniture and materials",17-Aug-22,6658190,370.44,SUPPLIER,AMAZON BUSINESS EU SARL,300000020473393
Portsmouth City Council,PCC,Adult Social Care,Physical Support Older People (85+),Adult Care,Premises-Related Expenditure,Fixtures and fittings,22-Aug-22,6659442,-21.66,SUPPLIER,AMAZON BUSINESS EU SARL,300000020473393
Portsmouth City Council,PCC,Adult Social Care,Physical Support Older People (85+),Adult Care,Premises-Related Expenditure,Fixtures and fittings,22-Aug-22,6659442,-4.89,SUPPLIER,AMAZON BUSINESS EU SARL,300000020473393
Portsmouth City Council,PCC,Adult Social Care,Physical Support Older People (85+),Adult Care,Premises-Related Expenditure,Fixtures and fittings,22-Aug-22,6659442,43.32,SUPPLIER,AMAZON BUSINESS EU SARL,300000020473393
Portsmouth City Council,PCC,Adult Social Care,Support with Memory and Cognition Older People (65 - 74),Adult Care,Supplies and Services,"Equipment, furniture and materials",22-Aug-22,6659442,0.96,SUPPLIER,AMAZON BUSINESS EU SARL,300000020473393
Portsmouth City Council,PCC,Adult Social Care,Support with Memory and Cognition Older People (65 - 74),Adult Care,Supplies and Services,"Equipment, furniture and materials",22-Aug-22,6659442,125.12,SUPPLIER,AMAZON BUSINESS EU SARL,300000020473393
Portsmouth City Council,PCC,Adult Social Care,Physical Support Older People (85+),Adult Care,Premises-Related Expenditure,Fixtures and fittings,22-Aug-22,6659442,-44.01,SUPPLIER,AMAZON BUSINESS EU SARL,300000020473393
Portsmouth City Council,PCC,Adult Social Care,Physical Support Older People (85+),Adult Care,Premises-Related Expenditure,Fixtures and fittings,22-Aug-22,6659442,194.94,SUPPLIER,AMAZON BUSINESS EU SARL,300000020473393
Portsmouth City Council,PCC,Adult Social Care,Learning Disability Support Adults (18 - 64),Adult Care,Supplies and Services,"Clothes, uniform and laundry",25-Aug-22,6660361,3.29,SUPPLIER,AMAZON BUSINESS EU SARL,300000020473393
Portsmouth City Council,PCC,Adult Social Care,Learning Disability Support Adults (18 - 64),Adult Care,Supplies and Services,"Clothes, uniform and laundry",25-Aug-22,6660361,11.11,SUPPLIER,AMAZON BUSINESS EU SARL,300000020473393
Portsmouth City Council,PCC,Adult Social Care,Learning Disability Support Adults (18 - 64),Adult Care,Supplies and Services,"Clothes, uniform and laundry",25-Aug-22,6660361,22.22,SUPPLIER,AMAZON BUSINESS EU SARL,300000020473393
Portsmouth City Council,PCC,Adult Social Care,Learning Disability Support Adults (18 - 64),Adult Care,Supplies and Services,Catering,24-Aug-22,6660015,4.04,SUPPLIER,AMAZON BUSINESS EU SARL,300000020473393
Portsmouth City Council,PCC,Adult Social Care,Learning Disability Support Adults (18 - 64),Adult Care,Premises-Related Expenditure,"Repairs, alterations and maintenance of buildings",24-Aug-22,6660015,9.99,SUPPLIER,AMAZON BUSINESS EU SARL,300000020473393
Portsmouth City Council,PCC,Adult Social Care,Learning Disability Support Adults (18 - 64),Adult Care,Supplies and Services,"Equipment, furniture and materials",24-Aug-22,6660015,27.49,SUPPLIER,AMAZON BUSINESS EU SARL,300000020473393
Portsmouth City Council,PCC,Adult Social Care,Learning Disability Support Adults (18 - 64),Adult Care,Supplies and Services,Catering,24-Aug-22,6660015,16.6,SUPPLIER,AMAZON BUSINESS EU SARL,300000020473393
Portsmouth City Council,PCC,Adult Social Care,Learning Disability Support Adults (18 - 64),Adult Care,Supplies and Services,Catering,24-Aug-22,6660015,8.08,SUPPLIER,AMAZON BUSINESS EU SARL,300000020473393
Portsmouth City Council,PCC,Adult Social Care,Learning Disability Support Adults (18 - 64),Adult Care,Supplies and Services,Catering,24-Aug-22,6660015,8.08,SUPPLIER,AMAZON BUSINESS EU SARL,300000020473393
Portsmouth City Council,PCC,Adult Social Care,Learning Disability Support Adults (18 - 64),Adult Care,Supplies and Services,"Equipment, furniture and materials",26-Aug-22,6660529,52.49,SUPPLIER,AMAZON BUSINESS EU SARL,300000020473393
Portsmouth City Council,PCC,Public Health,Public Health - Split Costing,Public Health,Supplies and Services,"Printing, stationery and general office expenses",24-Aug-22,6660015,116.65,SUPPLIER,AMAZON BUSINESS EU SARL,300000020473393
Portsmouth City Council,PCC,Adult Social Care,Learning Disability Support Adults (18 - 64),Adult Care,Supplies and Services,"Equipment, furniture and materials",26-Aug-22,6660529,11.75,SUPPLIER,AMAZON BUSINESS EU SARL,300000020473393
Portsmouth City Council,PCC,Adult Social Care,Learning Disability Support Adults (18 - 64),Adult Care,Supplies and Services,"Printing, stationery and general office expenses",26-Aug-22,6660529,16.06,SUPPLIER,AMAZON BUSINESS EU SARL,300000020473393
Portsmouth City Council,PCC,Adult Social Care,Physical Support Older People (85+),Adult Care,Supplies and Services,"Printing, stationery and general office expenses",30-Aug-22,6660931,18.32,SUPPLIER,AMAZON BUSINESS EU SARL,300000020473393
Portsmouth City Council,PCC,Adult Social Care,Support with Memory and Cognition Older People (65 - 74),Adult Care,Supplies and Services,"Clothes, uniform and laundry",30-Aug-22,6660931,15.64,SUPPLIER,AMAZON BUSINESS EU SARL,300000020473393
Portsmouth City Council,PCC,Adult Social Care,Support with Memory and Cognition Older People (65 - 74),Adult Care,Premises-Related Expenditure,"Repairs, alterations and maintenance of buildings",30-Aug-22,6660931,57.4,SUPPLIER,AMAZON BUSINESS EU SARL,300000020473393
Portsmouth City Council,PCC,Adult Social Care,Support with Memory and Cognition Older People (65 - 74),Adult Care,Supplies and Services,"Clothes, uniform and laundry",30-Aug-22,6660931,632.8,SUPPLIER,AMAZON BUSINESS EU SARL,300000020473393
Portsmouth City Council,PCC,Adult Social Care,Learning Disability Support Adults (18 - 64),Adult Care,Supplies and Services,"Equipment, furniture and materials",30-Aug-22,6660931,8.32,SUPPLIER,AMAZON BUSINESS EU SARL,300000020473393
Portsmouth City Council,PCC,Adult Social Care,Learning Disability Support Adults (18 - 64),Adult Care,Supplies and Services,"Printing, stationery and general office expenses",30-Aug-22,6660931,11.65,SUPPLIER,AMAZON BUSINESS EU SARL,300000020473393
Portsmouth City Council,PCC,Adult Social Care,Support with Memory and Cognition Older People (65 - 74),Adult Care,Supplies and Services,"Equipment, furniture and materials",30-Aug-22,6660931,4.99,SUPPLIER,AMAZON BUSINESS EU SARL,300000020473393
Portsmouth City Council,PCC,Adult Social Care,Support with Memory and Cognition Older People (65 - 74),Adult Care,Supplies and Services,Catering,30-Aug-22,6660931,60.15,SUPPLIER,AMAZON BUSINESS EU SARL,300000020473393
Portsmouth City Council,PCC,Adult Social Care,Support with Memory and Cognition Older People (65 - 74),Adult Care,Supplies and Services,"Printing, stationery and general office expenses",30-Aug-22,6660931,30.75,SUPPLIER,AMAZON BUSINESS EU SARL,300000020473393
Portsmouth City Council,PCC,Adult Social Care,Learning Disability Support Adults (18 - 64),Adult Care,Supplies and Services,"Printing, stationery and general office expenses",30-Aug-22,6660931,1.25,SUPPLIER,AMAZON BUSINESS EU SARL,300000020473393
Portsmouth City Council,PCC,Adult Social Care,Learning Disability Support Adults (18 - 64),Adult Care,Supplies and Services,"Printing, stationery and general office expenses",30-Aug-22,6660931,346.2,SUPPLIER,AMAZON BUSINESS EU SARL,300000020473393
Portsmouth City Council,PCC,Adult Social Care,Learning Disability Support Adults (18 - 64),Adult Care,Supplies and Services,Catering,30-Aug-22,6660931,3.71,SUPPLIER,AMAZON BUSINESS EU SARL,300000020473393
Portsmouth City Council,PCC,Adult Social Care,Learning Disability Support Adults (18 - 64),Adult Care,Supplies and Services,Catering,30-Aug-22,6660931,8.14,SUPPLIER,AMAZON BUSINESS EU SARL,300000020473393
Portsmouth City Council,PCC,Adult Social Care,Support with Memory and Cognition Older People (85+),Adult Care,Third Party Payments,Other establishments,12-Aug-22,6657743,"2,586.02",SUPPLIER,ANEXAS CARE LTD,300000020475584
Portsmouth City Council,PCC,Adult Social Care,Physical Support Older People (85+),Adult Care,Third Party Payments,Other establishments,15-Aug-22,6657944,13.98,SUPPLIER,APEX PROPERTY VENTURES LTD,300000020464573
Portsmouth City Council,PCC,Adult Social Care,Physical Support Older People (85+),Adult Care,Third Party Payments,Other establishments,15-Aug-22,6657944,14.52,SUPPLIER,APEX PROPERTY VENTURES LTD,300000020464573
Portsmouth City Council,PCC,Adult Social Care,Physical Support Older People (85+),Adult Care,Third Party Payments,Other establishments,15-Aug-22,6657944,27.96,SUPPLIER,APEX PROPERTY VENTURES LTD,300000020464573
Portsmouth City Council,PCC,Adult Social Care,Physical Support Older People (85+),Adult Care,Third Party Payments,Other establishments,15-Aug-22,6657944,33.88,SUPPLIER,APEX PROPERTY VENTURES LTD,300000020464573
Portsmouth City Council,PCC,Adult Social Care,Physical Support Older People (85+),Adult Care,Third Party Payments,Other establishments,15-Aug-22,6657944,41.94,SUPPLIER,APEX PROPERTY VENTURES LTD,300000020464573
Portsmouth City Council,PCC,Adult Social Care,Social Care Activities,Adult Care,Third Party Payments,Other establishments,15-Aug-22,6657944,69.4,SUPPLIER,APEX PROPERTY VENTURES LTD,300000020464573
Portsmouth City Council,PCC,Adult Social Care,Physical Support Older People (85+),Adult Care,Third Party Payments,Other establishments,15-Aug-22,6657944,96.8,SUPPLIER,APEX PROPERTY VENTURES LTD,300000020464573
